date,department/service,beneficiary,amount,summary of purpose,category,transaction number,SAP vendor number
01.12.2021,CHILDREN AND FAMILIES,HEAVENLY ANGELS LTD T/A BANANA MOON DAY NURSERY,"1,455.00",FOSTERING TEAM,EXTERNAL AGENCIES AND BODIES,5902498215,1000076197
01.12.2021,RESIDENT SERVICES,PETER BALAZS,500,GREAT ESTATES,OTHER R&M,5902498513,1000087083
02.12.2021,ADULT SOCIAL CARE,REDACTED PERSONAL DATA,500,APPOINTEESHIPS,OTHER PAYMENTS FOR CLIENTS,REDACTED,REDACTED
02.12.2021,ADULT SOCIAL CARE,BRITISH GAS,752.99,CASTLEMEAD,ELECTRICITY,5902499290,1000054825
02.12.2021,ADULT SOCIAL CARE,BRITISH GAS,"4,876.06",CASTLEMEAD,ELECTRICITY,5902499288,1000054825
02.12.2021,ADULT SOCIAL CARE,HEALTH ADVOCACY UK LTD,325,CHC ADVOCACY- OP/PD,EXTERNAL AGENCIES AND BODIES,5902498135,1000082156
02.12.2021,ADULT SOCIAL CARE,SUPREME CARE SERVICES LTD,773.14,DISCHARGE TO ACCESS,HOMECARE - C&V,2103354217,1000059416
02.12.2021,ADULT SOCIAL CARE,SUPREME CARE SERVICES LTD,"2,265.48",DISCHARGE TO ACCESS,HOMECARE - C&V,2103354135,1000059416
02.12.2021,ADULT SOCIAL CARE,SUPREME CARE SERVICES LTD,"3,870.20",DISCHARGE TO ACCESS,HOMECARE - C&V,2103354181,1000059416
02.12.2021,ADULT SOCIAL CARE,SUPREME CARE SERVICES LTD,"2,265.48",DISCHARGE TO ACCESS,HOMECARE - IC,2103354175,1000059416
02.12.2021,ADULT SOCIAL CARE,KENT COUNTY COUNCIL - LASER,544.14,FRED FRANCIS CENTRE,GAS,5902499184,1000012926
02.12.2021,ADULT SOCIAL CARE,KENT COUNTY COUNCIL - LASER,593.52,FRED FRANCIS CENTRE,GAS,5902499191,1000012926
02.12.2021,ADULT SOCIAL CARE,KENT COUNTY COUNCIL - LASER,780.84,FRED FRANCIS CENTRE,GAS,5902499186,1000012926
02.12.2021,ADULT SOCIAL CARE,CONTACT PROFESSIONALS,465,LD LTS 18-64,SUPPORTED LIVING,2103354057,1000057263
02.12.2021,ADULT SOCIAL CARE,CONTACT PROFESSIONALS,684,LD LTS 18-64,SUPPORTED LIVING,2103354064,1000057263
02.12.2021,ADULT SOCIAL CARE,CONTACT PROFESSIONALS,912,LD LTS 18-64,SUPPORTED LIVING,2103354058,1000057263
02.12.2021,ADULT SOCIAL CARE,SUPREME CARE SERVICES LTD,"1,384.46",LD STS 18-64,HOMECARE - IC,2103354173,1000059416
02.12.2021,ADULT SOCIAL CARE,BLISSETT CARE LTD,624.24,MH LTS 65+,HOMECARE - C&V,2103354229,1000042627
02.12.2021,ADULT SOCIAL CARE,BLISSETT CARE LTD,836.02,MH LTS 65+,HOMECARE - C&V,2103354235,1000042627
02.12.2021,ADULT SOCIAL CARE,MULBERRY HOUSE  LTD,997.5,ORIENT ST � RESPITE,OFFICE EXPENSES,5902498148,1000075963
02.12.2021,ADULT SOCIAL CARE,SUPREME CARE SERVICES LTD,"1,924.40",PHY LTS 18-64,HOMECARE - C&V,2103354149,1000059416
02.12.2021,ADULT SOCIAL CARE,SUPREME CARE SERVICES LTD,"2,625.08",PHY LTS 18-64,HOMECARE - C&V,2103354183,1000059416
02.12.2021,ADULT SOCIAL CARE,SUPREME CARE SERVICES LTD,"1,806.99",PHY LTS 65+,HOMECARE - C&V,2103354209,1000059416
02.12.2021,ADULT SOCIAL CARE,SUPREME CARE SERVICES LTD,"2,508.21",PHY LTS 65+,HOMECARE - C&V,2103354155,1000059416
02.12.2021,ADULT SOCIAL CARE,SUPREME CARE SERVICES LTD,"3,290.34",PHY LTS 65+,HOMECARE - C&V,2103354153,1000059416
02.12.2021,ADULT SOCIAL CARE,SUPREME CARE SERVICES LTD,325.44,PHY STS 18-64,HOMECARE - IC,2103354213,1000059416
02.12.2021,ADULT SOCIAL CARE,SUPREME CARE SERVICES LTD,503.44,PHY STS 18-64,HOMECARE - IC,2103354225,1000059416
02.12.2021,ADULT SOCIAL CARE,SUPREME CARE SERVICES LTD,552.89,PHY STS 18-64,HOMECARE - IC,2103354161,1000059416
02.12.2021,ADULT SOCIAL CARE,SUPREME CARE SERVICES LTD,"1,186.68",PHY STS 18-64,HOMECARE - IC,2103354201,1000059416
02.12.2021,ADULT SOCIAL CARE,SUPREME CARE SERVICES LTD,"1,492.34",PHY STS 18-64,HOMECARE - IC,2103354171,1000059416
02.12.2021,ADULT SOCIAL CARE,BLISSETT CARE LTD,385.56,PHY STS 65+,HOMECARE - IC,2103354239,1000042627
02.12.2021,ADULT SOCIAL CARE,BLISSETT CARE LTD,587.52,PHY STS 65+,HOMECARE - IC,2103354233,1000042627
02.12.2021,ADULT SOCIAL CARE,SUPREME CARE SERVICES LTD,292.18,PHY STS 65+,HOMECARE - IC,2103354139,1000059416
02.12.2021,ADULT SOCIAL CARE,SUPREME CARE SERVICES LTD,377.58,PHY STS 65+,HOMECARE - IC,2103354137,1000059416
02.12.2021,ADULT SOCIAL CARE,SUPREME CARE SERVICES LTD,377.58,PHY STS 65+,HOMECARE - IC,2103354195,1000059416
02.12.2021,ADULT SOCIAL CARE,SUPREME CARE SERVICES LTD,385.31,PHY STS 65+,HOMECARE - IC,2103354165,1000059416
02.12.2021,ADULT SOCIAL CARE,SUPREME CARE SERVICES LTD,575.36,PHY STS 65+,HOMECARE - IC,2103354187,1000059416
02.12.2021,ADULT SOCIAL CARE,SUPREME CARE SERVICES LTD,597.84,PHY STS 65+,HOMECARE - IC,2103354197,1000059416
02.12.2021,ADULT SOCIAL CARE,SUPREME CARE SERVICES LTD,701.22,PHY STS 65+,HOMECARE - IC,2103354132,1000059416
02.12.2021,ADULT SOCIAL CARE,SUPREME CARE SERVICES LTD,759.66,PHY STS 65+,HOMECARE - IC,2103354163,1000059416
02.12.2021,ADULT SOCIAL CARE,SUPREME CARE SERVICES LTD,"1,330.52",PHY STS 65+,HOMECARE - IC,2103354142,1000059416
02.12.2021,ADULT SOCIAL CARE,SUPREME CARE SERVICES LTD,"1,595.73",PHY STS 65+,HOMECARE - IC,2103354185,1000059416
02.12.2021,ADULT SOCIAL CARE,SUPREME CARE SERVICES LTD,"2,180.08",PHY STS 65+,HOMECARE - IC,2103354221,1000059416
02.12.2021,ADULT SOCIAL CARE,CONTACT PROFESSIONALS,285,SPECIALIST CARE,SECTION 17 PAYMENTS TO AGENCIES/CARERS,2103353478,1000057263
02.12.2021,ADULT SOCIAL CARE,CONTACT PROFESSIONALS,285,SPECIALIST CARE,SECTION 17 PAYMENTS TO AGENCIES/CARERS,2103353485,1000057263
02.12.2021,ADULT SOCIAL CARE,CONTACT PROFESSIONALS,342,SPECIALIST CARE,SECTION 17 PAYMENTS TO AGENCIES/CARERS,2103353488,1000057263
02.12.2021,ADULT SOCIAL CARE,CONTACT PROFESSIONALS,380,SPECIALIST CARE,SECTION 17 PAYMENTS TO AGENCIES/CARERS,2103353501,1000057263
02.12.2021,ADULT SOCIAL CARE,SUPREME CARE SERVICES LTD,"1,246.01",SUB STS 18-64,HOMECARE - IC,2103354179,1000059416
02.12.2021,ASSET MANAGEMENT,BRYHILL TECHNICAL SERVICES,453.24,DISREPAIR,PAYMENTS FOR LEGAL SERVICES,2103351246,3000001722
02.12.2021,ASSET MANAGEMENT,BRYHILL TECHNICAL SERVICES,"1,480.67",DISREPAIR,PAYMENTS FOR LEGAL SERVICES,2103351227,3000001722
02.12.2021,ASSET MANAGEMENT,BRYHILL TECHNICAL SERVICES,"1,486.74",DISREPAIR,PAYMENTS FOR LEGAL SERVICES,2103351226,3000001722
02.12.2021,ASSET MANAGEMENT,BRYHILL TECHNICAL SERVICES,"4,292.58",DISREPAIR,PAYMENTS FOR LEGAL SERVICES,2103354289,3000001722
02.12.2021,ASSET MANAGEMENT,TROWERS & HAMLINS LLP,"1,241.50",INVESTMENT MANAGER,PROFESSIONAL FEES,5902499298,1000016239
02.12.2021,CHILDREN AND FAMILIES,INTERCOUNTRY ADOPTION CENTRE,"1,116.00",ADOPT LONDON SOUTH,INTERVIEW,5902499208,1000035796
02.12.2021,CHILDREN AND FAMILIES,INTERCOUNTRY ADOPTION CENTRE,420,ADOPT LONDON SOUTH,TRAINING,5902499203,1000035796
02.12.2021,CHILDREN AND FAMILIES,CASTLE WATER LTD,269.88,CENTRAL SUPPORT,WATER,5902498774,1000078867
02.12.2021,CHILDREN AND FAMILIES,CONTACT PROFESSIONALS,306,SEMI-IND CARELEAVERS,EXTERNAL AGENCIES AND BODIES,2103353517,1000057263
02.12.2021,CHILDREN AND FAMILIES,CONTACT PROFESSIONALS,287.21,SEMI-IND LAC 16-17,EXTERNAL AGENCIES AND BODIES,2103353530,1000057263
02.12.2021,COMMUNITIES,NOVOTEL LONDON BLACKFRIARS,583.34,AFGHAN RESETTLEMENT,HIRE OF ROOMS/HALLS,5902499202,1000087640
02.12.2021,COMMUNITIES,NOVOTEL LONDON BLACKFRIARS,"1,750.02",AFGHAN RESETTLEMENT,HIRE OF ROOMS/HALLS,5902499201,1000087640
02.12.2021,COMMUNITIES,BLISSETT CARE LTD,266.22,NO RECOURSE TO PUBLIC FUNDS,HOMECARE - C&V,2103354237,1000042627
02.12.2021,COMMUNITIES,SUPREME CARE SERVICES LTD,311.41,NO RECOURSE TO PUBLIC FUNDS,HOMECARE - C&V,2103354147,1000059416
02.12.2021,COMMUNITIES,SUPREME CARE SERVICES LTD,755.16,NO RECOURSE TO PUBLIC FUNDS,HOMECARE - C&V,2103354223,1000059416
02.12.2021,COMMUNITIES,SUPREME CARE SERVICES LTD,764.15,NO RECOURSE TO PUBLIC FUNDS,HOMECARE - C&V,2103354199,1000059416
02.12.2021,COMMUNITIES,SUPREME CARE SERVICES LTD,997.89,NO RECOURSE TO PUBLIC FUNDS,HOMECARE - C&V,2103354169,1000059416
02.12.2021,COMMUNITIES,SUPREME CARE SERVICES LTD,"1,006.88",NO RECOURSE TO PUBLIC FUNDS,HOMECARE - C&V,2103354215,1000059416
02.12.2021,COMMUNITIES,SUPREME CARE SERVICES LTD,"1,006.88",NO RECOURSE TO PUBLIC FUNDS,HOMECARE - C&V,2103354219,1000059416
02.12.2021,COMMUNITIES,SUPREME CARE SERVICES LTD,"1,456.38",NO RECOURSE TO PUBLIC FUNDS,HOMECARE - C&V,2103354205,1000059416
02.12.2021,COMMUNITIES,SUPREME CARE SERVICES LTD,"3,258.88",NO RECOURSE TO PUBLIC FUNDS,HOMECARE - C&V,2103354203,1000059416
02.12.2021,COMMUNITIES,SHIAN HOUSING ASSOCIATION LTD,"1,625.00",SOUTHWARK ANTI VIOLENCE UNIT,PROFESSIONAL FEES,5902499254,1000065762
02.12.2021,COMMUNITIES,SHIAN HOUSING ASSOCIATION LTD,"1,625.00",SOUTHWARK ANTI VIOLENCE UNIT,PROFESSIONAL FEES,5902499264,1000065762
02.12.2021,COMMUNITIES,SHIAN HOUSING ASSOCIATION LTD,"1,625.00",SOUTHWARK ANTI VIOLENCE UNIT,PROFESSIONAL FEES,5902499266,1000065762
02.12.2021,CUSTOMER EXPERIENCE HGF,SALT LAKE MEDICAL LTD,"4,259.20",CORONER'S,PROFESSIONAL FEES,5902497359,1000078684
02.12.2021,CUSTOMER EXPERIENCE HGF,SALT LAKE MEDICAL LTD,"4,356.00",CORONER'S,PROFESSIONAL FEES,5902497357,1000078684
02.12.2021,CUSTOMER EXPERIENCE HGF,SALT LAKE MEDICAL LTD,"4,840.00",CORONER'S,PROFESSIONAL FEES,5902497367,1000078684
02.12.2021,CUSTOMER EXPERIENCE HGF,NRC PATHOLOGY SERVICES LIMITED,600,CORONER'S,PROFESSIONAL FEES,5902499272,1000085798
02.12.2021,CUSTOMER EXPERIENCE HGF,NRC PATHOLOGY SERVICES LIMITED,600,CORONER'S,PROFESSIONAL FEES,5902499273,1000085798
02.12.2021,DSG,FLEET TUTORS,"1,198.00",ALTERNATIVE PROVISION,EXTERNAL AGENCIES AND BODIES,5902499268,1000044820
02.12.2021,DSG,WINCHMORE TUTORS LTD,"1,040.00",ALTERNATIVE PROVISION,EXTERNAL AGENCIES AND BODIES,5902499221,1000075298
02.12.2021,DSG,WINCHMORE TUTORS LTD,"16,500.00",ALTERNATIVE PROVISION,EXTERNAL AGENCIES AND BODIES,5902499214,1000075298
02.12.2021,DSG,WINCHMORE TUTORS LTD,"36,000.00",ALTERNATIVE PROVISION,EXTERNAL AGENCIES AND BODIES,5902499213,1000075298
02.12.2021,EDUCATION,SIAN MATHIAS,400,GOVERNOR SUPPORT,CONSULTANTS SERVICES,5902497964,1000080305
02.12.2021,EDUCATION,PULSE HEALTHCARE LTD,308,SCH TRANS � TRAVEL,AGENCY STAFF,5902498323,1000035063
02.12.2021,EDUCATION,REDACTED PERSONAL DATA,464,SCH TRANS � TRAVEL,OTHER PAYMENTS FOR CLIENTS,REDACTED,REDACTED
02.12.2021,EDUCATION,EXETER COLLEGE OXFORD,"9,250.00",SCHOLARSHIP SCHEME,EXTERNAL AGENCIES AND BODIES,5902499287,1000085732
02.12.2021,ENVIRONMENT AND LEISURE,INTO SERVICES LONDON LTD,400,CAPITAL PS (LEISURE),CONST'N MAIN CONTRACT - NON CERTIFICATED,5902498429,1000059328
02.12.2021,ENVIRONMENT AND LEISURE,RH WROUGHT IRON,"2,000.00",CAPITAL PS (LEISURE),CONSTRUCTION FEES,2103354111,3000000680
02.12.2021,ENVIRONMENT DIRECTORATE,AUTOMOTIVE LEASING,281.89,CAR LEASING CTRL A/C,VEHICLE LEASING CHARGES,5902499219,11014756
02.12.2021,ENVIRONMENT DIRECTORATE,AUTOMOTIVE LEASING,746.88,CAR LEASING CTRL A/C,VEHICLE LEASING CHARGES,5902499247,11014756
02.12.2021,ENVIRONMENT DIRECTORATE,AUTOMOTIVE LEASING,781.32,CAR LEASING CTRL A/C,VEHICLE LEASING CHARGES,5902499247,11014756
02.12.2021,ENVIRONMENT DIRECTORATE,AUTOMOTIVE LEASING,"2,892.37",CAR LEASING CTRL A/C,VEHICLE LEASING CHARGES,5902499247,11014756
02.12.2021,ENVIRONMENT DIRECTORATE,ARVAL UK LTD,-600.72,CAR LEASING CTRL A/C,VEHICLE LEASING CHARGES,5902499220,1000079802
02.12.2021,ENVIRONMENT DIRECTORATE,ARVAL UK LTD,320,CAR LEASING CTRL A/C,VEHICLE LEASING CHARGES,5902499223,1000079802
02.12.2021,ENVIRONMENT DIRECTORATE,ARVAL UK LTD,430,CAR LEASING CTRL A/C,VEHICLE LEASING CHARGES,5902499223,1000079802
02.12.2021,ENVIRONMENT DIRECTORATE,ACCESS HIRE NATIONWIDE LTD,"1,491.43",COMMERCIAL VEH CTRL A/C,HIRED VEHICLES,5902499224,1000048527
02.12.2021,ENVIRONMENT DIRECTORATE,ACCESS HIRE NATIONWIDE LTD,"1,491.43",COMMERCIAL VEH CTRL A/C,HIRED VEHICLES,5902499225,1000048527
02.12.2021,ENVIRONMENT DIRECTORATE,ACCESS HIRE NATIONWIDE LTD,"1,491.43",COMMERCIAL VEH CTRL A/C,HIRED VEHICLES,5902499226,1000048527
02.12.2021,ENVIRONMENT DIRECTORATE,LEEDS COMMERCIAL LIMITED T/A LC VEHICLE HIRE,347.33,COMMERCIAL VEH CTRL A/C,HIRED VEHICLES,5902499183,1000082730
02.12.2021,ENVIRONMENT DIRECTORATE,LEEDS COMMERCIAL LIMITED T/A LC VEHICLE HIRE,990,COMMERCIAL VEH CTRL A/C,HIRED VEHICLES,5902499302,1000082730
02.12.2021,ENVIRONMENT DIRECTORATE,LEEDS COMMERCIAL LIMITED T/A LC VEHICLE HIRE,990,COMMERCIAL VEH CTRL A/C,HIRED VEHICLES,5902499306,1000082730
02.12.2021,ENVIRONMENT DIRECTORATE,LEEDS COMMERCIAL LIMITED T/A LC VEHICLE HIRE,"2,750.00",COMMERCIAL VEH CTRL A/C,HIRED VEHICLES,5902499292,1000082730
02.12.2021,ENVIRONMENT DIRECTORATE,LEEDS COMMERCIAL LIMITED T/A LC VEHICLE HIRE,"2,860.00",COMMERCIAL VEH CTRL A/C,HIRED VEHICLES,5902499296,1000082730
02.12.2021,ENVIRONMENT DIRECTORATE,ESU1 LTD,"2,999.75",ENVIRONMENTAL PROTECTION,OTHER CONTRACTORS,5902499293,1000086650
02.12.2021,ENVIRONMENT DIRECTORATE,CAMPBELL SCIENTIFIC LTD,"2,004.50",ENVIRONMENTAL PROTECTION,OTHER LOCAL AUTHORITIES,5902499251,1000045051
02.12.2021,ENVIRONMENT DIRECTORATE,ERNEST DOE & SONS LTD,796.67,GROUNDS (SOUTH),MATERIALS,5902499269,1000052691
02.12.2021,ENVIRONMENT DIRECTORATE,SPALDINGS (UK) LTD,285,GROUNDS MAINTENANCE - GENERAL,MATERIALS,5902499253,1907384
02.12.2021,ENVIRONMENT DIRECTORATE,LAND SKILLS TRAINING LTD,"1,348.50",NON HOUSING GROUNDS,TRAINING,5902499267,1000060035
02.12.2021,ENVIRONMENT DIRECTORATE,CADENCE INNOVA LTD.,"7,994.00",RESIDENTIAL SERVICES,PROFESSIONAL FEES,5902499285,1000085771
02.12.2021,ENVIRONMENT DIRECTORATE,CADENCE INNOVA LTD.,"19,990.00",RESIDENTIAL SERVICES,PROFESSIONAL FEES,5902499283,1000085771
02.12.2021,ENVIRONMENT DIRECTORATE,SOUTHWARK NEWSPAPER LTD,264,SECTION 278 & 38,MARKETING & PUBLICITY SERVICES,5902499170,1556957
02.12.2021,ENVIRONMENT DIRECTORATE,SOUTHWARK NEWSPAPER LTD,288,SECTION 278 & 38,MARKETING & PUBLICITY SERVICES,5902499211,1556957
02.12.2021,ENVIRONMENT DIRECTORATE,SOUTHWARK NEWSPAPER LTD,312,SECTION 278 & 38,MARKETING & PUBLICITY SERVICES,5902499169,1556957
02.12.2021,ENVIRONMENT DIRECTORATE,SOUTHWARK NEWSPAPER LTD,336,SECTION 278 & 38,MARKETING & PUBLICITY SERVICES,5902499210,1556957
02.12.2021,ENVIRONMENT DIRECTORATE,SOUTHWARK NEWSPAPER LTD,336,SECTION 278 & 38,MARKETING & PUBLICITY SERVICES,5902499212,1556957
02.12.2021,ENVIRONMENT DIRECTORATE,SOUTHWARK NEWSPAPER LTD,360,SECTION 278 & 38,MARKETING & PUBLICITY SERVICES,5902499209,1556957
02.12.2021,ENVIRONMENT DIRECTORATE,TYCO INTEGRATED FIRE & SECURITY,"10,752.25",TOWN CENTRE CCTV,EQUIPMENT PURCHASE & REPAIR,5902498601,1000077948
02.12.2021,F & C S EXCLUDING CORPORATE BUDGETS,NEC SOFTWARE SOLUTIONS UK LTD,"9,000.00",ADMINISTRATIVE SUPPORT,POSTAGES,5902498650,1000087043
02.12.2021,F & C S EXCLUDING CORPORATE BUDGETS,NEC SOFTWARE SOLUTIONS UK LTD,"30,000.00",ADMINISTRATIVE SUPPORT,POSTAGES,5902498650,1000087043
02.12.2021,F & C S EXCLUDING CORPORATE BUDGETS,CAPITA BUSINESS SERVICES LTD,"8,204.38",CAPITA,OTHER CONTRACTORS,5902498672,1000006291
02.12.2021,F & C S EXCLUDING CORPORATE BUDGETS,CIVICA UK LTD,"-5,000.00",ELECTORAL REGISTRATION,SOFTWARE,5902499279,1730625
02.12.2021,F & C S EXCLUDING CORPORATE BUDGETS,CIVICA UK LTD,"10,960.00",ELECTORAL REGISTRATION,SOFTWARE,5902499277,1730625
02.12.2021,F & C S EXCLUDING CORPORATE BUDGETS,REDACTED PERSONAL DATA,500,SESS,OTHER PAYMENTS FOR CLIENTS,REDACTED,REDACTED
02.12.2021,F & C S EXCLUDING CORPORATE BUDGETS,REDACTED PERSONAL DATA,500,SESS,OTHER PAYMENTS FOR CLIENTS,REDACTED,REDACTED
02.12.2021,F & C S EXCLUDING CORPORATE BUDGETS,REDACTED PERSONAL DATA,500,SESS,OTHER PAYMENTS FOR CLIENTS,REDACTED,REDACTED
02.12.2021,F & C S EXCLUDING CORPORATE BUDGETS,REDACTED PERSONAL DATA,500,SESS,OTHER PAYMENTS FOR CLIENTS,REDACTED,REDACTED
02.12.2021,F & C S EXCLUDING CORPORATE BUDGETS,REDACTED PERSONAL DATA,500,SESS,OTHER PAYMENTS FOR CLIENTS,REDACTED,REDACTED
02.12.2021,F & C S EXCLUDING CORPORATE BUDGETS,REDACTED PERSONAL DATA,500,SESS,OTHER PAYMENTS FOR CLIENTS,REDACTED,REDACTED
02.12.2021,F & C S EXCLUDING CORPORATE BUDGETS,REDACTED PERSONAL DATA,500,SESS,OTHER PAYMENTS FOR CLIENTS,REDACTED,REDACTED
02.12.2021,F & C S EXCLUDING CORPORATE BUDGETS,REDACTED PERSONAL DATA,500,SESS,OTHER PAYMENTS FOR CLIENTS,REDACTED,REDACTED
02.12.2021,F & C S EXCLUDING CORPORATE BUDGETS,REDACTED PERSONAL DATA,500,SESS,OTHER PAYMENTS FOR CLIENTS,REDACTED,REDACTED
02.12.2021,F & C S EXCLUDING CORPORATE BUDGETS,REDACTED PERSONAL DATA,500,SESS,OTHER PAYMENTS FOR CLIENTS,REDACTED,REDACTED
02.12.2021,F & C S EXCLUDING CORPORATE BUDGETS,REDACTED PERSONAL DATA,500,SESS,OTHER PAYMENTS FOR CLIENTS,REDACTED,REDACTED
02.12.2021,F & C S EXCLUDING CORPORATE BUDGETS,REDACTED PERSONAL DATA,500,SESS,OTHER PAYMENTS FOR CLIENTS,REDACTED,REDACTED
02.12.2021,HOUSING,OCO LIMITED,"138,474.17",PAYMENTS CONTROL ACCOUNT - OCO,I-WORLD CONTRACTORS HOLDING ACCOUNT,5902499227,1006066
02.12.2021,HOUSING,SMITH & BYFORD LTD,"113,765.58",SMITH AND BYFORD,I-WORLD CONTRACTORS HOLDING ACCOUNT,5902499228,11212119
02.12.2021,HOUSING HRA,JAMES REMOVALS,"2,500.00",CAPITAL PS (HRA),CAPITAL GRANTS,5902499244,1000060016
02.12.2021,HOUSING HRA,SAFEGUARDS SECURITY SERVICES LTD,540,CAPITAL PS (HRA),CONSTRUCTION FEES  - EXTERNAL,5902498932,1000087544
02.12.2021,HOUSING HRA,SAFEGUARDS SECURITY SERVICES LTD,720,CAPITAL PS (HRA),CONSTRUCTION FEES  - EXTERNAL,5902498934,1000087544
02.12.2021,HOUSING HRA,SAFEGUARDS SECURITY SERVICES LTD,900,CAPITAL PS (HRA),CONSTRUCTION FEES  - EXTERNAL,5902498938,1000087544
02.12.2021,HOUSING HRA,SAFEGUARDS SECURITY SERVICES LTD,"8,151.00",CAPITAL PS (HRA),CONSTRUCTION FEES  - EXTERNAL,5902498945,1000087544
02.12.2021,HOUSING HRA,SAFEGUARDS SECURITY SERVICES LTD,"10,260.00",CAPITAL PS (HRA),CONSTRUCTION FEES  - EXTERNAL,5902498944,1000087544
02.12.2021,HOUSING HRA,SAFEGUARDS SECURITY SERVICES LTD,"10,602.00",CAPITAL PS (HRA),CONSTRUCTION FEES  - EXTERNAL,5902498959,1000087544
02.12.2021,HOUSING HRA,A & E ELKINS LTD,"11,024.80",CAPITAL PS (HRA),CONSTRUCTION MAIN CONTRACT -CERTIFICATED,2103354120,4012501
02.12.2021,HOUSING HRA,A & E ELKINS LTD,"43,558.46",CAPITAL PS (HRA),CONSTRUCTION MAIN CONTRACT -CERTIFICATED,2103354118,4012501
02.12.2021,HOUSING HRA,SALTASH ENTERPRISES LTD,"190,944.41",CAPITAL PS (HRA),CONSTRUCTION MAIN CONTRACT -CERTIFICATED,2103354122,4013605
02.12.2021,HOUSING HRA,SALTASH ENTERPRISES LTD,"229,219.32",CAPITAL PS (HRA),CONSTRUCTION MAIN CONTRACT -CERTIFICATED,2103354288,4013605
02.12.2021,HOUSING HRA,SALTASH ENTERPRISES LTD,"320,738.58",CAPITAL PS (HRA),CONSTRUCTION MAIN CONTRACT -CERTIFICATED,2103354121,4013605
02.12.2021,HOUSING HRA,NIBLOCK (BUILDERS) LTD,"5,174.30",CAPITAL PS (HRA),CONSTRUCTION MAIN CONTRACT -CERTIFICATED,2103354083,3000000235
02.12.2021,HOUSING HRA,CARTER JONAS LLP,"3,000.00",CAPITAL PS (HRA),LAND & BUILDINGS ACQUISITION FEES,5902499245,1000073124
02.12.2021,HOUSING HRA,MARTIN ARNOLD LTD,"11,206.09",CAPITAL PS (REGEN),CONSTRUCTION SITE COSTS,5902499281,1000076993
02.12.2021,LEISURE DIRECTORATE,NPOWER LTD,320.84,BLUE ANCHOR LIBRARY,ELECTRICITY,5902499270,1000078994
02.12.2021,LEISURE DIRECTORATE,NPOWER LTD,285.62,BRANDON LIBRARY,ELECTRICITY,5902499295,1000078994
02.12.2021,LEISURE DIRECTORATE,NPOWER LTD,319.38,GROVE VALE LIBRARY,ELECTRICITY,5902499297,1000078994
02.12.2021,LEISURE DIRECTORATE,WF EDUCATION GROUP LIMITED,792,JOHN HARVARD LIBRARY,EQUIPMENT PURCHASE & REPAIR,5902499039,1000086286
02.12.2021,LEISURE DIRECTORATE,ASKEWS & HOLTS LIBRARY SERVICES LTD,"8,166.88",STOCK SERVICES,BOOKS & PUBLICATIONS,5902498679,1494168
02.12.2021,PUBLIC HEALTH,NHS SOUTH EAST LONDON CCG,"316,835.00",5-19 PUBLIC HEALTH,EXTERNAL AGENCIES AND BODIES,5902499182,1000085592
02.12.2021,PUBLIC HEALTH,REDACTED PERSONAL DATA,500,COVID-19 CONTROL OUTBREAK MGMNT.FUND,OTHER PAYMENTS FOR CLIENTS,REDACTED,REDACTED
02.12.2021,PUBLIC HEALTH,REDACTED PERSONAL DATA,500,COVID-19 CONTROL OUTBREAK MGMNT.FUND,OTHER PAYMENTS FOR CLIENTS,REDACTED,REDACTED
02.12.2021,PUBLIC HEALTH,RESTORATIVE JUSTICE FOR ALL,"5,000.00",COVID-19 VACCINATION SUPPORT,EXTERNAL AGENCIES AND BODIES,5902499205,1000081455
02.12.2021,PUBLIC HEALTH,ECHOES OF HOPE,"5,000.00",COVID-19 VACCINATION SUPPORT,EXTERNAL AGENCIES AND BODIES,5902499204,1000086328
02.12.2021,PUBLIC HEALTH,NHS SOUTH EAST LONDON CCG,"22,458.25",HEALTHY WEIGHT,EXTERNAL AGENCIES AND BODIES,5902499182,1000085592
02.12.2021,PUBLIC HEALTH,NHS SOUTH EAST LONDON CCG,"1,561,256.00",PH 0-5 SERVICES,EXTERNAL AGENCIES AND BODIES,5902499182,1000085592
02.12.2021,REGENERATION,PINSENT MASONS LLP,900,CANADA WATER,PAYMENTS FOR LEGAL SERVICES,5902499309,1000046862
02.12.2021,REGENERATION,PINSENT MASONS LLP,"2,400.00",CANADA WATER,PAYMENTS FOR LEGAL SERVICES,5902499307,1000046862
02.12.2021,RESIDENT SERVICES,SOUTHERN ELECTRIC,"1,335.97",TA HOSTELS,ELECTRICITY,5902499177,1000050721
02.12.2021,RESIDENT SERVICES HGF,WATERLOGIC,791.82,HOUSING OPTIONS,OFFICE EXPENSES,5902499257,1000052108
02.12.2021,RESIDENT SERVICES HGF,WATERLOGIC,792.09,HOUSING OPTIONS,OFFICE EXPENSES,5902499258,1000052108
02.12.2021,RESIDENT SERVICES HGF,AMT PROPERTY LTD,"1,800.00",RAPID REHOUSING,EXTERNAL AGENCIES AND BODIES,5902499189,1000084257
02.12.2021,RESIDENT SERVICES HGF,CHRIS ANTHONY ESTATES,"2,500.00",RAPID REHOUSING,EXTERNAL AGENCIES AND BODIES,5902499188,1000086346
02.12.2021,SBS SUPPORT,CASTLETON TECHNOLOGY LTD,"2,164.79",ICT & COMMUNICATIONS,SOFTWARE,5902499304,1000059550
02.12.2021,SBS SUPPORT,SANDERSONS BUILDING SERVICES LTD,"132,903.74",SBS - HOLDING ACCOUNT,OTHER CONTRACTORS,2103354117,3000002065
02.12.2021,SBS SUPPORT,GC CONSTRUCT LTD,"6,080.75",SBS - HOLDING ACCOUNT,OTHER CONTRACTORS,2103354112,3000002106
03.12.2021,ADULT SOCIAL CARE,BRITISH GAS,331.96,CASTLEMEAD,ELECTRICITY,5902499403,1000054825
03.12.2021,ADULT SOCIAL CARE,BRITISH GAS,400.25,CASTLEMEAD,ELECTRICITY,5902499384,1000054825
03.12.2021,ADULT SOCIAL CARE,BRITISH GAS,531.47,CASTLEMEAD,ELECTRICITY,5902499393,1000054825
03.12.2021,ADULT SOCIAL CARE,BRITISH GAS,585.88,CASTLEMEAD,ELECTRICITY,5902499429,1000054825
03.12.2021,ADULT SOCIAL CARE,BRITISH GAS,652.19,CASTLEMEAD,ELECTRICITY,5902499427,1000054825
03.12.2021,ADULT SOCIAL CARE,BRITISH GAS,691.81,CASTLEMEAD,ELECTRICITY,5902499377,1000054825
03.12.2021,ADULT SOCIAL CARE,BRITISH GAS,741.55,CASTLEMEAD,ELECTRICITY,5902499401,1000054825
03.12.2021,ADULT SOCIAL CARE,BRITISH GAS,812.56,CASTLEMEAD,ELECTRICITY,5902499405,1000054825
03.12.2021,ADULT SOCIAL CARE,BRITISH GAS,925.35,CASTLEMEAD,ELECTRICITY,5902499396,1000054825
03.12.2021,ADULT SOCIAL CARE,BRITISH GAS,962.54,CASTLEMEAD,ELECTRICITY,5902499387,1000054825
03.12.2021,ADULT SOCIAL CARE,BRITISH GAS,"1,025.63",CASTLEMEAD,ELECTRICITY,5902499430,1000054825
03.12.2021,ADULT SOCIAL CARE,BRITISH GAS,"1,049.69",CASTLEMEAD,ELECTRICITY,5902499415,1000054825
03.12.2021,ADULT SOCIAL CARE,BRITISH GAS,"1,232.83",CASTLEMEAD,ELECTRICITY,5902499389,1000054825
03.12.2021,ADULT SOCIAL CARE,REDACTED PERSONAL DATA,277.6,DISCHARGE TO ACCESS,SUPPORTED LIVING,REDACTED,REDACTED
03.12.2021,ADULT SOCIAL CARE,NPOWER LTD,376.23,FRED FRANCIS CENTRE,ELECTRICITY,5902499317,1000078994
03.12.2021,ADULT SOCIAL CARE,ACCESS MOBILITY TRANSPORT LTD,"2,701.60",LD LTS 18-64,CLIENT TRANSPORT,2103354658,1000074637
03.12.2021,ADULT SOCIAL CARE,ACT TOO LTD,400,LD LTS 18-64,DAYCARE,2103354657,1000053657
03.12.2021,ADULT SOCIAL CARE,ACT TOO LTD,400,LD LTS 18-64,DAYCARE,2103354660,1000053657
03.12.2021,ADULT SOCIAL CARE,ACT TOO LTD,400,LD LTS 18-64,DAYCARE,2103354665,1000053657
03.12.2021,ADULT SOCIAL CARE,THE NEW SHOOTS,300,LD LTS 18-64,DAYCARE,2103354655,1000073970
03.12.2021,ADULT SOCIAL CARE,DARETHEALTHCARE UK LTD,599.22,LD LTS 18-64,SUPPORTED LIVING,2103354661,1000059149
03.12.2021,ADULT SOCIAL CARE,ABILITY FOCUS LTD,"2,156.00",LD LTS 18-64,SUPPORTED LIVING,2103354663,1000084199
03.12.2021,ADULT SOCIAL CARE,REDACTED PERSONAL DATA,624.6,LD LTS 18-64,SUPPORTED LIVING,REDACTED,REDACTED
03.12.2021,ADULT SOCIAL CARE,REDACTED PERSONAL DATA,832.8,LD LTS 18-64,SUPPORTED LIVING,REDACTED,REDACTED
03.12.2021,ADULT SOCIAL CARE,PLUS SERVICES,"-3,134.70",LD LTS 65+,"MAND STATUTORY CHARGES, RESIDENTIAL",2103354322,1000021241
03.12.2021,ADULT SOCIAL CARE,PLUS SERVICES,"41,645.40",LD LTS 65+,RESIDENTIAL CARE,2103354321,1000021241
03.12.2021,ADULT SOCIAL CARE,REDACTED PERSONAL DATA,277.6,MH LTS 18-64,SUPPORTED LIVING,REDACTED,REDACTED
03.12.2021,ADULT SOCIAL CARE,REDACTED PERSONAL DATA,277.6,MH LTS 18-64,SUPPORTED LIVING,REDACTED,REDACTED
03.12.2021,ADULT SOCIAL CARE,REDACTED PERSONAL DATA,277.6,MH LTS 18-64,SUPPORTED LIVING,REDACTED,REDACTED
03.12.2021,ADULT SOCIAL CARE,REDACTED PERSONAL DATA,277.6,MH LTS 18-64,SUPPORTED LIVING,REDACTED,REDACTED
03.12.2021,ADULT SOCIAL CARE,REDACTED PERSONAL DATA,277.6,MH LTS 18-64,SUPPORTED LIVING,REDACTED,REDACTED
03.12.2021,ADULT SOCIAL CARE,REDACTED PERSONAL DATA,277.6,MH LTS 18-64,SUPPORTED LIVING,REDACTED,REDACTED
03.12.2021,ADULT SOCIAL CARE,REDACTED PERSONAL DATA,277.6,MH LTS 18-64,SUPPORTED LIVING,REDACTED,REDACTED
03.12.2021,ADULT SOCIAL CARE,REDACTED PERSONAL DATA,277.6,MH LTS 18-64,SUPPORTED LIVING,REDACTED,REDACTED
03.12.2021,ADULT SOCIAL CARE,REDACTED PERSONAL DATA,277.6,MH LTS 18-64,SUPPORTED LIVING,REDACTED,REDACTED
03.12.2021,ADULT SOCIAL CARE,REDACTED PERSONAL DATA,282.75,MH LTS 18-64,SUPPORTED LIVING,REDACTED,REDACTED
03.12.2021,ADULT SOCIAL CARE,REDACTED PERSONAL DATA,312.3,MH LTS 18-64,SUPPORTED LIVING,REDACTED,REDACTED
03.12.2021,ADULT SOCIAL CARE,REDACTED PERSONAL DATA,312.3,MH LTS 18-64,SUPPORTED LIVING,REDACTED,REDACTED
03.12.2021,ADULT SOCIAL CARE,REDACTED PERSONAL DATA,312.3,MH LTS 18-64,SUPPORTED LIVING,REDACTED,REDACTED
03.12.2021,ADULT SOCIAL CARE,REDACTED PERSONAL DATA,312.3,MH LTS 18-64,SUPPORTED LIVING,REDACTED,REDACTED
03.12.2021,ADULT SOCIAL CARE,REDACTED PERSONAL DATA,312.3,MH LTS 18-64,SUPPORTED LIVING,REDACTED,REDACTED
03.12.2021,ADULT SOCIAL CARE,REDACTED PERSONAL DATA,347,MH LTS 18-64,SUPPORTED LIVING,REDACTED,REDACTED
03.12.2021,ADULT SOCIAL CARE,REDACTED PERSONAL DATA,347,MH LTS 18-64,SUPPORTED LIVING,REDACTED,REDACTED
03.12.2021,ADULT SOCIAL CARE,REDACTED PERSONAL DATA,347,MH LTS 18-64,SUPPORTED LIVING,REDACTED,REDACTED
03.12.2021,ADULT SOCIAL CARE,REDACTED PERSONAL DATA,347,MH LTS 18-64,SUPPORTED LIVING,REDACTED,REDACTED
03.12.2021,ADULT SOCIAL CARE,REDACTED PERSONAL DATA,347,MH LTS 18-64,SUPPORTED LIVING,REDACTED,REDACTED
03.12.2021,ADULT SOCIAL CARE,REDACTED PERSONAL DATA,347,MH LTS 18-64,SUPPORTED LIVING,REDACTED,REDACTED
03.12.2021,ADULT SOCIAL CARE,REDACTED PERSONAL DATA,347,MH LTS 18-64,SUPPORTED LIVING,REDACTED,REDACTED
03.12.2021,ADULT SOCIAL CARE,REDACTED PERSONAL DATA,381.7,MH LTS 18-64,SUPPORTED LIVING,REDACTED,REDACTED
03.12.2021,ADULT SOCIAL CARE,REDACTED PERSONAL DATA,416.4,MH LTS 18-64,SUPPORTED LIVING,REDACTED,REDACTED
03.12.2021,ADULT SOCIAL CARE,REDACTED PERSONAL DATA,416.4,MH LTS 18-64,SUPPORTED LIVING,REDACTED,REDACTED
03.12.2021,ADULT SOCIAL CARE,REDACTED PERSONAL DATA,416.4,MH LTS 18-64,SUPPORTED LIVING,REDACTED,REDACTED
03.12.2021,ADULT SOCIAL CARE,REDACTED PERSONAL DATA,416.4,MH LTS 18-64,SUPPORTED LIVING,REDACTED,REDACTED
03.12.2021,ADULT SOCIAL CARE,REDACTED PERSONAL DATA,416.4,MH LTS 18-64,SUPPORTED LIVING,REDACTED,REDACTED
03.12.2021,ADULT SOCIAL CARE,REDACTED PERSONAL DATA,416.4,MH LTS 18-64,SUPPORTED LIVING,REDACTED,REDACTED
03.12.2021,ADULT SOCIAL CARE,REDACTED PERSONAL DATA,416.4,MH LTS 18-64,SUPPORTED LIVING,REDACTED,REDACTED
03.12.2021,ADULT SOCIAL CARE,REDACTED PERSONAL DATA,485.8,MH LTS 18-64,SUPPORTED LIVING,REDACTED,REDACTED
03.12.2021,ADULT SOCIAL CARE,REDACTED PERSONAL DATA,485.8,MH LTS 18-64,SUPPORTED LIVING,REDACTED,REDACTED
03.12.2021,ADULT SOCIAL CARE,REDACTED PERSONAL DATA,485.8,MH LTS 18-64,SUPPORTED LIVING,REDACTED,REDACTED
03.12.2021,ADULT SOCIAL CARE,REDACTED PERSONAL DATA,485.8,MH LTS 18-64,SUPPORTED LIVING,REDACTED,REDACTED
03.12.2021,ADULT SOCIAL CARE,REDACTED PERSONAL DATA,485.8,MH LTS 18-64,SUPPORTED LIVING,REDACTED,REDACTED
03.12.2021,ADULT SOCIAL CARE,REDACTED PERSONAL DATA,485.8,MH LTS 18-64,SUPPORTED LIVING,REDACTED,REDACTED
03.12.2021,ADULT SOCIAL CARE,REDACTED PERSONAL DATA,520.5,MH LTS 18-64,SUPPORTED LIVING,REDACTED,REDACTED
03.12.2021,ADULT SOCIAL CARE,REDACTED PERSONAL DATA,520.5,MH LTS 18-64,SUPPORTED LIVING,REDACTED,REDACTED
03.12.2021,ADULT SOCIAL CARE,REDACTED PERSONAL DATA,555.2,MH LTS 18-64,SUPPORTED LIVING,REDACTED,REDACTED
03.12.2021,ADULT SOCIAL CARE,REDACTED PERSONAL DATA,555.2,MH LTS 18-64,SUPPORTED LIVING,REDACTED,REDACTED
03.12.2021,ADULT SOCIAL CARE,REDACTED PERSONAL DATA,555.2,MH LTS 18-64,SUPPORTED LIVING,REDACTED,REDACTED
03.12.2021,ADULT SOCIAL CARE,REDACTED PERSONAL DATA,607.25,MH LTS 18-64,SUPPORTED LIVING,REDACTED,REDACTED
03.12.2021,ADULT SOCIAL CARE,REDACTED PERSONAL DATA,624.6,MH LTS 18-64,SUPPORTED LIVING,REDACTED,REDACTED
03.12.2021,ADULT SOCIAL CARE,REDACTED PERSONAL DATA,624.6,MH LTS 18-64,SUPPORTED LIVING,REDACTED,REDACTED
03.12.2021,ADULT SOCIAL CARE,REDACTED PERSONAL DATA,624.6,MH LTS 18-64,SUPPORTED LIVING,REDACTED,REDACTED
03.12.2021,ADULT SOCIAL CARE,REDACTED PERSONAL DATA,728.7,MH LTS 18-64,SUPPORTED LIVING,REDACTED,REDACTED
03.12.2021,ADULT SOCIAL CARE,REDACTED PERSONAL DATA,971.6,MH LTS 18-64,SUPPORTED LIVING,REDACTED,REDACTED
03.12.2021,ADULT SOCIAL CARE,REDACTED PERSONAL DATA,"1,170.00",MH LTS 18-64,SUPPORTED LIVING,REDACTED,REDACTED
03.12.2021,ADULT SOCIAL CARE,REDACTED PERSONAL DATA,277.6,MH LTS 65+,SUPPORTED LIVING,REDACTED,REDACTED
03.12.2021,ADULT SOCIAL CARE,REDACTED PERSONAL DATA,277.6,MH LTS 65+,SUPPORTED LIVING,REDACTED,REDACTED
03.12.2021,ADULT SOCIAL CARE,REDACTED PERSONAL DATA,277.6,MH LTS 65+,SUPPORTED LIVING,REDACTED,REDACTED
03.12.2021,ADULT SOCIAL CARE,REDACTED PERSONAL DATA,312.3,MH LTS 65+,SUPPORTED LIVING,REDACTED,REDACTED
03.12.2021,ADULT SOCIAL CARE,REDACTED PERSONAL DATA,364.35,MH LTS 65+,SUPPORTED LIVING,REDACTED,REDACTED
03.12.2021,ADULT SOCIAL CARE,REDACTED PERSONAL DATA,399.05,MH LTS 65+,SUPPORTED LIVING,REDACTED,REDACTED
03.12.2021,ADULT SOCIAL CARE,REDACTED PERSONAL DATA,416.4,MH LTS 65+,SUPPORTED LIVING,REDACTED,REDACTED
03.12.2021,ADULT SOCIAL CARE,REDACTED PERSONAL DATA,694,MH LTS 65+,SUPPORTED LIVING,REDACTED,REDACTED
03.12.2021,ADULT SOCIAL CARE,REDACTED PERSONAL DATA,711.35,MH LTS 65+,SUPPORTED LIVING,REDACTED,REDACTED
03.12.2021,ADULT SOCIAL CARE,REDACTED PERSONAL DATA,763.4,MH LTS 65+,SUPPORTED LIVING,REDACTED,REDACTED
03.12.2021,ADULT SOCIAL CARE,REDACTED PERSONAL DATA,832.8,MH LTS 65+,SUPPORTED LIVING,REDACTED,REDACTED
03.12.2021,ADULT SOCIAL CARE,REDACTED PERSONAL DATA,"1,266.55",MH LTS 65+,SUPPORTED LIVING,REDACTED,REDACTED
03.12.2021,ADULT SOCIAL CARE,REDACTED PERSONAL DATA,659.3,PHY LTS 18-64,SUPPORTED LIVING,REDACTED,REDACTED
03.12.2021,ADULT SOCIAL CARE,THAMES HOMECARE SERVICE LTD,"26,600.00",REABLEMENT CONTRACT,HOMECARE - C&V,5902499380,1000079295
03.12.2021,ADULT SOCIAL CARE,DRUGLINK LTD,"3,128.00",SUB LTS 18-64,RESIDENTIAL CARE,2103354666,1000050942
03.12.2021,ASSET MANAGEMENT,SILWOOD FACILITIES LTD,"1,550.32",DISREPAIR,PAYMENTS FOR LEGAL SERVICES,5902499452,1000086443
03.12.2021,ASSET MANAGEMENT,SILWOOD FACILITIES LTD,"1,891.51",DISREPAIR,PAYMENTS FOR LEGAL SERVICES,5902499450,1000086443
03.12.2021,ASSET MANAGEMENT,SILWOOD FACILITIES LTD,"3,559.28",DISREPAIR,PAYMENTS FOR LEGAL SERVICES,5902499455,1000086443
03.12.2021,CENTRAL FUNCTIONS,CASTLE WATER LTD,660.69,AYLESBURY,WATER,5902499335,1000078867
03.12.2021,CENTRAL FUNCTIONS,CASTLE WATER LTD,856.62,AYLESBURY,WATER,5902499335,1000078867
03.12.2021,CHIEF EXECUTIVE,LIVESEY EXCHANGE,"22,800.00",CAPITAL PS (REGEN),CONSTRUCTION,5902499353,1000082440
03.12.2021,CHIEF EXECUTIVE'S OFFICE,PEDDLE MY WHEELS LTD,"10,000.00",ADDITIONAL RESTRICTIONS GRANT,GRANTS,5902499343,1000083767
03.12.2021,CHILDREN AND ADULT,FAITHFUL & GOULD,"32,843.23",CAPITAL PS (EDUCATION),CONSTRUCTION FEES,5902498708,1000061390
03.12.2021,CHILDREN AND ADULT,STONEGROVE LIMITED,"63,108.88",CAPITAL PS (EDUCATION),CONSTRUCTION FEES - INTERNAL,2103354668,3000001525
03.12.2021,CHILDREN AND FAMILIES,REDACTED PERSONAL DATA,373.2,16 PLUS TEAM,OTHER PAYMENTS FOR CLIENTS,REDACTED,REDACTED
03.12.2021,CHILDREN AND FAMILIES,ACAINN LTD,"4,680.00",ADOPT LONDON SOUTH,EXTERNAL AGENCIES AND BODIES,5902499395,1000083763
03.12.2021,CHILDREN AND FAMILIES,NETWORK RECRUITMENT SOLUTIONS,300,CONTACT SERVICE,OTHER PAYMENTS FOR CLIENTS,5902498203,1000071241
03.12.2021,CHILDREN AND FAMILIES,NETWORK RECRUITMENT SOLUTIONS,357.2,CONTACT SERVICE,OTHER PAYMENTS FOR CLIENTS,5902498202,1000071241
03.12.2021,CHILDREN AND FAMILIES,NETWORK RECRUITMENT SOLUTIONS,"1,050.00",CONTACT SERVICE,OTHER PAYMENTS FOR CLIENTS,5902498204,1000071241
03.12.2021,CHILDREN AND FAMILIES,NEGOTIATORS FAMILY CENTRE LIMITED,300,CONTACT SERVICE,OTHER PAYMENTS FOR CLIENTS,5902499371,1000075672
03.12.2021,CHILDREN AND FAMILIES,WELL-BEING PLATFORM LTD,561.17,FAMILY GROUP CONF�S,PROFESSIONAL FEES,5902499398,1000084384
03.12.2021,CHILDREN AND FAMILIES,REDACTED PERSONAL DATA,300,FE SUPPORT,CLIENT TRANSPORT,REDACTED,REDACTED
03.12.2021,CHILDREN AND FAMILIES,REDACTED PERSONAL DATA,500,FE SUPPORT,OTHER PAYMENTS FOR CLIENTS,REDACTED,REDACTED
03.12.2021,CHILDREN AND FAMILIES,LOGICOUS LTD,"1,236.75",FRIENDS &FAMILY FOST,PAYMENTS TO CARERS,5902499365,1000073852
03.12.2021,CHILDREN AND FAMILIES,ZENITH CARS LTD,300,P & R CARE TEAM,CLIENT TRANSPORT,5902499457,1000070570
03.12.2021,CHILDREN AND FAMILIES,ZENITH CARS LTD,360,P & R CARE TEAM,CLIENT TRANSPORT,5902499460,1000070570
03.12.2021,CHILDREN AND FAMILIES,ZENITH CARS LTD,720,P & R CARE TEAM,CLIENT TRANSPORT,5902499459,1000070570
03.12.2021,CHILDREN AND FAMILIES,REDACTED PERSONAL DATA,"1,393.92",SEMI-IND LAC 16-17,OTHER PAYMENTS FOR CLIENTS,REDACTED,REDACTED
03.12.2021,CHILDREN AND FAMILIES,REDACTED PERSONAL DATA,565,SEMI-IND LAC 16-17,OTHER PAYMENTS FOR CLIENTS,REDACTED,REDACTED
03.12.2021,CHILDREN AND FAMILIES,ARC COMMUNITY TRUSTEES,650,SPECIAL GUARDIANSHIP,PAYMENTS TO CARERS,5902499373,1000046206
03.12.2021,CHILDREN AND FAMILIES,LINDA COBB,"1,000.00",SSCP TRAINING,TRAINING,5902499469,1000029191
03.12.2021,CHILDREN AND FAMILIES,REDACTED PERSONAL DATA,"3,257.15",STAYPUT- FOST CARERS,PAYMENTS TO CARERS,REDACTED,REDACTED
03.12.2021,CHILDREN AND FAMILIES,BE BRIGHT PROJECT LTD,705.52,TEAM A,PAYMENTS TO CARERS,5902499364,1000086212
03.12.2021,CHILDREN AND FAMILIES,ZENITH CARS LTD,775,TEAM B,CLIENT TRANSPORT,5902499453,1000070570
03.12.2021,CHILDREN AND FAMILIES,ZENITH CARS LTD,"1,040.00",TEAM C,CLIENT TRANSPORT,5902499453,1000070570
03.12.2021,CHILDREN AND FAMILIES,ZENITH CARS LTD,"1,520.00",TEAM D,CLIENT TRANSPORT,5902499453,1000070570
03.12.2021,CHILDREN AND FAMILIES,GROUNDWORK LONDON,"89,292.50",THE NEST 255 RYELANE,EXTERNAL AGENCIES AND BODIES,5902499355,1897585
03.12.2021,CHILDREN AND FAMILIES,GROUNDWORK LONDON,"89,292.50",THE NEST 255 RYELANE,EXTERNAL AGENCIES AND BODIES,5902499356,1897585
03.12.2021,CHILDREN AND FAMILIES,GROUNDWORK LONDON,"133,333.33",THE NEST 255 RYELANE,EXTERNAL AGENCIES AND BODIES,5902499354,1897585
03.12.2021,CHILDREN AND FAMILIES,FRESHVIEW ESTATES,822.94,UASC CARELEAVERS,EXTERNAL AGENCIES AND BODIES,5902499325,1000086397
03.12.2021,COMMUNITIES HRA,SURREY GARDENS T&RA,500,RESIDENTS PARTICIPATION FUND,GRANTS,5902499461,11021583
03.12.2021,COMMUNITIES HRA,SURREY GARDENS T&RA,"1,000.00",RESIDENTS PARTICIPATION FUND,GRANTS,5902499456,11021583
03.12.2021,CUSTOMER EXPERIENCE HGF,GUYS & ST THOMAS NHS FOUNDATION TRUST,"6,187.00",CORONER'S,OTHER CONTRACTORS,5902499414,1765536
03.12.2021,CUSTOMER EXPERIENCE HGF,GUYS & ST THOMAS NHS FOUNDATION TRUST,"9,758.00",CORONER'S,OTHER CONTRACTORS,5902499425,1765536
03.12.2021,CUSTOMER EXPERIENCE HGF,GUYS & ST THOMAS NHS FOUNDATION TRUST,"11,462.00",CORONER'S,OTHER CONTRACTORS,5902499423,1765536
03.12.2021,CUSTOMER EXPERIENCE HGF,GUYS & ST THOMAS NHS FOUNDATION TRUST,"11,538.00",CORONER'S,OTHER CONTRACTORS,5902499419,1765536
03.12.2021,CUSTOMER EXPERIENCE HGF,GUYS & ST THOMAS NHS FOUNDATION TRUST,"12,000.00",CORONER'S,OTHER CONTRACTORS,5902499421,1765536
03.12.2021,CUSTOMER EXPERIENCE HGF,IMPERIAL COLLEGE PROJECTS LTD,264,CORONER'S,PROFESSIONAL FEES,5902498651,1000080106
03.12.2021,CUSTOMER EXPERIENCE HGF,IMPERIAL COLLEGE PROJECTS LTD,292,CORONER'S,PROFESSIONAL FEES,5902498656,1000080106
03.12.2021,CUSTOMER EXPERIENCE HGF,IMPERIAL COLLEGE PROJECTS LTD,336,CORONER'S,PROFESSIONAL FEES,5902498654,1000080106
03.12.2021,CUSTOMER EXPERIENCE HGF,IMPERIAL COLLEGE PROJECTS LTD,644,CORONER'S,PROFESSIONAL FEES,5902498652,1000080106
03.12.2021,ENVIRONMENT AND LEISURE,STREET TREE LTD,"3,375.00",CAPITAL PS (LEISURE),CONST'N MAIN CONTRACT - NON CERTIFICATED,5902499418,1000055901
03.12.2021,ENVIRONMENT AND LEISURE,INTO SERVICES LONDON LTD,310,CAPITAL PS (LEISURE),CONST'N MAIN CONTRACT - NON CERTIFICATED,5902499385,1000059328
03.12.2021,ENVIRONMENT AND LEISURE,INTO SERVICES LONDON LTD,350,CAPITAL PS (LEISURE),CONST'N MAIN CONTRACT - NON CERTIFICATED,5902499386,1000059328
03.12.2021,ENVIRONMENT AND LEISURE,INTO SERVICES LONDON LTD,"1,500.00",CAPITAL PS (LEISURE),CONST'N MAIN CONTRACT - NON CERTIFICATED,5902499385,1000059328
03.12.2021,ENVIRONMENT AND LEISURE,INTO SERVICES LONDON LTD,"1,610.00",CAPITAL PS (LEISURE),CONST'N MAIN CONTRACT - NON CERTIFICATED,5902499440,1000059328
03.12.2021,ENVIRONMENT AND LEISURE,MSI MEDIA LTD.,900,CAPITAL PS (LEISURE),CONSTRUCTION FEES,5902499465,1000003237
03.12.2021,ENVIRONMENT AND LEISURE,CYCLEHOOP LTD,"2,970.00",CAPITAL PS (LEISURE),CONSTRUCTION FEES  - EXTERNAL,5902499422,1000057894
03.12.2021,ENVIRONMENT AND LEISURE,CYCLEHOOP LTD,"3,120.00",CAPITAL PS (LEISURE),CONSTRUCTION FEES  - EXTERNAL,5902499424,1000057894
03.12.2021,ENVIRONMENT AND LEISURE,INTO SERVICES LONDON LTD,500,CAPITAL PS (LEISURE),CONSTRUCTION SITE COSTS,5902499416,1000059328
03.12.2021,ENVIRONMENT AND LEISURE,GOOD WITH DEVICES LTD,945,CAPITAL PS (LEISURE),ICT ACQUISITION,5902499340,1000085257
03.12.2021,ENVIRONMENT DIRECTORATE,SOUTHWARK NEWSPAPER LTD,324,HIGHWAYS DEVELOPMENT,MARKETING & PUBLICITY SERVICES,5902499397,1556957
03.12.2021,ENVIRONMENT DIRECTORATE,TRAILPARTS LTD,315.5,STREET CLEANING-GENERAL,EQUIPMENT PURCHASE & REPAIR,5902499431,1648326
03.12.2021,ENVIRONMENT DIRECTORATE,ONSITE SUPPORT LTD,333.6,STREET CLEANING-GENERAL,EQUIPMENT PURCHASE & REPAIR,5902499417,1000043198
03.12.2021,ENVIRONMENT DIRECTORATE,ELLIOT ENVIRONMENTAL LTD,"1,200.00",STREET CLEANING-GENERAL,OTHER CONTRACTORS,5902499349,1000047392
03.12.2021,ENVIRONMENT DIRECTORATE,SHARPE PRITCHARD LLP,"26,934.00",SUSTAINABLE WASTE OVERHEADS,PAYMENTS FOR LEGAL SERVICES,5902499341,1790085
03.12.2021,F & C S EXCLUDING CORPORATE BUDGETS,REDACTED PERSONAL DATA,500,SESS,OTHER PAYMENTS FOR CLIENTS,REDACTED,REDACTED
03.12.2021,F & C S EXCLUDING CORPORATE BUDGETS,REDACTED PERSONAL DATA,500,SESS,OTHER PAYMENTS FOR CLIENTS,REDACTED,REDACTED
03.12.2021,F & C S EXCLUDING CORPORATE BUDGETS,REDACTED PERSONAL DATA,500,SESS,OTHER PAYMENTS FOR CLIENTS,REDACTED,REDACTED
03.12.2021,F & C S EXCLUDING CORPORATE BUDGETS,REDACTED PERSONAL DATA,500,SESS,OTHER PAYMENTS FOR CLIENTS,REDACTED,REDACTED
03.12.2021,F & C S EXCLUDING CORPORATE BUDGETS,REDACTED PERSONAL DATA,500,SESS,OTHER PAYMENTS FOR CLIENTS,REDACTED,REDACTED
03.12.2021,F & C S EXCLUDING CORPORATE BUDGETS,REDACTED PERSONAL DATA,500,SESS,OTHER PAYMENTS FOR CLIENTS,REDACTED,REDACTED
03.12.2021,F & C S EXCLUDING CORPORATE BUDGETS,REDACTED PERSONAL DATA,500,SESS,OTHER PAYMENTS FOR CLIENTS,REDACTED,REDACTED
03.12.2021,F & C S EXCLUDING CORPORATE BUDGETS,REDACTED PERSONAL DATA,500,SESS,OTHER PAYMENTS FOR CLIENTS,REDACTED,REDACTED
03.12.2021,F & C S EXCLUDING CORPORATE BUDGETS,REDACTED PERSONAL DATA,500,SESS,OTHER PAYMENTS FOR CLIENTS,REDACTED,REDACTED
03.12.2021,F & C S EXCLUDING CORPORATE BUDGETS,REDACTED PERSONAL DATA,500,SESS,OTHER PAYMENTS FOR CLIENTS,REDACTED,REDACTED
03.12.2021,F & C S EXCLUDING CORPORATE BUDGETS,REDACTED PERSONAL DATA,500,SESS,OTHER PAYMENTS FOR CLIENTS,REDACTED,REDACTED
03.12.2021,F & C S EXCLUDING CORPORATE BUDGETS,REDACTED PERSONAL DATA,500,SESS,OTHER PAYMENTS FOR CLIENTS,REDACTED,REDACTED
03.12.2021,F & C S EXCLUDING CORPORATE BUDGETS,REDACTED PERSONAL DATA,500,SESS,OTHER PAYMENTS FOR CLIENTS,REDACTED,REDACTED
03.12.2021,F & C S EXCLUDING CORPORATE BUDGETS,REDACTED PERSONAL DATA,500,SESS,OTHER PAYMENTS FOR CLIENTS,REDACTED,REDACTED
03.12.2021,F & C S EXCLUDING CORPORATE BUDGETS,REDACTED PERSONAL DATA,500,SESS,OTHER PAYMENTS FOR CLIENTS,REDACTED,REDACTED
03.12.2021,F & C S EXCLUDING CORPORATE BUDGETS,REDACTED PERSONAL DATA,500,SESS,OTHER PAYMENTS FOR CLIENTS,REDACTED,REDACTED
03.12.2021,F & C S EXCLUDING CORPORATE BUDGETS,REDACTED PERSONAL DATA,500,SESS,OTHER PAYMENTS FOR CLIENTS,REDACTED,REDACTED
03.12.2021,F & C S EXCLUDING CORPORATE BUDGETS,REDACTED PERSONAL DATA,500,SESS,OTHER PAYMENTS FOR CLIENTS,REDACTED,REDACTED
03.12.2021,F & C S EXCLUDING CORPORATE BUDGETS,REDACTED PERSONAL DATA,500,SESS,OTHER PAYMENTS FOR CLIENTS,REDACTED,REDACTED
03.12.2021,F & C S EXCLUDING CORPORATE BUDGETS,REDACTED PERSONAL DATA,500,SESS,OTHER PAYMENTS FOR CLIENTS,REDACTED,REDACTED
03.12.2021,F & C S EXCLUDING CORPORATE BUDGETS,REDACTED PERSONAL DATA,500,SESS,OTHER PAYMENTS FOR CLIENTS,REDACTED,REDACTED
03.12.2021,F & C S EXCLUDING CORPORATE BUDGETS,REDACTED PERSONAL DATA,500,SESS,OTHER PAYMENTS FOR CLIENTS,REDACTED,REDACTED
03.12.2021,F & C S EXCLUDING CORPORATE BUDGETS,REDACTED PERSONAL DATA,500,SESS,OTHER PAYMENTS FOR CLIENTS,REDACTED,REDACTED
03.12.2021,F & C S EXCLUDING CORPORATE BUDGETS,REDACTED PERSONAL DATA,500,SESS,OTHER PAYMENTS FOR CLIENTS,REDACTED,REDACTED
03.12.2021,HOUSING GENERAL FUND,STANNAH LIFT SERVICES LTD,"2,723.00",CAPITAL PS (HOUSING GF),CAPITAL GRANTS,5902499359,1063595
03.12.2021,HOUSING GENERAL FUND,SERVELEC SOCIAL CARE LTD,"5,200.00",CAPITAL PS (STRAT SERV),ICT ACQUISITION,5902498653,1000077688
03.12.2021,HOUSING HRA,CALFORD SEADEN LLP,"2,058.00",CAPITAL PS (HRA),CONSTRUCTION FEES  - EXTERNAL,5902498176,1061592
03.12.2021,HOUSING HRA,CURA SURVEYS LIMITED,"12,000.00",CAPITAL PS (HRA),CONSTRUCTION FEES  - EXTERNAL,5902497445,1000087463
03.12.2021,HOUSING HRA,WESTON WILLIAMSON + PARTNERS LLP,"17,105.00",CAPITAL PS (HRA),CONSTRUCTION FEES - ARCHITECT,5902499378,1000046660
03.12.2021,HOUSING HRA,CALFORD SEADEN LLP,"2,352.00",CAPITAL PS (HRA),CONSTRUCTION FEES - EMPLOYERS AGENT,5902498168,1061592
03.12.2021,HOUSING HRA,SHARPE PRITCHARD LLP,"2,100.00",CAPITAL PS (HRA),CONSTRUCTION FEES - LEGAL,5902499484,1790085
03.12.2021,HOUSING HRA,ENGIE REGENERATION (APOLLO) LTD,"446,208.76",CAPITAL PS (HRA),CONSTRUCTION MAIN CONTRACT -CERTIFICATED,2103354119,4000449
03.12.2021,HOUSING HRA,SALTASH ENTERPRISES LTD,"82,398.05",CAPITAL PS (HRA),CONSTRUCTION MAIN CONTRACT -CERTIFICATED,2103354672,4013605
03.12.2021,HOUSING HRA,ENGIE REGENERATION LTD,"73,046.87",CAPITAL PS (HRA),CONSTRUCTION MAIN CONTRACT -CERTIFICATED,2103354669,3000002035
03.12.2021,HOUSING HRA,GUILDMORE LTD,"328,630.34",CAPITAL PS (HRA),CONSTRUCTION MAIN CONTRACT -CERTIFICATED,2103354079,3000002150
03.12.2021,HOUSING HRA,LEVITT BERNSTEIN ASSOCIATION LIMITED,"9,750.00",CAPITAL PS (REGEN),CONSTRUCTION FEES - ARCHITECT,5902499347,1000036622
03.12.2021,HOUSING HRA,D R M M LIMITED,"80,283.71",CAPITAL PS (REGEN),CONSTRUCTION FEES - ARCHITECT,5902499342,1000087290
03.12.2021,LEISURE DIRECTORATE,SOUTH LONDON GALLERY,"12,875.00",ARTS GRANTS,GRANTS,5902499464,11011694
03.12.2021,LEISURE DIRECTORATE,SOUTH LONDON GALLERY,"12,875.00",ARTS GRANTS,GRANTS,5902499464,11011694
03.12.2021,LEISURE DIRECTORATE,SOUTH LONDON GALLERY,"12,875.00",ARTS GRANTS,GRANTS,5902499467,11011694
03.12.2021,LEISURE DIRECTORATE,F G MARSHALL LTD,339.32,CREMATORIUM,MATERIALS,5902498750,1002639
03.12.2021,LEISURE DIRECTORATE,INFINITY NETWORKS LTD,"1,190.00",IT DEVELOPMENT,COMMS & COMPUTING CONTRACT CHARGES,5902499369,1000035571
03.12.2021,LEISURE DIRECTORATE,INFINITY NETWORKS LTD,"1,816.00",IT DEVELOPMENT,COMMS & COMPUTING CONTRACT CHARGES,5902499374,1000035571
03.12.2021,LEISURE DIRECTORATE,TECHNICAL SURFACES,375,SOUTHWARK AREA TEAM,OTHER R&M,5902499375,1000011451
03.12.2021,LEISURE DIRECTORATE,TECHNICAL SURFACES,460,SOUTHWARK AREA TEAM,OTHER R&M,5902499366,1000011451
03.12.2021,PUBLIC HEALTH,REDACTED PERSONAL DATA,500,COVID-19 CONTROL OUTBREAK MGMNT.FUND,OTHER PAYMENTS FOR CLIENTS,REDACTED,REDACTED
03.12.2021,PUBLIC HEALTH,REDACTED PERSONAL DATA,500,COVID-19 CONTROL OUTBREAK MGMNT.FUND,OTHER PAYMENTS FOR CLIENTS,REDACTED,REDACTED
03.12.2021,PUBLIC HEALTH,KETRA,"25,600.00",PLACE & HEALTH IMPROVEMENT,EXTERNAL AGENCIES AND BODIES,5902499338,1770066
03.12.2021,PUBLIC HEALTH,ASTLEY COOPER ROAD T&RA,"2,880.00",PLACE & HEALTH IMPROVEMENT,EXTERNAL AGENCIES AND BODIES,5902499333,11059315
03.12.2021,PUBLIC HEALTH,CITY HOPE CHURCH,"3,024.00",PLACE & HEALTH IMPROVEMENT,EXTERNAL AGENCIES AND BODIES,5902499328,1000035253
03.12.2021,PUBLIC HEALTH,BURGESS SPORTS,"6,912.00",PLACE & HEALTH IMPROVEMENT,EXTERNAL AGENCIES AND BODIES,5902499445,1000069532
03.12.2021,PUBLIC HEALTH,SKYWAY,"1,152.00",PLACE & HEALTH IMPROVEMENT,EXTERNAL AGENCIES AND BODIES,5902499462,1000069595
03.12.2021,PUBLIC HEALTH,FAST58,"4,032.00",PLACE & HEALTH IMPROVEMENT,EXTERNAL AGENCIES AND BODIES,5902499388,1000084542
03.12.2021,PUBLIC HEALTH,MAGNA GROUPS ENTERPRISES LIMITED,"6,912.00",PLACE & HEALTH IMPROVEMENT,EXTERNAL AGENCIES AND BODIES,5902499318,1000087109
03.12.2021,PUBLIC HEALTH,MAGNA GROUPS ENTERPRISES LIMITED,"6,912.00",PLACE & HEALTH IMPROVEMENT,EXTERNAL AGENCIES AND BODIES,5902499322,1000087109
03.12.2021,REGENERATION,SOCIAL LIFE LTD,"3,675.00",MASTER PLAN-H/WAY & TRANS INTERCHANGE,CONSULTANTS SERVICES,5902499367,1000084157
03.12.2021,RESIDENT SERVICES,VIBRANT ENERGY MATTERS LTD,732,ENERGY MANAGEMENT,PROFESSIONAL FEES,5902499473,1000068154
03.12.2021,RESIDENT SERVICES,KENT COUNTY COUNCIL - LASER,"4,149.65",NORTH AREA RUNNING COSTS,CATERING MATERIALS & SUPPLIES,5902499376,1000012926
03.12.2021,RESIDENT SERVICES,THE CONSERVATION VOLUNTEERS,"3,600.00",PECKHAM,GROUNDS MAINTENANCE,5902499383,1872821
03.12.2021,RESIDENT SERVICES HGF,FRESHVIEW ESTATES LTD,"1,058.64",HOMELESS PROJECTS,GRANTS,5902499444,1000081189
03.12.2021,RESIDENT SERVICES HGF,NATIONWIDE ACCOMMODATION,"109,675.44",NIGHTLY TA (NSC),EXTERNAL AGENCIES AND BODIES,5902499345,1000076112
03.12.2021,RESIDENT SERVICES HGF,GOLDSTONE ESTATES LTD,"8,911.00",NIGHTLY TA (NSC),EXTERNAL AGENCIES AND BODIES,5902499483,1000076548
03.12.2021,SBS SUPPORT,EDEN SPRINGS (UK) LTD,"3,240.18",R & M OVERHEADS,CATERING MATERIALS & SUPPLIES,5902499447,1000037350
03.12.2021,STRATEGIC FINANCING BUDGETS,COMENSURA LTD,"687,505.48",AGENCY RECOVERY,AGENCY STAFF,5902499446,1000051261
04.12.2021,ASSET MANAGEMENT,ARMINA LTD,"2,488.30",DISREPAIR,PAYMENTS FOR LEGAL SERVICES,2103354113,3000002121
04.12.2021,CHIEF EXECUTIVE,HYDE NEW BUILD LTD,"5,000.00",CAPITAL PS (REGEN),CONSTRUCTION MAIN CONTRACT,5902498665,1000077494
04.12.2021,CHILDREN AND ADULT,CBS MAINTENANCE SERVICES LTD,"4,953.39",CAPITAL PS (EDUCATION),CONSTRUCTION FEES - INTERNAL,5902498547,1000072375
04.12.2021,COMMUNITIES HRA,LEATHERMARKET JMB HOUSING,"117,209.00",LEATHERMARKET CO-OP,M&M ALLOWANCE CO-OPS,5902498718,11182872
04.12.2021,COMMUNITIES HRA,LONGFIELD T&RA,"1,908.50",RESIDENTS PARTICIPATION FUND,GRANTS,5902498554,1000059281
04.12.2021,CUSTOMER EXPERIENCE HGF,SUPRA UK LTD T/A THE KEYSAFE COMPANY,"6,144.00",LAMBETH RESPONSE,EQUIPMENT PURCHASE & REPAIR,5902498740,1000048522
04.12.2021,EDUCATION,JOHN GUEST SAFEGUARDING LIMITED,325,GOVERNOR SUPPORT,CONSULTANTS SERVICES,5902498644,1000065465
04.12.2021,ENVIRONMENT DIRECTORATE,ONSITE SUPPORT LTD,"1,184.40",COMMERCIAL WASTE,EQUIPMENT PURCHASE & REPAIR,5902499316,1000043198
04.12.2021,HOUSING GENERAL FUND,AJM ADAPTIONS LTD,"7,823.00",CAPITAL PS (HOUSING GF),CAPITAL GRANTS,5902498717,1000080297
04.12.2021,HOUSING HRA,CALFORD SEADEN LLP,795.76,CAPITAL PS (HRA),CONSTRUCTION FEES  - EXTERNAL,5902499327,1061592
04.12.2021,HOUSING HRA,MARTIN ARNOLD LTD,"1,802.49",CAPITAL PS (HRA),CONSTRUCTION FEES  - EXTERNAL,5902498771,1000076993
04.12.2021,PUBLIC HEALTH,TIME & TALENTS ASSOCIATION,"2,592.00",PLACE & HEALTH IMPROVEMENT,EXTERNAL AGENCIES AND BODIES,5902499442,1757632
04.12.2021,REGENERATION,BLACKFRIARS SETTLEMENT,"4,490.00",BLACKFRIARS ROAD PROJECT,MARKETING & PUBLICITY SERVICES,5902498596,1013178
04.12.2021,RESIDENT SERVICES HGF,THE KNOWLEDGE ACADEMY LTD,"1,495.00",HOUSING OPTIONS,TRAINING,5902498691,1000064533
05.12.2021,ASSET MANAGEMENT,BRIDGEWATER ROOFING CONTRACTORS LTD,942,DISREPAIR,PAYMENTS FOR LEGAL SERVICES,2103352595,3000001482
05.12.2021,ASSET MANAGEMENT HGF,KENT COUNTY COUNCIL - LASER,"31,540.79",160 TOOLEY ST.,ELECTRICITY,5902498914,1000012926
05.12.2021,CHIEF EXECUTIVE,STANDAGE & CO LTD,"35,705.61",CAPITAL PS (REGEN),CONSTRUCTION MAIN CONTRACT -CERTIFICATED,5902499372,11223389
05.12.2021,CHILDREN AND ADULT,BURO HAPPOLD LIMITED,"12,300.00",CAPITAL PS (EDUCATION),CONSTRUCTION FEES,5902498768,1000086000
05.12.2021,CHILDREN AND FAMILIES,ASA ASSESSMENT & CONSULTANCY LIMITED,600,UASC LAC 16-17,EXTERNAL AGENCIES AND BODIES,5902499160,1000087272
05.12.2021,CHILDREN AND FAMILIES,ASA ASSESSMENT & CONSULTANCY LIMITED,625,UASC LAC 16-17,EXTERNAL AGENCIES AND BODIES,5902499157,1000087272
05.12.2021,CHILDREN AND FAMILIES,ASA ASSESSMENT & CONSULTANCY LIMITED,625,UASC LAC 16-17,EXTERNAL AGENCIES AND BODIES,5902499159,1000087272
05.12.2021,CHILDREN AND FAMILIES,ASA ASSESSMENT & CONSULTANCY LIMITED,"1,225.00",UASC LAC 16-17,EXTERNAL AGENCIES AND BODIES,5902499161,1000087272
05.12.2021,ENVIRONMENT AND LEISURE,RH WROUGHT IRON,"1,000.00",CAPITAL PS (LEISURE),CONSTRUCTION MAIN CONTRACT -CERTIFICATED,2103352599,3000000680
05.12.2021,ENVIRONMENT AND LEISURE,RH WROUGHT IRON,"1,000.00",CAPITAL PS (LEISURE),CONSTRUCTION MAIN CONTRACT -CERTIFICATED,2103352599,3000000680
05.12.2021,ENVIRONMENT AND LEISURE,BIONICAL SOLUTIONS LIMITED,"5,400.00",STOP SMOKING,EXTERNAL AGENCIES AND BODIES,5902498685,1000084774
05.12.2021,ENVIRONMENT DIRECTORATE,RED R DESIGN,535,HIGHWAYS DEVELOPMENT,MISCELLANEOUS EXPENSES,5902498719,1000035984
05.12.2021,F & C S EXCLUDING CORPORATE BUDGETS,CONNEXIONS CUISINE LTD,"1,083.10",CONSTITUTIONAL TEAM,REFRESHMENTS FOR MEETINGS,5902499390,11317153
05.12.2021,HOUSING GENERAL FUND,C & C BUILDERS LTD,"8,420.71",CAPITAL PS (HOUSING GF),CAPITAL GRANTS,5902499360,1000079100
05.12.2021,HOUSING GENERAL FUND,C & C BUILDERS LTD,"12,421.54",CAPITAL PS (HOUSING GF),CAPITAL GRANTS,5902499362,1000079100
05.12.2021,HOUSING HRA,AJMADAPTIONS LTD,630,CAPITAL PS (HRA),CONST'N MAIN CONTRACT - NON CERTIFICATED,2103354670,3000002056
05.12.2021,HOUSING HRA,AJMADAPTIONS LTD,"7,092.00",CAPITAL PS (HRA),CONST'N MAIN CONTRACT - NON CERTIFICATED,2103354670,3000002056
05.12.2021,HOUSING HRA,CALFORD SEADEN LLP,"3,757.59",CAPITAL PS (HRA),CONSTRUCTION FEES  - EXTERNAL,5902499323,1061592
05.12.2021,HOUSING HRA,CALFORD SEADEN LLP,"5,308.48",CAPITAL PS (HRA),CONSTRUCTION FEES  - EXTERNAL,5902499326,1061592
05.12.2021,HOUSING HRA,CALFORD SEADEN LLP,"6,007.37",CAPITAL PS (HRA),CONSTRUCTION FEES  - EXTERNAL,5902498975,1061592
05.12.2021,HOUSING HRA,CALFORD SEADEN LLP,"9,595.84",CAPITAL PS (HRA),CONSTRUCTION FEES  - EXTERNAL,5902499330,1061592
05.12.2021,HOUSING HRA,TRAFFIC SURVEYS UK LTD,550,CAPITAL PS (HRA),CONSTRUCTION FEES  - EXTERNAL,5902499358,1000077572
05.12.2021,HOUSING HRA,AJM ADAPTIONS LTD,"5,200.00",CAPITAL PS (HRA),UTILITIES INSTALLATION,5902498976,1000080297
05.12.2021,LEISURE DIRECTORATE,FOUNTAINS & FEATURES LTD,330,PARKS SERVICES DEVELOPMENT,PROFESSIONAL FEES,5902499124,1000082729
05.12.2021,LEISURE DIRECTORATE,FOUNTAINS & FEATURES LTD,"2,175.00",PARKS SERVICES DEVELOPMENT,PROFESSIONAL FEES,5902499124,1000082729
05.12.2021,RESIDENT SERVICES HGF,DOCUMENT OPTIONS LIMITED,255.26,HOUSING OPTIONS,OFFICE EXPENSES,5902499017,1000051744
06.12.2021,ADULT SOCIAL CARE,TAYE TRAINING AND CONSULTANCY LTD,600,ADULTS MULTI-AGENCY SAFEGUARDING TRNG,TRAINING,5902499570,1000085911
06.12.2021,ADULT SOCIAL CARE,THAMES WATER UTILITIES LTD,796.17,APPOINTEESHIPS,OTHER PAYMENTS FOR CLIENTS,2103355085,1630755
06.12.2021,ADULT SOCIAL CARE,INSIGHT SPECIALIST BEHAVIOURAL SERVICE LTD,459.95,APPOINTEESHIPS,OTHER PAYMENTS FOR CLIENTS,2103355074,1000071858
06.12.2021,ADULT SOCIAL CARE,REDACTED PERSONAL DATA,279.85,APPOINTEESHIPS,OTHER PAYMENTS FOR CLIENTS,REDACTED,REDACTED
06.12.2021,ADULT SOCIAL CARE,DGB SOLICITORS LLP,"18,286.10",APPOINTEESHIPS,OTHER PAYMENTS FOR CLIENTS,2103355076,1000045096
06.12.2021,ADULT SOCIAL CARE,THAMES HOMECARE SERVICE LTD,379.08,DISCHARGE TO ACCESS,HOMECARE - C&V,2103354993,1000079295
06.12.2021,ADULT SOCIAL CARE,POHWER,886.36,INDEPENDENT MC ADVOCACY,ADVOCACY,5902499571,1000070508
06.12.2021,ADULT SOCIAL CARE,POHWER,886.36,INDEPENDENT MC ADVOCACY,ADVOCACY,5902499574,1000070508
06.12.2021,ADULT SOCIAL CARE,POHWER,"1,199.35",INDEPENDENT MC ADVOCACY,ADVOCACY,5902499571,1000070508
06.12.2021,ADULT SOCIAL CARE,POHWER,"1,199.35",INDEPENDENT MC ADVOCACY,ADVOCACY,5902499574,1000070508
06.12.2021,ADULT SOCIAL CARE,POHWER,"2,354.38",INDEPENDENT MC ADVOCACY,ADVOCACY,5902499571,1000070508
06.12.2021,ADULT SOCIAL CARE,POHWER,"2,354.38",INDEPENDENT MC ADVOCACY,ADVOCACY,5902499574,1000070508
06.12.2021,ADULT SOCIAL CARE,POHWER,"4,345.91",INDEPENDENT MC ADVOCACY,ADVOCACY,5902499571,1000070508
06.12.2021,ADULT SOCIAL CARE,POHWER,"4,345.91",INDEPENDENT MC ADVOCACY,ADVOCACY,5902499574,1000070508
06.12.2021,ADULT SOCIAL CARE,THAMES HOMECARE SERVICE LTD,262.08,LD LTS 18-64,HOMECARE - SPOT,2103355011,1000079295
06.12.2021,ADULT SOCIAL CARE,THAMES HOMECARE SERVICE LTD,655.2,LD STS 18-64,HOMECARE - IC,2103355012,1000079295
06.12.2021,ADULT SOCIAL CARE,THAMES HOMECARE SERVICE LTD,655.2,MEM LTS 65+,HOMECARE - SPOT,2103354949,1000079295
06.12.2021,ADULT SOCIAL CARE,THAMES HOMECARE SERVICE LTD,486.72,MH LTS 65+,HOMECARE - SPOT,2103354850,1000079295
06.12.2021,ADULT SOCIAL CARE,THAMES HOMECARE SERVICE LTD,266.76,PHY LTS 18-64,HOMECARE - SPOT,2103354840,1000079295
06.12.2021,ADULT SOCIAL CARE,THAMES HOMECARE SERVICE LTD,271.44,PHY LTS 18-64,HOMECARE - SPOT,2103354967,1000079295
06.12.2021,ADULT SOCIAL CARE,THAMES HOMECARE SERVICE LTD,271.44,PHY LTS 18-64,HOMECARE - SPOT,2103354973,1000079295
06.12.2021,ADULT SOCIAL CARE,THAMES HOMECARE SERVICE LTD,299.52,PHY LTS 18-64,HOMECARE - SPOT,2103354984,1000079295
06.12.2021,ADULT SOCIAL CARE,THAMES HOMECARE SERVICE LTD,327.6,PHY LTS 18-64,HOMECARE - SPOT,2103354934,1000079295
06.12.2021,ADULT SOCIAL CARE,THAMES HOMECARE SERVICE LTD,374.4,PHY LTS 18-64,HOMECARE - SPOT,2103354838,1000079295
06.12.2021,ADULT SOCIAL CARE,THAMES HOMECARE SERVICE LTD,379.08,PHY LTS 18-64,HOMECARE - SPOT,2103354866,1000079295
06.12.2021,ADULT SOCIAL CARE,THAMES HOMECARE SERVICE LTD,589.68,PHY LTS 18-64,HOMECARE - SPOT,2103354884,1000079295
06.12.2021,ADULT SOCIAL CARE,THAMES HOMECARE SERVICE LTD,589.68,PHY LTS 18-64,HOMECARE - SPOT,2103354933,1000079295
06.12.2021,ADULT SOCIAL CARE,THAMES HOMECARE SERVICE LTD,655.2,PHY LTS 18-64,HOMECARE - SPOT,2103354959,1000079295
06.12.2021,ADULT SOCIAL CARE,THAMES HOMECARE SERVICE LTD,669.24,PHY LTS 18-64,HOMECARE - SPOT,2103354921,1000079295
06.12.2021,ADULT SOCIAL CARE,THAMES HOMECARE SERVICE LTD,720.72,PHY LTS 18-64,HOMECARE - SPOT,2103354873,1000079295
06.12.2021,ADULT SOCIAL CARE,THAMES HOMECARE SERVICE LTD,851.76,PHY LTS 18-64,HOMECARE - SPOT,2103355003,1000079295
06.12.2021,ADULT SOCIAL CARE,THAMES HOMECARE SERVICE LTD,870.48,PHY LTS 18-64,HOMECARE - SPOT,2103354971,1000079295
06.12.2021,ADULT SOCIAL CARE,THAMES HOMECARE SERVICE LTD,936,PHY LTS 18-64,HOMECARE - SPOT,2103354940,1000079295
06.12.2021,ADULT SOCIAL CARE,THAMES HOMECARE SERVICE LTD,288.82,PHY LTS 65+,HOMECARE - C&V,2103354875,1000079295
06.12.2021,ADULT SOCIAL CARE,THAMES HOMECARE SERVICE LTD,313.56,PHY LTS 65+,HOMECARE - C&V,2103354862,1000079295
06.12.2021,ADULT SOCIAL CARE,THAMES HOMECARE SERVICE LTD,332.28,PHY LTS 65+,HOMECARE - C&V,2103354897,1000079295
06.12.2021,ADULT SOCIAL CARE,THAMES HOMECARE SERVICE LTD,332.28,PHY LTS 65+,HOMECARE - C&V,2103354972,1000079295
06.12.2021,ADULT SOCIAL CARE,THAMES HOMECARE SERVICE LTD,393.12,PHY LTS 65+,HOMECARE - C&V,2103354870,1000079295
06.12.2021,ADULT SOCIAL CARE,THAMES HOMECARE SERVICE LTD,"1,179.36",PHY LTS 65+,HOMECARE - C&V,2103354856,1000079295
06.12.2021,ADULT SOCIAL CARE,THAMES HOMECARE SERVICE LTD,252.72,PHY LTS 65+,HOMECARE - SPOT,2103354858,1000079295
06.12.2021,ADULT SOCIAL CARE,THAMES HOMECARE SERVICE LTD,262.08,PHY LTS 65+,HOMECARE - SPOT,2103355015,1000079295
06.12.2021,ADULT SOCIAL CARE,THAMES HOMECARE SERVICE LTD,276.12,PHY LTS 65+,HOMECARE - SPOT,2103354998,1000079295
06.12.2021,ADULT SOCIAL CARE,THAMES HOMECARE SERVICE LTD,280.8,PHY LTS 65+,HOMECARE - SPOT,2103354901,1000079295
06.12.2021,ADULT SOCIAL CARE,THAMES HOMECARE SERVICE LTD,294.84,PHY LTS 65+,HOMECARE - SPOT,2103354925,1000079295
06.12.2021,ADULT SOCIAL CARE,THAMES HOMECARE SERVICE LTD,294.84,PHY LTS 65+,HOMECARE - SPOT,2103354937,1000079295
06.12.2021,ADULT SOCIAL CARE,THAMES HOMECARE SERVICE LTD,294.84,PHY LTS 65+,HOMECARE - SPOT,2103354943,1000079295
06.12.2021,ADULT SOCIAL CARE,THAMES HOMECARE SERVICE LTD,294.84,PHY LTS 65+,HOMECARE - SPOT,2103354957,1000079295
06.12.2021,ADULT SOCIAL CARE,THAMES HOMECARE SERVICE LTD,313.56,PHY LTS 65+,HOMECARE - SPOT,2103354970,1000079295
06.12.2021,ADULT SOCIAL CARE,THAMES HOMECARE SERVICE LTD,332.28,PHY LTS 65+,HOMECARE - SPOT,2103354872,1000079295
06.12.2021,ADULT SOCIAL CARE,THAMES HOMECARE SERVICE LTD,332.28,PHY LTS 65+,HOMECARE - SPOT,2103355007,1000079295
06.12.2021,ADULT SOCIAL CARE,THAMES HOMECARE SERVICE LTD,336.96,PHY LTS 65+,HOMECARE - SPOT,2103354846,1000079295
06.12.2021,ADULT SOCIAL CARE,THAMES HOMECARE SERVICE LTD,346.32,PHY LTS 65+,HOMECARE - SPOT,2103354935,1000079295
06.12.2021,ADULT SOCIAL CARE,THAMES HOMECARE SERVICE LTD,360.36,PHY LTS 65+,HOMECARE - SPOT,2103354854,1000079295
06.12.2021,ADULT SOCIAL CARE,THAMES HOMECARE SERVICE LTD,360.36,PHY LTS 65+,HOMECARE - SPOT,2103354960,1000079295
06.12.2021,ADULT SOCIAL CARE,THAMES HOMECARE SERVICE LTD,385.1,PHY LTS 65+,HOMECARE - SPOT,2103354876,1000079295
06.12.2021,ADULT SOCIAL CARE,THAMES HOMECARE SERVICE LTD,402.48,PHY LTS 65+,HOMECARE - SPOT,2103355010,1000079295
06.12.2021,ADULT SOCIAL CARE,THAMES HOMECARE SERVICE LTD,416.52,PHY LTS 65+,HOMECARE - SPOT,2103354977,1000079295
06.12.2021,ADULT SOCIAL CARE,THAMES HOMECARE SERVICE LTD,486.72,PHY LTS 65+,HOMECARE - SPOT,2103354991,1000079295
06.12.2021,ADULT SOCIAL CARE,THAMES HOMECARE SERVICE LTD,524.16,PHY LTS 65+,HOMECARE - SPOT,2103354898,1000079295
06.12.2021,ADULT SOCIAL CARE,THAMES HOMECARE SERVICE LTD,524.16,PHY LTS 65+,HOMECARE - SPOT,2103354942,1000079295
06.12.2021,ADULT SOCIAL CARE,THAMES HOMECARE SERVICE LTD,524.16,PHY LTS 65+,HOMECARE - SPOT,2103354950,1000079295
06.12.2021,ADULT SOCIAL CARE,THAMES HOMECARE SERVICE LTD,589.68,PHY LTS 65+,HOMECARE - SPOT,2103354852,1000079295
06.12.2021,ADULT SOCIAL CARE,THAMES HOMECARE SERVICE LTD,589.68,PHY LTS 65+,HOMECARE - SPOT,2103354976,1000079295
06.12.2021,ADULT SOCIAL CARE,THAMES HOMECARE SERVICE LTD,589.68,PHY LTS 65+,HOMECARE - SPOT,2103355005,1000079295
06.12.2021,ADULT SOCIAL CARE,THAMES HOMECARE SERVICE LTD,617.76,PHY LTS 65+,HOMECARE - SPOT,2103354927,1000079295
06.12.2021,ADULT SOCIAL CARE,THAMES HOMECARE SERVICE LTD,617.76,PHY LTS 65+,HOMECARE - SPOT,2103354930,1000079295
06.12.2021,ADULT SOCIAL CARE,THAMES HOMECARE SERVICE LTD,627.12,PHY LTS 65+,HOMECARE - SPOT,2103354994,1000079295
06.12.2021,ADULT SOCIAL CARE,THAMES HOMECARE SERVICE LTD,655.2,PHY LTS 65+,HOMECARE - SPOT,2103354842,1000079295
06.12.2021,ADULT SOCIAL CARE,THAMES HOMECARE SERVICE LTD,655.2,PHY LTS 65+,HOMECARE - SPOT,2103354889,1000079295
06.12.2021,ADULT SOCIAL CARE,THAMES HOMECARE SERVICE LTD,655.2,PHY LTS 65+,HOMECARE - SPOT,2103354917,1000079295
06.12.2021,ADULT SOCIAL CARE,THAMES HOMECARE SERVICE LTD,655.2,PHY LTS 65+,HOMECARE - SPOT,2103354948,1000079295
06.12.2021,ADULT SOCIAL CARE,THAMES HOMECARE SERVICE LTD,655.2,PHY LTS 65+,HOMECARE - SPOT,2103354995,1000079295
06.12.2021,ADULT SOCIAL CARE,THAMES HOMECARE SERVICE LTD,659.88,PHY LTS 65+,HOMECARE - SPOT,2103354909,1000079295
06.12.2021,ADULT SOCIAL CARE,THAMES HOMECARE SERVICE LTD,664.56,PHY LTS 65+,HOMECARE - SPOT,2103354952,1000079295
06.12.2021,ADULT SOCIAL CARE,THAMES HOMECARE SERVICE LTD,683.28,PHY LTS 65+,HOMECARE - SPOT,2103354964,1000079295
06.12.2021,ADULT SOCIAL CARE,THAMES HOMECARE SERVICE LTD,692.64,PHY LTS 65+,HOMECARE - SPOT,2103354932,1000079295
06.12.2021,ADULT SOCIAL CARE,THAMES HOMECARE SERVICE LTD,702,PHY LTS 65+,HOMECARE - SPOT,2103355008,1000079295
06.12.2021,ADULT SOCIAL CARE,THAMES HOMECARE SERVICE LTD,720.72,PHY LTS 65+,HOMECARE - SPOT,2103354836,1000079295
06.12.2021,ADULT SOCIAL CARE,THAMES HOMECARE SERVICE LTD,786.24,PHY LTS 65+,HOMECARE - SPOT,2103354906,1000079295
06.12.2021,ADULT SOCIAL CARE,THAMES HOMECARE SERVICE LTD,786.24,PHY LTS 65+,HOMECARE - SPOT,2103354911,1000079295
06.12.2021,ADULT SOCIAL CARE,THAMES HOMECARE SERVICE LTD,786.24,PHY LTS 65+,HOMECARE - SPOT,2103354990,1000079295
06.12.2021,ADULT SOCIAL CARE,THAMES HOMECARE SERVICE LTD,804.96,PHY LTS 65+,HOMECARE - SPOT,2103354918,1000079295
06.12.2021,ADULT SOCIAL CARE,THAMES HOMECARE SERVICE LTD,804.96,PHY LTS 65+,HOMECARE - SPOT,2103354931,1000079295
06.12.2021,ADULT SOCIAL CARE,THAMES HOMECARE SERVICE LTD,851.76,PHY LTS 65+,HOMECARE - SPOT,2103354883,1000079295
06.12.2021,ADULT SOCIAL CARE,THAMES HOMECARE SERVICE LTD,889.2,PHY LTS 65+,HOMECARE - SPOT,2103354944,1000079295
06.12.2021,ADULT SOCIAL CARE,THAMES HOMECARE SERVICE LTD,936,PHY LTS 65+,HOMECARE - SPOT,2103354913,1000079295
06.12.2021,ADULT SOCIAL CARE,THAMES HOMECARE SERVICE LTD,"1,076.40",PHY LTS 65+,HOMECARE - SPOT,2103354899,1000079295
06.12.2021,ADULT SOCIAL CARE,THAMES HOMECARE SERVICE LTD,"1,525.68",PHY LTS 65+,HOMECARE - SPOT,2103354903,1000079295
06.12.2021,ADULT SOCIAL CARE,THAMES HOMECARE SERVICE LTD,332.28,PHY STS 18-64,HOMECARE - IC,2103354966,1000079295
06.12.2021,ADULT SOCIAL CARE,THAMES HOMECARE SERVICE LTD,917.28,PHY STS 18-64,HOMECARE - IC,2103354860,1000079295
06.12.2021,ADULT SOCIAL CARE,THAMES HOMECARE SERVICE LTD,"1,085.76",PHY STS 18-64,HOMECARE - IC,2103354953,1000079295
06.12.2021,ADULT SOCIAL CARE,THAMES HOMECARE SERVICE LTD,262.08,PHY STS 65+,HOMECARE - IC,2103354834,1000079295
06.12.2021,ADULT SOCIAL CARE,THAMES HOMECARE SERVICE LTD,294.84,PHY STS 65+,HOMECARE - IC,2103354844,1000079295
06.12.2021,ADULT SOCIAL CARE,THAMES HOMECARE SERVICE LTD,294.84,PHY STS 65+,HOMECARE - IC,2103354908,1000079295
06.12.2021,ADULT SOCIAL CARE,THAMES HOMECARE SERVICE LTD,346.32,PHY STS 65+,HOMECARE - IC,2103354962,1000079295
06.12.2021,ADULT SOCIAL CARE,THAMES HOMECARE SERVICE LTD,421.2,PHY STS 65+,HOMECARE - IC,2103355009,1000079295
06.12.2021,ADULT SOCIAL CARE,THAMES HOMECARE SERVICE LTD,425.88,PHY STS 65+,HOMECARE - IC,2103354896,1000079295
06.12.2021,ADULT SOCIAL CARE,THAMES HOMECARE SERVICE LTD,468,PHY STS 65+,HOMECARE - IC,2103354968,1000079295
06.12.2021,ADULT SOCIAL CARE,THAMES HOMECARE SERVICE LTD,655.2,PHY STS 65+,HOMECARE - IC,2103354871,1000079295
06.12.2021,ADULT SOCIAL CARE,THAMES HOMECARE SERVICE LTD,655.2,PHY STS 65+,HOMECARE - IC,2103354987,1000079295
06.12.2021,ADULT SOCIAL CARE,THAMES HOMECARE SERVICE LTD,917.28,PHY STS 65+,HOMECARE - IC,2103354980,1000079295
06.12.2021,ADULT SOCIAL CARE,THAMES HOMECARE SERVICE LTD,313.56,SEN LTS 65+,HOMECARE - SPOT,2103354951,1000079295
06.12.2021,ADULT SOCIAL CARE,POTTON KARE SERVICES LTD,364.5,SPECIALIST CARE,SECTION 17 PAYMENTS TO AGENCIES/CARERS,2103354820,1000080630
06.12.2021,ADULT SOCIAL CARE,KEMKARE LTD,"1,495.00",SPECIALIST CARE,SECTION 17 PAYMENTS TO AGENCIES/CARERS,2103354830,1000084181
06.12.2021,ADULT SOCIAL CARE,DE VERE CARE PARTNERSHIP LTD,350,SPECIALIST CARE,SECTION 17 PAYMENTS TO AGENCIES/CARERS,2103354824,1000086901
06.12.2021,ADULT SOCIAL CARE,ADDICTION RECOVERY CENTRES LTD,"3,180.00",SUB LTS 18-64,PLACEMENTS - REHAB,2103354832,1000060881
06.12.2021,ADULT SOCIAL CARE,ADDICTION RECOVERY CENTRES LTD,"8,520.00",SUB LTS 18-64,PLACEMENTS - REHAB,2103354713,1000060881
06.12.2021,ASSET MANAGEMENT,ASHFORDS LLP OFFICE ACCOUNT,363,DISREPAIR,PAYMENTS FOR LEGAL SERVICES,5902499518,1000082695
06.12.2021,ASSET MANAGEMENT,ASHFORDS LLP OFFICE ACCOUNT,425,DISREPAIR,PAYMENTS FOR LEGAL SERVICES,5902499506,1000082695
06.12.2021,ASSET MANAGEMENT,ASHFORDS LLP OFFICE ACCOUNT,425,DISREPAIR,PAYMENTS FOR LEGAL SERVICES,5902499520,1000082695
06.12.2021,ASSET MANAGEMENT,ASHFORDS LLP OFFICE ACCOUNT,425,DISREPAIR,PAYMENTS FOR LEGAL SERVICES,5902499525,1000082695
06.12.2021,ASSET MANAGEMENT,ASHFORDS LLP OFFICE ACCOUNT,425,DISREPAIR,PAYMENTS FOR LEGAL SERVICES,5902499534,1000082695
06.12.2021,ASSET MANAGEMENT,ASHFORDS LLP OFFICE ACCOUNT,425,DISREPAIR,PAYMENTS FOR LEGAL SERVICES,5902499538,1000082695
06.12.2021,ASSET MANAGEMENT,ASHFORDS LLP OFFICE ACCOUNT,425,DISREPAIR,PAYMENTS FOR LEGAL SERVICES,5902499547,1000082695
06.12.2021,ASSET MANAGEMENT,ASHFORDS LLP OFFICE ACCOUNT,425,DISREPAIR,PAYMENTS FOR LEGAL SERVICES,5902499550,1000082695
06.12.2021,ASSET MANAGEMENT,ASHFORDS LLP OFFICE ACCOUNT,450,DISREPAIR,PAYMENTS FOR LEGAL SERVICES,5902499527,1000082695
06.12.2021,ASSET MANAGEMENT,ASHFORDS LLP OFFICE ACCOUNT,475,DISREPAIR,PAYMENTS FOR LEGAL SERVICES,5902499524,1000082695
06.12.2021,ASSET MANAGEMENT,ASHFORDS LLP OFFICE ACCOUNT,721.5,DISREPAIR,PAYMENTS FOR LEGAL SERVICES,5902499522,1000082695
06.12.2021,ASSET MANAGEMENT,ASHFORDS LLP OFFICE ACCOUNT,800,DISREPAIR,PAYMENTS FOR LEGAL SERVICES,5902499517,1000082695
06.12.2021,ASSET MANAGEMENT,ASHFORDS LLP OFFICE ACCOUNT,850,DISREPAIR,PAYMENTS FOR LEGAL SERVICES,5902499528,1000082695
06.12.2021,ASSET MANAGEMENT,ASHFORDS LLP OFFICE ACCOUNT,"1,000.00",DISREPAIR,PAYMENTS FOR LEGAL SERVICES,5902499530,1000082695
06.12.2021,ASSET MANAGEMENT,FRANKHAM CONSULTANCY GROUP LTD,895,HEALTH AND SAFETY,BUILDING R&M,5902499593,1000043952
06.12.2021,ASSET MANAGEMENT,SEDGWICK INTERNATIONAL UK,494.5,MAJOR REPAIRS,BUILDING R&M,5902499576,1000082289
06.12.2021,CENTRAL FUNCTIONS,C&C BUILDERS LTD,"37,756.80",AYLESBURY,BUILDING R&M,2103352889,3000001986
06.12.2021,CENTRAL FUNCTIONS,MAY PROPERTIES INVESTMENTS LTD,"6,651.79",HOME OWNERSHIP INCOME,HOUSING RESIDENTIAL RENTS,2103355073,1000087607
06.12.2021,CHIEF EXECUTIVE,PREMIER SURVEYS,"2,140.00",CAPITAL PS (REGEN),CONSTRUCTION,5902499603,1000075479
06.12.2021,CHIEF EXECUTIVE,METIS CONSULTANTS LIMITED,"5,124.45",CAPITAL PS (REGEN),CONSTRUCTION FEES  - EXTERNAL,5902499560,1000086330
06.12.2021,CHIEF EXECUTIVE,SPHERON ARCHITECTS LTD,"3,250.00",CAPITAL PS (REGEN),CONSTRUCTION FEES - ARCHITECT,5902499521,1000086771
06.12.2021,CHIEF EXECUTIVE,MICA ARCHITECTS LTD,"13,847.03",CAPITAL PS (REGEN),CONSTRUCTION FEES - ARCHITECT,5902499282,1000087566
06.12.2021,CHILDREN AND FAMILIES,CONTACT PROFESSIONALS,270.12,CONTACT SERVICE,OTHER PAYMENTS FOR CLIENTS,2103354808,1000057263
06.12.2021,CHILDREN AND FAMILIES,CONTACT PROFESSIONALS,274.67,CONTACT SERVICE,OTHER PAYMENTS FOR CLIENTS,2103354818,1000057263
06.12.2021,CHILDREN AND FAMILIES,REDACTED PERSONAL DATA,398.56,FRIENDS &FAMILY FOST,PAYMENTS TO CARERS,REDACTED,REDACTED
06.12.2021,CHILDREN AND FAMILIES,READY STEADY MOVE LTD,265,P & R CARE TEAM,OTHER PAYMENTS FOR CLIENTS,2103354796,1000060084
06.12.2021,CHILDREN AND FAMILIES,ELLIOT LEIGH TLC LTD,-899.99,SEMI-IND CARELEAVERS,COSTS RECOVERED,2103355016,1000079022
06.12.2021,CHILDREN AND FAMILIES,ELLIOT LEIGH TLC LTD,-491.47,SEMI-IND CARELEAVERS,COSTS RECOVERED,2103355017,1000079022
06.12.2021,CHILDREN AND FAMILIES,OWNLIFE LTD,"4,602.86",SEMI-IND CARELEAVERS,EXTERNAL AGENCIES AND BODIES,2103354728,1000056219
06.12.2021,CHILDREN AND FAMILIES,BARNARDOS SERVICES LTD,642.86,SEMI-IND CARELEAVERS,EXTERNAL AGENCIES AND BODIES,2103354750,1000063730
06.12.2021,CHILDREN AND FAMILIES,NETPEX LTD CORPORATE SERVICES,"2,464.26",SEMI-IND CARELEAVERS,EXTERNAL AGENCIES AND BODIES,2103354748,1000076073
06.12.2021,CHILDREN AND FAMILIES,NETPEX LTD CORPORATE SERVICES,"2,550.00",SEMI-IND CARELEAVERS,EXTERNAL AGENCIES AND BODIES,2103354716,1000076073
06.12.2021,CHILDREN AND FAMILIES,NETPEX LTD CORPORATE SERVICES,"2,571.42",SEMI-IND CARELEAVERS,EXTERNAL AGENCIES AND BODIES,2103354770,1000076073
06.12.2021,CHILDREN AND FAMILIES,NETPEX LTD CORPORATE SERVICES,"3,500.00",SEMI-IND CARELEAVERS,EXTERNAL AGENCIES AND BODIES,2103354732,1000076073
06.12.2021,CHILDREN AND FAMILIES,ELLIOT LEIGH TLC LTD,"1,924.20",SEMI-IND CARELEAVERS,EXTERNAL AGENCIES AND BODIES,2103354738,1000079022
06.12.2021,CHILDREN AND FAMILIES,ELLIOT LEIGH TLC LTD,"1,950.00",SEMI-IND CARELEAVERS,EXTERNAL AGENCIES AND BODIES,2103354744,1000079022
06.12.2021,CHILDREN AND FAMILIES,ELLIOT LEIGH TLC LTD,"2,063.97",SEMI-IND CARELEAVERS,EXTERNAL AGENCIES AND BODIES,2103354746,1000079022
06.12.2021,CHILDREN AND FAMILIES,ELLIOT LEIGH TLC LTD,"2,241.30",SEMI-IND CARELEAVERS,EXTERNAL AGENCIES AND BODIES,2103354742,1000079022
06.12.2021,CHILDREN AND FAMILIES,ELLIOT LEIGH TLC LTD,"2,421.30",SEMI-IND CARELEAVERS,EXTERNAL AGENCIES AND BODIES,2103354724,1000079022
06.12.2021,CHILDREN AND FAMILIES,ELLIOT LEIGH TLC LTD,"2,808.30",SEMI-IND CARELEAVERS,EXTERNAL AGENCIES AND BODIES,2103354766,1000079022
06.12.2021,CHILDREN AND FAMILIES,TRANSFORMING LIVES COMPANY LTD,"3,619.20",SEMI-IND CARELEAVERS,EXTERNAL AGENCIES AND BODIES,2103354754,1000083352
06.12.2021,CHILDREN AND FAMILIES,TRANSFORMING LIVES COMPANY LTD,"4,015.50",SEMI-IND CARELEAVERS,EXTERNAL AGENCIES AND BODIES,2103354736,1000083352
06.12.2021,CHILDREN AND FAMILIES,OWNLIFE LTD,257.13,SEMI-IND CARELEAVERS,OTHER PAYMENTS FOR CLIENTS,2103354719,1000056219
06.12.2021,CHILDREN AND FAMILIES,NETPEX LTD CORPORATE SERVICES,300,SEMI-IND CARELEAVERS,OTHER PAYMENTS FOR CLIENTS,2103354768,1000076073
06.12.2021,CHILDREN AND FAMILIES,TRANSFORMING LIVES COMPANY LTD,300,SEMI-IND CARELEAVERS,OTHER PAYMENTS FOR CLIENTS,2103354722,1000083352
06.12.2021,CHILDREN AND FAMILIES,OPENMINDS SOCIAL CARE,347.4,SEMI-IND CARELEAVERS,OTHER PAYMENTS FOR CLIENTS,2103354730,1000085800
06.12.2021,CHILDREN AND FAMILIES,THE BEECHES UK LTD,"2,785.71",SEMI-IND LAC 16-17,EXTERNAL AGENCIES AND BODIES,2103355019,1000083173
06.12.2021,CHILDREN AND FAMILIES,THE BEECHES UK LTD,"10,910.71",SEMI-IND LAC 16-17,EXTERNAL AGENCIES AND BODIES,2103355021,1000083173
06.12.2021,CHILDREN AND FAMILIES,SPRING CONSULT UK LTD,"7,500.00",SEMI-IND LAC 16-17,EXTERNAL AGENCIES AND BODIES,2103354778,1000087508
06.12.2021,CHILDREN AND FAMILIES,THE BEECHES UK LTD,265.71,SEMI-IND LAC 16-17,OTHER PAYMENTS FOR CLIENTS,2103355018,1000083173
06.12.2021,CHILDREN AND FAMILIES,CARTER BROWN THE EXPERT SERVICE LTD,"2,033.75",SFS MGMT & SUPPORT,LEGAL FEES & COURT COSTS,2103355036,1000076652
06.12.2021,CHILDREN AND FAMILIES,TARA VINDIS,800,SFS MGMT & SUPPORT,LEGAL FEES & COURT COSTS,2103355065,1000029896
06.12.2021,CHILDREN AND FAMILIES,GARY WILLMOTT,500,SFS MGMT & SUPPORT,LEGAL FEES & COURT COSTS,2103355051,1000063236
06.12.2021,CHILDREN AND FAMILIES,KATE LAMONT,950,SFS MGMT & SUPPORT,LEGAL FEES & COURT COSTS,2103355055,1000064216
06.12.2021,CHILDREN AND FAMILIES,KATE LAMONT,950,SFS MGMT & SUPPORT,LEGAL FEES & COURT COSTS,2103355056,1000064216
06.12.2021,CHILDREN AND FAMILIES,KATE LAMONT,"1,250.00",SFS MGMT & SUPPORT,LEGAL FEES & COURT COSTS,2103355054,1000064216
06.12.2021,CHILDREN AND FAMILIES,AL HOGARTH,950,SFS MGMT & SUPPORT,LEGAL FEES & COURT COSTS,2103355026,1000068723
06.12.2021,CHILDREN AND FAMILIES,AL HOGARTH,950,SFS MGMT & SUPPORT,LEGAL FEES & COURT COSTS,2103355027,1000068723
06.12.2021,CHILDREN AND FAMILIES,AL HOGARTH,"1,250.00",SFS MGMT & SUPPORT,LEGAL FEES & COURT COSTS,2103355028,1000068723
06.12.2021,CHILDREN AND FAMILIES,AL HOGARTH,"1,500.00",SFS MGMT & SUPPORT,LEGAL FEES & COURT COSTS,2103355025,1000068723
06.12.2021,CHILDREN AND FAMILIES,WILLIAM DEAN,575,SFS MGMT & SUPPORT,LEGAL FEES & COURT COSTS,2103355069,1000070780
06.12.2021,CHILDREN AND FAMILIES,THOMAS JONES,350,SFS MGMT & SUPPORT,LEGAL FEES & COURT COSTS,2103355066,1000081619
06.12.2021,CHILDREN AND FAMILIES,GREATER LONDON FOSTERING,"1,821.30",STAYPUT- FOST CARERS,EXTERNAL AGENCIES AND BODIES,2103354752,1000029184
06.12.2021,CHILDREN AND FAMILIES,GREATER LONDON FOSTERING,"2,241.81",STAYPUT- FOST CARERS,EXTERNAL AGENCIES AND BODIES,2103354760,1000029184
06.12.2021,CHILDREN AND FAMILIES,OWNLIFE LTD,"2,700.00",UASC CARELEAVERS,EXTERNAL AGENCIES AND BODIES,2103354734,1000056219
06.12.2021,CHILDREN AND FAMILIES,NETPEX LTD CORPORATE SERVICES,"2,100.00",UASC CARELEAVERS,EXTERNAL AGENCIES AND BODIES,2103354772,1000076073
06.12.2021,CHILDREN AND FAMILIES,ELLIOT LEIGH TLC LTD,"1,658.40",UASC CARELEAVERS,EXTERNAL AGENCIES AND BODIES,2103354764,1000079022
06.12.2021,CHILDREN AND FAMILIES,ELLIOT LEIGH TLC LTD,"1,671.30",UASC CARELEAVERS,EXTERNAL AGENCIES AND BODIES,2103354756,1000079022
06.12.2021,CHILDREN AND FAMILIES,ELLIOT LEIGH TLC LTD,"2,314.20",UASC CARELEAVERS,EXTERNAL AGENCIES AND BODIES,2103354758,1000079022
06.12.2021,CHILDREN AND FAMILIES,ELLIOT LEIGH TLC LTD,"2,347.80",UASC CARELEAVERS,EXTERNAL AGENCIES AND BODIES,2103354740,1000079022
06.12.2021,CHILDREN AND FAMILIES,PCS SERVICES LIMITED,"1,302.14",UASC LAC 16-17,EXTERNAL AGENCIES AND BODIES,2103354790,1000087059
06.12.2021,CHILDREN AND FAMILIES,PCS SERVICES LIMITED,"3,246.86",UASC LAC 16-17,EXTERNAL AGENCIES AND BODIES,2103354786,1000087059
06.12.2021,CHILDREN AND FAMILIES,DREAMFO HOUSING LTD,"3,214.20",UASC LAC 16-17,EXTERNAL AGENCIES AND BODIES,2103354774,1000087273
06.12.2021,CHILDREN AND FAMILIES,DREAMFO HOUSING LTD,"3,214.20",UASC LAC 16-17,EXTERNAL AGENCIES AND BODIES,2103354780,1000087273
06.12.2021,CHILDREN AND FAMILIES,PCS SERVICES LIMITED,257.14,UASC LAC 16-17,OTHER PAYMENTS FOR CLIENTS,2103354788,1000087059
06.12.2021,CHILDREN AND FAMILIES,DREAMFO HOUSING LTD,300,UASC LAC 16-17,OTHER PAYMENTS FOR CLIENTS,2103354776,1000087273
06.12.2021,CHILDREN AND FAMILIES,DREAMFO HOUSING LTD,300,UASC LAC 16-17,OTHER PAYMENTS FOR CLIENTS,2103354782,1000087273
06.12.2021,COMMISSIONING & CENTRAL,TRAINING & TUTORING LIMITED,"1,665.00","QUALITY, PERFORMANCE AND TRANSFORMATION",EXTERNAL AGENCIES AND BODIES,5902499588,1000087580
06.12.2021,COMMUNITIES,CHANGE GROW LIVE SERVICES LTD,"285,060.00",ADULT SM SERVICE,OTHER CONTRACTORS,5902499152,1000082721
06.12.2021,COMMUNITIES,THE PARTICIPATION PEOPLE,"6,849.50",COMMUNITY SAFETY FUND,PROFESSIONAL FEES,5902499540,1000074059
06.12.2021,COMMUNITIES,J & M OASIS LTD,"22,225.00",NO RECOURSE TO PUBLIC FUNDS,ACCOMMODATION CHARGES,5902499508,1000072169
06.12.2021,COMMUNITIES,THAMES HOMECARE SERVICE LTD,360.36,NO RECOURSE TO PUBLIC FUNDS,HOMECARE - C&V,2103354985,1000079295
06.12.2021,CORPORATE & DEMOCRATIC CORE,STARFISH SEARCH LTD,"8,000.00",CHIEF EXECUTIVE,RECRUITMENT ADVERTISING,5902499024,1000086886
06.12.2021,CUSTOMER EXPERIENCE,PENNA PLC,"3,983.00",CUSTOMER SUPPORT,OTHER EMPLOYEE EXPENSES,5902499579,1000050664
06.12.2021,CUSTOMER EXPERIENCE,PENNA PLC,"3,983.00",CUSTOMER SUPPORT,OTHER EMPLOYEE EXPENSES,5902499580,1000050664
06.12.2021,CUSTOMER EXPERIENCE HGF,GUYS & ST THOMAS NHS FOUNDATION TRUST,"8,301.00",CORONER'S,OTHER CONTRACTORS,5902499485,1765536
06.12.2021,CUSTOMER EXPERIENCE HGF,GUYS & ST THOMAS NHS FOUNDATION TRUST,"8,850.00",CORONER'S,OTHER CONTRACTORS,5902499486,1765536
06.12.2021,CUSTOMER EXPERIENCE HGF,GUYS & ST THOMAS NHS FOUNDATION TRUST,"8,929.00",CORONER'S,OTHER CONTRACTORS,5902499487,1765536
06.12.2021,DSG,BACONS COLLEGE,600,VIRTUAL SCHOOL PP,SCHOOLS CAPITATION,2103355081,1693125
06.12.2021,DSG,WESTLANDS SCHOOL,"1,500.00",VIRTUAL SCHOOL PP,SCHOOLS CAPITATION,2103355080,1000075375
06.12.2021,DSG,BENSHAM MANOR SCHOOL,585,VIRTUAL SCHOOL PP,SCHOOLS CAPITATION,2103355082,1000079195
06.12.2021,EDUCATION,WHATEVER DESIGN LTD,"1,296.00",MENTAL HEALTH AND RESILIENCE,MARKETING & PUBLICITY SERVICES,5902499299,1000036500
06.12.2021,EMPLOYEE EXPERIENCE,EVERSHEDS SUTHERLAND (INTERNATIONAL) LLP,500,HR PAYROLL COSTS,TRAINING,5902499559,1000076274
06.12.2021,ENVIRONMENT AND LEISURE,MILLWALL COMMUNITY TRUST,"1,211.28",CAPITAL PS (LEISURE),CAPITAL GRANTS,5902499523,11011221
06.12.2021,ENVIRONMENT AND LEISURE,MILLWALL COMMUNITY TRUST,"1,935.60",CAPITAL PS (LEISURE),CAPITAL GRANTS,5902499523,11011221
06.12.2021,ENVIRONMENT AND LEISURE,MORECAMBE COMMUNITY GARDEN,582,CAPITAL PS (LEISURE),CAPITAL GRANTS,5902499426,1000081339
06.12.2021,ENVIRONMENT AND LEISURE,INTO SERVICES LONDON LTD,"3,860.00",CAPITAL PS (LEISURE),CONST'N MAIN CONTRACT - NON CERTIFICATED,5902499577,1000059328
06.12.2021,ENVIRONMENT AND LEISURE,ESTATE LIGHTING SOLUTIONS LTD,"23,895.42",CAPITAL PS (LEISURE),CONSTR'N SUB CONTRACT - NON CERTIFICATED,2103354702,3000002130
06.12.2021,ENVIRONMENT AND LEISURE,PREMIER SURVEYS,"1,070.00",CAPITAL PS (LEISURE),CONSTRUCTION,5902499606,1000075479
06.12.2021,ENVIRONMENT AND LEISURE,PREMIER SURVEYS,"1,070.00",CAPITAL PS (LEISURE),CONSTRUCTION,5902499608,1000075479
06.12.2021,ENVIRONMENT AND LEISURE,TIM MOYA ASSOCIATES,525,CAPITAL PS (LEISURE),CONSTRUCTION FEES  - EXTERNAL,5902499128,1000079572
06.12.2021,ENVIRONMENT AND LEISURE,SIMLAW ECOLOGY LIMITED,"1,275.00",CAPITAL PS (LEISURE),CONSTRUCTION FEES  - EXTERNAL,5902499115,1000081042
06.12.2021,ENVIRONMENT DIRECTORATE,BUDMAX CONSTRUCTION LTD,920,ENGINEERING CRAFTS,OTHER CONTRACTORS,2103355078,3000001936
06.12.2021,ENVIRONMENT DIRECTORATE,BUDMAX CONSTRUCTION LTD,"5,150.00",GRANGE DOORS,OTHER CONTRACTORS,2103355078,3000001936
06.12.2021,ENVIRONMENT DIRECTORATE,CHERRY PICKER HIRE LTD,"1,290.00",NON HOUSING GROUNDS,EQUIPMENT PURCHASE & REPAIR,5902498736,1000077442
06.12.2021,ENVIRONMENT DIRECTORATE,ABC RESPONSE TRAINING,700,NON HOUSING GROUNDS,TRAINING,5902499599,1000075618
06.12.2021,ENVIRONMENT DIRECTORATE,WICKSTEED LEISURE LTD,"2,640.34",PARKS TECH UNIT (PREMISES),OTHER CONTRACTORS,2103355077,3000000195
06.12.2021,F & C S EXCLUDING CORPORATE BUDGETS,FINANCIAL DATA MANAGEMENT PLC,260.82,ELECTORAL REGISTRATION,POSTAGES,2103355040,1000031759
06.12.2021,F & C S EXCLUDING CORPORATE BUDGETS,FINANCIAL DATA MANAGEMENT PLC,438.9,ELECTORAL REGISTRATION,POSTAGES,2103355049,1000031759
06.12.2021,F & C S EXCLUDING CORPORATE BUDGETS,FINANCIAL DATA MANAGEMENT PLC,632.28,ELECTORAL REGISTRATION,POSTAGES,2103355039,1000031759
06.12.2021,F & C S EXCLUDING CORPORATE BUDGETS,FINANCIAL DATA MANAGEMENT PLC,690.12,ELECTORAL REGISTRATION,POSTAGES,2103355047,1000031759
06.12.2021,F & C S EXCLUDING CORPORATE BUDGETS,FINANCIAL DATA MANAGEMENT PLC,"1,891.25",ELECTORAL REGISTRATION,POSTAGES,2103355041,1000031759
06.12.2021,F & C S EXCLUDING CORPORATE BUDGETS,FINANCIAL DATA MANAGEMENT PLC,"3,573.99",ELECTORAL REGISTRATION,POSTAGES,2103355042,1000031759
06.12.2021,F & C S EXCLUDING CORPORATE BUDGETS,FINANCIAL DATA MANAGEMENT PLC,"4,976.42",ELECTORAL REGISTRATION,POSTAGES,2103355043,1000031759
06.12.2021,F & C S EXCLUDING CORPORATE BUDGETS,FINANCIAL DATA MANAGEMENT PLC,290,ELECTORAL REGISTRATION,PRINTING,2103355046,1000031759
06.12.2021,F & C S EXCLUDING CORPORATE BUDGETS,FINANCIAL DATA MANAGEMENT PLC,608.94,ELECTORAL REGISTRATION,PRINTING,2103355048,1000031759
06.12.2021,F & C S EXCLUDING CORPORATE BUDGETS,FINANCIAL DATA MANAGEMENT PLC,"1,305.29",ELECTORAL REGISTRATION,PRINTING,2103355045,1000031759
06.12.2021,F & C S EXCLUDING CORPORATE BUDGETS,FINANCIAL DATA MANAGEMENT PLC,"1,364.82",ELECTORAL REGISTRATION,PRINTING,2103355050,1000031759
06.12.2021,F & C S EXCLUDING CORPORATE BUDGETS,BDO LLP,"22,005.00",INTERNAL AUDIT CONTRACTS,PAYMENTS FOR FINANCIAL SERVICES,5902499363,1000057898
06.12.2021,F & C S EXCLUDING CORPORATE BUDGETS,KENNEDY CATER LTD,"2,842.92",LEGAL SVCES MANAGEMENT,PROFESSIONAL FEES,5902499181,1000074118
06.12.2021,F & C S EXCLUDING CORPORATE BUDGETS,BOND SOLON TRAINING LTD,"2,109.34",LEGAL SVCES MANAGEMENT,TRAINING,5902499568,1000031147
06.12.2021,F & C S EXCLUDING CORPORATE BUDGETS,BDO LLP,"2,083.33",RISK ADMIN,PROFESSIONAL FEES,5902499252,1000057898
06.12.2021,HOUSING,BCS (ELECTRICAL & BUILDING SERVICES LTD),"160,513.93",BCS,I-WORLD CONTRACTORS HOLDING ACCOUNT,5902499572,1000062321
06.12.2021,HOUSING,BUILDTRUST LTD,"17,922.06",BUILD TRUST,I-WORLD CONTRACTORS HOLDING ACCOUNT,2103355083,3000002010
06.12.2021,HOUSING,SPOKEMEAD MAINTENANCE LTD,"47,602.93",PAYMENTS CONTROL ACCOUNT - SPOKEMEAD,I-WORLD CONTRACTORS HOLDING ACCOUNT,2103355079,4002791
06.12.2021,HOUSING HRA,VPS (UK) LTD,564,CAPITAL PS (HRA),CONSTRUCTION FEES  - EXTERNAL,5902499532,1000040614
06.12.2021,HOUSING HRA,VPS (UK) LTD,766.15,CAPITAL PS (HRA),CONSTRUCTION FEES  - EXTERNAL,5902499546,1000040614
06.12.2021,HOUSING HRA,VPS (UK) LTD,791.87,CAPITAL PS (HRA),CONSTRUCTION FEES  - EXTERNAL,5902499544,1000040614
06.12.2021,HOUSING HRA,VPS (UK) LTD,901.1,CAPITAL PS (HRA),CONSTRUCTION FEES  - EXTERNAL,5902499542,1000040614
06.12.2021,HOUSING HRA,VPS (UK) LTD,"1,294.93",CAPITAL PS (HRA),CONSTRUCTION FEES  - EXTERNAL,5902499539,1000040614
06.12.2021,HOUSING HRA,VPS (UK) LTD,"5,505.48",CAPITAL PS (HRA),CONSTRUCTION FEES  - EXTERNAL,5902499541,1000040614
06.12.2021,HOUSING HRA,VPS (UK) LTD,"11,186.41",CAPITAL PS (HRA),CONSTRUCTION FEES  - EXTERNAL,5902499541,1000040614
06.12.2021,HOUSING HRA,VPS (UK) LTD,"14,711.60",CAPITAL PS (HRA),CONSTRUCTION FEES  - EXTERNAL,5902499536,1000040614
06.12.2021,HOUSING HRA,HILL PARTNERSHIP LTD,"563,817.74",CAPITAL PS (HRA),CONSTRUCTION MAIN CONTRACT -CERTIFICATED,2103354116,3000002185
06.12.2021,HOUSING HRA,TROWERS & HAMLINS LLP,"1,111.50",CAPITAL PS (REGEN),CONSTRUCTION FEES - LEGAL,5902499591,1000016239
06.12.2021,HOUSING HRA,NPOWER,"1,602.57",RESIDENT SERVICES BUSINESS SUPPORT,ELECTRICITY,6102007219,DIRECT DEBIT PAYMENT
06.12.2021,LEISURE DIRECTORATE,SIMPLY HIRE LTD,863.58,FACILITIES MAINTENANCE,BUILDING R&M,5902499564,1000018354
06.12.2021,LEISURE DIRECTORATE,SIMPLY HIRE LTD,"1,204.58",FACILITIES MAINTENANCE,BUILDING R&M,5902499565,1000018354
06.12.2021,LEISURE DIRECTORATE,NPOWER LTD,"1,191.59",SDM BUDGET,ELECTRICITY,5902499581,1000078994
06.12.2021,LEISURE DIRECTORATE,QUADRON SERVICES LIMITED,854.04,SOUTHWARK AREA TEAM,GROUNDS MAINTENANCE,5902499509,1000066528
06.12.2021,LEISURE DIRECTORATE,QUADRON SERVICES LIMITED,"1,686.24",SOUTHWARK AREA TEAM,GROUNDS MAINTENANCE,5902499512,1000066528
06.12.2021,LEISURE DIRECTORATE,TAPEMASTER EUROPE LTD,"1,600.00",STOCK SERVICES,STATIONERY,5902499602,1000087254
06.12.2021,NEW BUILD,OPTIMUM SME FINANCE LIMITED,"3,192.00",DEVELOPMENT DELIVERY,LEGAL FEES & COURT COSTS,2103355062,1000085498
06.12.2021,PLANNING AND TRANSPORT,MEYRIC LEWIS,"4,750.00",ENFORCEMENT AND MONITORING TEAM,LEGAL FEES & COURT COSTS,2103355059,1000040323
06.12.2021,PLANNING AND TRANSPORT,GVA GRIMLEY LTD T/A AVISON YOUNG,"6,125.00",STRATEGIC APPLICATIONS,PROFESSIONAL FEES,5902499590,1000016057
06.12.2021,PLANNING AND TRANSPORT,STRETTONS LIMITED,"1,400.00",STRATEGIC APPLICATIONS,PROFESSIONAL FEES,5902499592,1000058926
06.12.2021,PUBLIC HEALTH,BEDE HOUSE ASSOCIATION,864,PLACE & HEALTH IMPROVEMENT,EXTERNAL AGENCIES AND BODIES,5902499557,1553877
06.12.2021,PUBLIC HEALTH,WESTMINSTER HOUSE YOUTH CLUB,"1,440.00",PLACE & HEALTH IMPROVEMENT,EXTERNAL AGENCIES AND BODIES,5902499558,11088645
06.12.2021,PUBLIC HEALTH,PARENT SKILLS2GO,"3,168.00",PLACE & HEALTH IMPROVEMENT,EXTERNAL AGENCIES AND BODIES,5902499502,1000066441
06.12.2021,PUBLIC HEALTH,MM E&C LTD,864,PLACE & HEALTH IMPROVEMENT,EXTERNAL AGENCIES AND BODIES,5902499497,1000082235
06.12.2021,PUBLIC HEALTH,CELESTIAL CHURCH OF CHRIST AMAZING GRACE PARISH,"2,073.60",PLACE & HEALTH IMPROVEMENT,EXTERNAL AGENCIES AND BODIES,5902499515,1000084302
06.12.2021,PUBLIC HEALTH,EARLY BLOOMERS LTD,"2,304.00",PLACE & HEALTH IMPROVEMENT,EXTERNAL AGENCIES AND BODIES,5902499556,1000087112
06.12.2021,PUBLIC HEALTH,EARLY BLOOMERS LTD,"3,000.00",PLACE & HEALTH IMPROVEMENT,EXTERNAL AGENCIES AND BODIES,5902499555,1000087112
06.12.2021,PUBLIC HEALTH,CAMELOT PRIMARY SCHOOL,"11,520.00",PLACE & HEALTH IMPROVEMENT,EXTERNAL AGENCIES AND BODIES,5902499582,5001000014
06.12.2021,REGENERATION,WAYNE BEGLAN,337.5,PROFESSIONAL SERVICES (GENERAL),LEGAL FEES & COURT COSTS,2103355067,1000069107
06.12.2021,REGENERATION,WAYNE BEGLAN,"3,200.00",PROFESSIONAL SERVICES (GENERAL),LEGAL FEES & COURT COSTS,2103355068,1000069107
06.12.2021,RESIDENT SERVICES,CARLISLE SECURITY SERVICES LTD,"12,108.60",CAMBERWELL,SECURITY SERVICES,5902499493,11212342
06.12.2021,RESIDENT SERVICES,BRITISH GAS TRADING LTD,302.4,OPERATIONS/OFFICES ACCOMMODATION,ELECTRICITY,5902499499,1000055977
06.12.2021,RESIDENT SERVICES,ANGELA PIEARS,275,SPECIAL INVESTIGATIONS,LEGAL FEES & COURT COSTS,2103355029,1000087633
06.12.2021,RESIDENT SERVICES,GLAZEBROOK ASSOCIATES LTD,750,TA ESTATE VOIDS,LEGAL FEES & COURT COSTS,2103355052,1000039758
06.12.2021,RESIDENT SERVICES,REDACTED PERSONAL DATA,450,TA ESTATE VOIDS,LEGAL FEES & COURT COSTS,REDACTED,REDACTED
06.12.2021,RESIDENT SERVICES HGF,AKINYEMI AKINSIKU,"3,500.00",HOMELESS PROJECTS,GRANTS,5902499594,1000087651
06.12.2021,RESIDENT SERVICES HGF,ANNETTE CAFFERKEY,700,HOMELESS PROJECTS,LEGAL FEES & COURT COSTS,2103355030,1000067279
06.12.2021,RESIDENT SERVICES HGF,EMMA GODFREY,420,HOMELESS PROJECTS,LEGAL FEES & COURT COSTS,2103355037,1000068757
06.12.2021,RESIDENT SERVICES HGF,EMMA GODFREY,850,HOMELESS PROJECTS,LEGAL FEES & COURT COSTS,2103355038,1000068757
06.12.2021,RESIDENT SERVICES HGF,NATALIE FOSTER,850,HOMELESS PROJECTS,LEGAL FEES & COURT COSTS,2103355060,1000086775
06.12.2021,RESIDENT SERVICES HGF,CROWN HOUSING LTD,"5,363.00",NIGHTLY TA (NSC),EXTERNAL AGENCIES AND BODIES,5902499561,1000075070
06.12.2021,RESIDENT SERVICES HGF,OAK HOUSING LTD,"3,383.40",PSL PLACEMENTS,EXTERNAL AGENCIES AND BODIES,5902499573,1000079310
06.12.2021,SBS SUPPORT,SIEMENS FINANCIAL SERVICES LIMITED,607.59,VOIDS OVERHEADS,CATERING MATERIALS & SUPPLIES,5902499595,1000053403
07.12.2021,ADULT SOCIAL CARE,THE DRIVE CARE HOMES LTD,"14,393.10",DISABILITIES LAC,EXTERNAL AGENCIES AND BODIES,2103355238,1000003889
07.12.2021,ADULT SOCIAL CARE,THE DRIVE CARE HOMES LTD,"1,080.00",DISABILITIES LAC,RESIDENTIAL CARE,2103355236,1000003889
07.12.2021,ADULT SOCIAL CARE,THE DRIVE CARE HOMES LTD,"13,670.83",DISABILITIES LAC,RESIDENTIAL CARE,2103355240,1000003889
07.12.2021,ADULT SOCIAL CARE,SUSSEX COMMUNITY NHS FT,"4,268.40",DISABILITIES LAC,RESIDENTIAL CARE,2103355234,1000066869
07.12.2021,ADULT SOCIAL CARE,METRO HOMECARE LTD,643.5,DISCHARGE TO ACCESS,HOMECARE - SPOT,2103355268,1000070695
07.12.2021,ADULT SOCIAL CARE,CHOICE SUPPORT,514.36,DISCHARGE TO ACCESS,SUPPORTED LIVING,2103355289,1104183
07.12.2021,ADULT SOCIAL CARE,SURREY DOCKS FARM PROVIDENT SOCIETY,480,LD LTS 18-64,DAYCARE,2103355256,1000000958
07.12.2021,ADULT SOCIAL CARE,SURREY DOCKS FARM PROVIDENT SOCIETY,487.5,LD LTS 18-64,DAYCARE,2103355258,1000000958
07.12.2021,ADULT SOCIAL CARE,SURREY DOCKS FARM PROVIDENT SOCIETY,720,LD LTS 18-64,DAYCARE,2103355255,1000000958
07.12.2021,ADULT SOCIAL CARE,METRO HOMECARE LTD,396,LD LTS 18-64,HOMECARE - SPOT,2103355263,1000070695
07.12.2021,ADULT SOCIAL CARE,METRO HOMECARE LTD,396,LD LTS 18-64,HOMECARE - SPOT,2103355273,1000070695
07.12.2021,ADULT SOCIAL CARE,METRO HOMECARE LTD,396,LD LTS 18-64,HOMECARE - SPOT,2103355276,1000070695
07.12.2021,ADULT SOCIAL CARE,CHOICE SUPPORT,257.2,LD LTS 18-64,SUPPORTED LIVING,2103355264,1104183
07.12.2021,ADULT SOCIAL CARE,CHOICE SUPPORT,330.66,LD LTS 18-64,SUPPORTED LIVING,2103355282,1104183
07.12.2021,ADULT SOCIAL CARE,CHOICE SUPPORT,367.4,LD LTS 18-64,SUPPORTED LIVING,2103355290,1104183
07.12.2021,ADULT SOCIAL CARE,CHOICE SUPPORT,440.88,LD LTS 18-64,SUPPORTED LIVING,2103355291,1104183
07.12.2021,ADULT SOCIAL CARE,CHOICE SUPPORT,587.84,LD LTS 18-64,SUPPORTED LIVING,2103355294,1104183
07.12.2021,ADULT SOCIAL CARE,CHOICE SUPPORT,661.32,LD LTS 18-64,SUPPORTED LIVING,2103355297,1104183
07.12.2021,ADULT SOCIAL CARE,CHOICE SUPPORT,808.28,LD LTS 18-64,SUPPORTED LIVING,2103355301,1104183
07.12.2021,ADULT SOCIAL CARE,CHOICE SUPPORT,881.76,LD LTS 18-64,SUPPORTED LIVING,2103355274,1104183
07.12.2021,ADULT SOCIAL CARE,MEDACS HOMECARE,330,LD LTS 18-64,SUPPORTED LIVING,2103355241,11287415
07.12.2021,ADULT SOCIAL CARE,MEDACS HOMECARE,330,LD LTS 18-64,SUPPORTED LIVING,2103355242,11287415
07.12.2021,ADULT SOCIAL CARE,MEDACS HOMECARE,330,LD LTS 18-64,SUPPORTED LIVING,2103355244,11287415
07.12.2021,ADULT SOCIAL CARE,MEDACS HOMECARE,330,LD LTS 18-64,SUPPORTED LIVING,2103355245,11287415
07.12.2021,ADULT SOCIAL CARE,REDACTED PERSONAL DATA,"3,682.28",LD LTS 18-64,SUPPORTED LIVING,REDACTED,REDACTED
07.12.2021,ADULT SOCIAL CARE,SURREY DOCKS FARM PROVIDENT SOCIETY,360,LD LTS 65+,DAYCARE,2103355254,1000000958
07.12.2021,ADULT SOCIAL CARE,CHOICE SUPPORT,"6,935.52",LD LTS 65+,SUPPORTED LIVING,2103355266,1104183
07.12.2021,ADULT SOCIAL CARE,CHOICE SUPPORT,293.92,MH LTS 65+,SUPPORTED LIVING,2103355280,1104183
07.12.2021,ADULT SOCIAL CARE,MEDACS HOMECARE,286.92,PHY LTS 65+,HOMECARE - C&V,2103355252,11287415
07.12.2021,ADULT SOCIAL CARE,MEDACS HOMECARE,554,PHY LTS 65+,HOMECARE - C&V,2103355251,11287415
07.12.2021,ADULT SOCIAL CARE,MEDACS HOMECARE,985.5,PHY LTS 65+,HOMECARE - C&V,2103355248,11287415
07.12.2021,ADULT SOCIAL CARE,SURREY DOCKS FARM PROVIDENT SOCIETY,500,SOCIAL ISOLATION,DAYCARE,2103355253,1000000958
07.12.2021,ADULT SOCIAL CARE,CHOICE SUPPORT,367.4,SOCIAL ISOLATION,SUPPORTED LIVING,2103355295,1104183
07.12.2021,ASSET MANAGEMENT,CHESHIRE ESTATE AND LEGAL LTD,833.33,DISREPAIR,PAYMENTS FOR LEGAL SERVICES,2103355125,1000081908
07.12.2021,ASSET MANAGEMENT,CHESHIRE ESTATE AND LEGAL LTD,833.33,DISREPAIR,PAYMENTS FOR LEGAL SERVICES,2103355137,1000081908
07.12.2021,ASSET MANAGEMENT,GLM LEGAL LLP T/A ROWAN ROSE SOLICITORS,904.42,DISREPAIR,PAYMENTS FOR LEGAL SERVICES,2103355124,1000087280
07.12.2021,ASSET MANAGEMENT,BUILDTRUST LTD,677.5,DISREPAIR,PAYMENTS FOR LEGAL SERVICES,2103355118,3000002010
07.12.2021,ASSET MANAGEMENT,ANTONY HODARI  SOLICITORS,"2,916.67",DISREPAIR,PAYMENTS FOR LEGAL SERVICES,2103355129,1000031040
07.12.2021,ASSET MANAGEMENT,ANTONY HODARI  SOLICITORS,"5,416.67",DISREPAIR,PAYMENTS FOR LEGAL SERVICES,2103355123,1000031040
07.12.2021,ASSET MANAGEMENT,GT STEWART LTD,"12,916.67",DISREPAIR,PAYMENTS FOR LEGAL SERVICES,2103355133,1000061213
07.12.2021,ASSET MANAGEMENT,MATRIX SOLICITORS,"2,488.64",DISREPAIR,PAYMENTS FOR LEGAL SERVICES,2103355136,1000082248
07.12.2021,ASSET MANAGEMENT,MATRIX SOLICITORS,"4,375.00",DISREPAIR,PAYMENTS FOR LEGAL SERVICES,2103355135,1000082248
07.12.2021,ASSET MANAGEMENT,DRISCOLL KINGSTON SOLICITORS,"4,166.67",DISREPAIR,PAYMENTS FOR LEGAL SERVICES,2103355134,1000082357
07.12.2021,ASSET MANAGEMENT,SBW  LAW,490,DISREPAIR,PAYMENTS FOR LEGAL SERVICES,2103355127,1000085191
07.12.2021,ASSET MANAGEMENT,BOND TURNER  SOLICITORS,"1,875.00",DISREPAIR,PAYMENTS FOR LEGAL SERVICES,2103355130,1000085362
07.12.2021,ASSET MANAGEMENT,BOND TURNER  SOLICITORS,"5,416.67",DISREPAIR,PAYMENTS FOR LEGAL SERVICES,2103355131,1000085362
07.12.2021,ASSET MANAGEMENT,ENVISION  SOLICITORS LIMITED,"2,500.00",DISREPAIR,PAYMENTS FOR LEGAL SERVICES,2103355132,1000086191
07.12.2021,ASSET MANAGEMENT,BENTLEY STERLING  & CO SOLICITORS,"1,315.83",DISREPAIR,PAYMENTS FOR LEGAL SERVICES,2103355122,1000087657
07.12.2021,ASSET MANAGEMENT,FRANKHAM CONSULTANCY GROUP LTD,"1,250.00",DISREPAIR,PROFESSIONAL FEES,5902499614,1000043952
07.12.2021,ASSET MANAGEMENT,EMS EVENTS LTD,"1,581.16",ENG CONTRACTS,OFFICE EXPENSES,5902499658,1000057494
07.12.2021,ASSET MANAGEMENT,AVONLINE NETWORK SERVICES LTD,853.08,ENG CONTRACTS (NORTH),TV AERIALS R&M,5902499617,1000068672
07.12.2021,ASSET MANAGEMENT HGF,ROYAL MAIL GROUP LTD,"1,014.49",160 TOOLEY ST.,POSTAGES,5902499741,1000061535
07.12.2021,CHIEF EXECUTIVE,CHRISALIS REFURBISHMENT LTD,"1,210.65",CAPITAL PS (REGEN),CONSTRUCTION,2103355314,3000002080
07.12.2021,CHIEF EXECUTIVE,KN NETWORK SERVICES LTD,"277,821.06",CAPITAL PS (REGEN),CONSTRUCTION MAIN CONTRACT -CERTIFICATED,2103355111,3000002134
07.12.2021,CHILDREN AND ADULT,KEEGANS LTD,"10,450.00",CAPITAL PS (EDUCATION),CONSTRUCTION FEES - QUANTITY SURVEYOR,5902499621,1000039674
07.12.2021,CHILDREN AND ADULT,FAITHFUL & GOULD,"1,718.44",CAPITAL PS (EDUCATION),CONSTRUCTION FEES - QUANTITY SURVEYOR,5902499616,1000061390
07.12.2021,CHILDREN AND FAMILIES,ST CHRISTOPHER FELLOWSHIP,"21,214.20",CHILDREN�S RESID,RESIDENTIAL CARE,2103355237,1000045269
07.12.2021,CHILDREN AND FAMILIES,OWNLIFE RESIDENTIAL LTD,"25,285.71",CHILDREN�S RESID,RESIDENTIAL CARE,2103355235,1000085398
07.12.2021,CHILDREN AND FAMILIES,247 BLUEBELL CARE LIMITED,"34,917.51",CHILDREN�S RESID,RESIDENTIAL CARE,2103355239,1000087186
07.12.2021,CHILDREN AND FAMILIES,REDACTED PERSONAL DATA,300,FOSTERING ALLOWANCES,ADDITIONAL PAYMENTS TO AGENCIES/CARERS,REDACTED,REDACTED
07.12.2021,CHILDREN AND FAMILIES,REDACTED PERSONAL DATA,300,FOSTERING ALLOWANCES,ADDITIONAL PAYMENTS TO AGENCIES/CARERS,REDACTED,REDACTED
07.12.2021,CHILDREN AND FAMILIES,MARKS & SPENCER ,300,FOSTERING TEAM,EXTERNAL AGENCIES AND BODIES,5902499623,1000031032
07.12.2021,CHILDREN AND FAMILIES,TACT,396.42,FRIENDS & FAMILY FOSTERING,EXTERNAL AGENCIES AND BODIES,2103355225,1000012941
07.12.2021,CHILDREN AND FAMILIES,FIVE RIVERS CHILD CARE LTD,"3,257.14",FRIENDS & FAMILY FOSTERING,EXTERNAL AGENCIES AND BODIES,2103355224,1000018792
07.12.2021,CHILDREN AND FAMILIES,FIVE RIVERS CHILD CARE LTD,"3,461.57",FRIENDS & FAMILY FOSTERING,EXTERNAL AGENCIES AND BODIES,2103355208,1000018792
07.12.2021,CHILDREN AND FAMILIES,FIVE RIVERS CHILD CARE LTD,"3,461.57",FRIENDS & FAMILY FOSTERING,EXTERNAL AGENCIES AND BODIES,2103355216,1000018792
07.12.2021,CHILDREN AND FAMILIES,GREATER LONDON FOSTERING,970.4,FRIENDS & FAMILY FOSTERING,EXTERNAL AGENCIES AND BODIES,2103355227,1000029184
07.12.2021,CHILDREN AND FAMILIES,GREATER LONDON FOSTERING,"3,420.00",FRIENDS & FAMILY FOSTERING,EXTERNAL AGENCIES AND BODIES,2103355217,1000029184
07.12.2021,CHILDREN AND FAMILIES,GREATER LONDON FOSTERING,"3,639.00",FRIENDS & FAMILY FOSTERING,EXTERNAL AGENCIES AND BODIES,2103355215,1000029184
07.12.2021,CHILDREN AND FAMILIES,GREATER LONDON FOSTERING,"4,495.50",FRIENDS & FAMILY FOSTERING,EXTERNAL AGENCIES AND BODIES,2103355218,1000029184
07.12.2021,CHILDREN AND FAMILIES,GREATER LONDON FOSTERING,"4,944.00",FRIENDS & FAMILY FOSTERING,EXTERNAL AGENCIES AND BODIES,2103355226,1000029184
07.12.2021,CHILDREN AND FAMILIES,GREATER LONDON FOSTERING,"7,461.00",FRIENDS & FAMILY FOSTERING,EXTERNAL AGENCIES AND BODIES,2103355206,1000029184
07.12.2021,CHILDREN AND FAMILIES,KASPER FOSTERING,"3,399.90",FRIENDS & FAMILY FOSTERING,EXTERNAL AGENCIES AND BODIES,2103355210,1000036628
07.12.2021,CHILDREN AND FAMILIES,KASPER FOSTERING,"4,490.70",FRIENDS & FAMILY FOSTERING,EXTERNAL AGENCIES AND BODIES,2103355207,1000036628
07.12.2021,CHILDREN AND FAMILIES,SUNBEAM FOSTERING AGENCY LTD,"3,321.43",FRIENDS & FAMILY FOSTERING,EXTERNAL AGENCIES AND BODIES,2103355222,1000041457
07.12.2021,CHILDREN AND FAMILIES,SUNBEAM FOSTERING AGENCY LTD,"5,464.29",FRIENDS & FAMILY FOSTERING,EXTERNAL AGENCIES AND BODIES,2103355230,1000041457
07.12.2021,CHILDREN AND FAMILIES,CHILDREN OF COLOUR,"2,514.29",FRIENDS & FAMILY FOSTERING,EXTERNAL AGENCIES AND BODIES,2103355233,1000044955
07.12.2021,CHILDREN AND FAMILIES,ST CHRISTOPHER FELLOWSHIP,"2,072.70",FRIENDS & FAMILY FOSTERING,EXTERNAL AGENCIES AND BODIES,2103355223,1000045269
07.12.2021,CHILDREN AND FAMILIES,ST CHRISTOPHER FELLOWSHIP,"2,114.91",FRIENDS & FAMILY FOSTERING,EXTERNAL AGENCIES AND BODIES,2103355219,1000045269
07.12.2021,CHILDREN AND FAMILIES,RAINBOW FOSTERING SERVICES LTD,"6,000.00",FRIENDS & FAMILY FOSTERING,EXTERNAL AGENCIES AND BODIES,2103355212,1000076620
07.12.2021,CHILDREN AND FAMILIES,RAINBOW FOSTERING SERVICES LTD,"7,500.00",FRIENDS & FAMILY FOSTERING,EXTERNAL AGENCIES AND BODIES,2103355213,1000076620
07.12.2021,CHILDREN AND FAMILIES,REGIONAL FOSTERING SERVICES LTD,"4,051.07",FRIENDS & FAMILY FOSTERING,EXTERNAL AGENCIES AND BODIES,2103355211,1000080112
07.12.2021,CHILDREN AND FAMILIES,FAMILY FIRST FOSTERING LTD,"3,394.28",FRIENDS & FAMILY FOSTERING,EXTERNAL AGENCIES AND BODIES,2103355214,1000080631
07.12.2021,CHILDREN AND FAMILIES,FAMILY FIRST FOSTERING LTD,"3,697.50",FRIENDS & FAMILY FOSTERING,EXTERNAL AGENCIES AND BODIES,2103355229,1000080631
07.12.2021,CHILDREN AND FAMILIES,FAMILY WORKS FOSTERING LTD,"6,072.86",FRIENDS & FAMILY FOSTERING,EXTERNAL AGENCIES AND BODIES,2103355228,1000082529
07.12.2021,CHILDREN AND FAMILIES,PILGRIMS CORNER LIMITED,"4,281.90",FRIENDS & FAMILY FOSTERING,EXTERNAL AGENCIES AND BODIES,2103355221,1000084708
07.12.2021,CHILDREN AND FAMILIES,CARING HEARTS FOSTERING,"3,428.70",FRIENDS & FAMILY FOSTERING,EXTERNAL AGENCIES AND BODIES,2103355209,1000087065
07.12.2021,CHILDREN AND FAMILIES,CARING HEARTS FOSTERING,"3,428.70",FRIENDS & FAMILY FOSTERING,EXTERNAL AGENCIES AND BODIES,2103355220,1000087065
07.12.2021,CHILDREN AND FAMILIES,PURPLE PEBBLES(CHILD CARE) SERVICES,"-1,100.00",SEMI-IND CARELEAVERS,COSTS RECOVERED,2103355303,1000070705
07.12.2021,CHILDREN AND FAMILIES,PURPLE PEBBLES(CHILD CARE) SERVICES,-888.2,SEMI-IND CARELEAVERS,COSTS RECOVERED,2103355309,1000070705
07.12.2021,CHILDREN AND FAMILIES,PURPLE PEBBLES(CHILD CARE) SERVICES,-623.35,SEMI-IND CARELEAVERS,COSTS RECOVERED,2103355308,1000070705
07.12.2021,CHILDREN AND FAMILIES,PURPLE PEBBLES(CHILD CARE) SERVICES,-516.52,SEMI-IND CARELEAVERS,COSTS RECOVERED,2103355310,1000070705
07.12.2021,CHILDREN AND FAMILIES,NEXT STEP CARE MANAGEMENT LTD,"2,892.86",SEMI-IND CARELEAVERS,EXTERNAL AGENCIES AND BODIES,2103355168,1825556
07.12.2021,CHILDREN AND FAMILIES,NEXT STEP CARE MANAGEMENT LTD,"3,321.43",SEMI-IND CARELEAVERS,EXTERNAL AGENCIES AND BODIES,2103355169,1825556
07.12.2021,CHILDREN AND FAMILIES,PURPLE PEBBLES(CHILD CARE) SERVICES,"1,032.14",SEMI-IND CARELEAVERS,EXTERNAL AGENCIES AND BODIES,2103355188,1000070705
07.12.2021,CHILDREN AND FAMILIES,PURPLE PEBBLES(CHILD CARE) SERVICES,"1,650.00",SEMI-IND CARELEAVERS,EXTERNAL AGENCIES AND BODIES,2103355163,1000070705
07.12.2021,CHILDREN AND FAMILIES,PURPLE PEBBLES(CHILD CARE) SERVICES,"1,821.43",SEMI-IND CARELEAVERS,EXTERNAL AGENCIES AND BODIES,2103355158,1000070705
07.12.2021,CHILDREN AND FAMILIES,PURPLE PEBBLES(CHILD CARE) SERVICES,"1,821.43",SEMI-IND CARELEAVERS,EXTERNAL AGENCIES AND BODIES,2103355186,1000070705
07.12.2021,CHILDREN AND FAMILIES,PURPLE PEBBLES(CHILD CARE) SERVICES,"2,035.71",SEMI-IND CARELEAVERS,EXTERNAL AGENCIES AND BODIES,2103355173,1000070705
07.12.2021,CHILDREN AND FAMILIES,PURPLE PEBBLES(CHILD CARE) SERVICES,"2,400.00",SEMI-IND CARELEAVERS,EXTERNAL AGENCIES AND BODIES,2103355183,1000070705
07.12.2021,CHILDREN AND FAMILIES,HEARTWOOD OUTREACH SERVICES LTD,307.93,SEMI-IND CARELEAVERS,EXTERNAL AGENCIES AND BODIES,2103355172,1000075021
07.12.2021,CHILDREN AND FAMILIES,HEARTWOOD OUTREACH SERVICES LTD,"1,518.77",SEMI-IND CARELEAVERS,EXTERNAL AGENCIES AND BODIES,2103355171,1000075021
07.12.2021,CHILDREN AND FAMILIES,PURPLE PEBBLES(CHILD CARE) SERVICES,"5,357.18",SEMI-IND LAC 16-17,EXTERNAL AGENCIES AND BODIES,2103355203,1000070705
07.12.2021,CHILDREN AND FAMILIES,HIGHER LEVEL CARE LTD,"3,750.00",SEMI-IND LAC 16-17,EXTERNAL AGENCIES AND BODIES,2103355193,1000087055
07.12.2021,CHILDREN AND FAMILIES,HIGHER LEVEL CARE LTD,300,SEMI-IND LAC 16-17,OTHER PAYMENTS FOR CLIENTS,2103355194,1000087055
07.12.2021,CHILDREN AND FAMILIES,REDACTED PERSONAL DATA,265,SEMI-IND LAC 16-17,OTHER PAYMENTS FOR CLIENTS,REDACTED,REDACTED
07.12.2021,CHILDREN AND FAMILIES,PURPLE PEBBLES(CHILD CARE) SERVICES,-875,UASC CARELEAVERS,COSTS RECOVERED,2103355304,1000070705
07.12.2021,CHILDREN AND FAMILIES,PURPLE PEBBLES(CHILD CARE) SERVICES,-875,UASC CARELEAVERS,COSTS RECOVERED,2103355306,1000070705
07.12.2021,CHILDREN AND FAMILIES,PURPLE PEBBLES(CHILD CARE) SERVICES,-875,UASC CARELEAVERS,COSTS RECOVERED,2103355307,1000070705
07.12.2021,CHILDREN AND FAMILIES,PURPLE PEBBLES(CHILD CARE) SERVICES,-516.52,UASC CARELEAVERS,COSTS RECOVERED,2103355305,1000070705
07.12.2021,CHILDREN AND FAMILIES,PURPLE PEBBLES(CHILD CARE) SERVICES,280,UASC CARELEAVERS,EXTERNAL AGENCIES AND BODIES,2103355164,1000070705
07.12.2021,CHILDREN AND FAMILIES,PURPLE PEBBLES(CHILD CARE) SERVICES,"1,542.86",UASC CARELEAVERS,EXTERNAL AGENCIES AND BODIES,2103355167,1000070705
07.12.2021,CHILDREN AND FAMILIES,PURPLE PEBBLES(CHILD CARE) SERVICES,"1,607.14",UASC CARELEAVERS,EXTERNAL AGENCIES AND BODIES,2103355151,1000070705
07.12.2021,CHILDREN AND FAMILIES,PURPLE PEBBLES(CHILD CARE) SERVICES,"1,607.14",UASC CARELEAVERS,EXTERNAL AGENCIES AND BODIES,2103355160,1000070705
07.12.2021,CHILDREN AND FAMILIES,PURPLE PEBBLES(CHILD CARE) SERVICES,"1,607.14",UASC CARELEAVERS,EXTERNAL AGENCIES AND BODIES,2103355166,1000070705
07.12.2021,CHILDREN AND FAMILIES,PURPLE PEBBLES(CHILD CARE) SERVICES,"1,607.14",UASC CARELEAVERS,EXTERNAL AGENCIES AND BODIES,2103355174,1000070705
07.12.2021,CHILDREN AND FAMILIES,PURPLE PEBBLES(CHILD CARE) SERVICES,"1,607.14",UASC CARELEAVERS,EXTERNAL AGENCIES AND BODIES,2103355180,1000070705
07.12.2021,CHILDREN AND FAMILIES,PURPLE PEBBLES(CHILD CARE) SERVICES,"1,607.14",UASC CARELEAVERS,EXTERNAL AGENCIES AND BODIES,2103355185,1000070705
07.12.2021,CHILDREN AND FAMILIES,PURPLE PEBBLES(CHILD CARE) SERVICES,"1,692.86",UASC CARELEAVERS,EXTERNAL AGENCIES AND BODIES,2103355161,1000070705
07.12.2021,CHILDREN AND FAMILIES,PURPLE PEBBLES(CHILD CARE) SERVICES,"1,714.29",UASC CARELEAVERS,EXTERNAL AGENCIES AND BODIES,2103355144,1000070705
07.12.2021,CHILDREN AND FAMILIES,PURPLE PEBBLES(CHILD CARE) SERVICES,"1,757.14",UASC CARELEAVERS,EXTERNAL AGENCIES AND BODIES,2103355162,1000070705
07.12.2021,CHILDREN AND FAMILIES,PURPLE PEBBLES(CHILD CARE) SERVICES,"1,821.43",UASC CARELEAVERS,EXTERNAL AGENCIES AND BODIES,2103355178,1000070705
07.12.2021,CHILDREN AND FAMILIES,PURPLE PEBBLES(CHILD CARE) SERVICES,"1,842.86",UASC CARELEAVERS,EXTERNAL AGENCIES AND BODIES,2103355154,1000070705
07.12.2021,CHILDREN AND FAMILIES,PURPLE PEBBLES(CHILD CARE) SERVICES,"1,885.71",UASC CARELEAVERS,EXTERNAL AGENCIES AND BODIES,2103355155,1000070705
07.12.2021,CHILDREN AND FAMILIES,PURPLE PEBBLES(CHILD CARE) SERVICES,"1,885.71",UASC CARELEAVERS,EXTERNAL AGENCIES AND BODIES,2103355156,1000070705
07.12.2021,CHILDREN AND FAMILIES,PURPLE PEBBLES(CHILD CARE) SERVICES,"1,885.71",UASC CARELEAVERS,EXTERNAL AGENCIES AND BODIES,2103355179,1000070705
07.12.2021,CHILDREN AND FAMILIES,PURPLE PEBBLES(CHILD CARE) SERVICES,"1,885.71",UASC CARELEAVERS,EXTERNAL AGENCIES AND BODIES,2103355184,1000070705
07.12.2021,CHILDREN AND FAMILIES,PURPLE PEBBLES(CHILD CARE) SERVICES,"1,917.86",UASC CARELEAVERS,EXTERNAL AGENCIES AND BODIES,2103355177,1000070705
07.12.2021,CHILDREN AND FAMILIES,PURPLE PEBBLES(CHILD CARE) SERVICES,"1,928.57",UASC CARELEAVERS,EXTERNAL AGENCIES AND BODIES,2103355152,1000070705
07.12.2021,CHILDREN AND FAMILIES,PURPLE PEBBLES(CHILD CARE) SERVICES,"1,928.57",UASC CARELEAVERS,EXTERNAL AGENCIES AND BODIES,2103355153,1000070705
07.12.2021,CHILDREN AND FAMILIES,PURPLE PEBBLES(CHILD CARE) SERVICES,"1,992.86",UASC CARELEAVERS,EXTERNAL AGENCIES AND BODIES,2103355147,1000070705
07.12.2021,CHILDREN AND FAMILIES,PURPLE PEBBLES(CHILD CARE) SERVICES,"2,025.00",UASC CARELEAVERS,EXTERNAL AGENCIES AND BODIES,2103355181,1000070705
07.12.2021,CHILDREN AND FAMILIES,PURPLE PEBBLES(CHILD CARE) SERVICES,"2,035.71",UASC CARELEAVERS,EXTERNAL AGENCIES AND BODIES,2103355159,1000070705
07.12.2021,CHILDREN AND FAMILIES,PURPLE PEBBLES(CHILD CARE) SERVICES,280,UASC CARELEAVERS,OTHER PAYMENTS FOR CLIENTS,2103355150,1000070705
07.12.2021,CHILDREN AND FAMILIES,PURPLE PEBBLES(CHILD CARE) SERVICES,280,UASC CARELEAVERS,OTHER PAYMENTS FOR CLIENTS,2103355175,1000070705
07.12.2021,CHILDREN AND FAMILIES,PURPLE PEBBLES(CHILD CARE) SERVICES,280,UASC CARELEAVERS,OTHER PAYMENTS FOR CLIENTS,2103355176,1000070705
07.12.2021,CHILDREN AND FAMILIES,PURPLE PEBBLES(CHILD CARE) SERVICES,350,UASC CARELEAVERS,OTHER PAYMENTS FOR CLIENTS,2103355146,1000070705
07.12.2021,CHILDREN AND FAMILIES,PURPLE PEBBLES(CHILD CARE) SERVICES,350,UASC CARELEAVERS,OTHER PAYMENTS FOR CLIENTS,2103355157,1000070705
07.12.2021,CHILDREN AND FAMILIES,PURPLE PEBBLES(CHILD CARE) SERVICES,350,UASC CARELEAVERS,OTHER PAYMENTS FOR CLIENTS,2103355165,1000070705
07.12.2021,CHILDREN AND FAMILIES,PURPLE PEBBLES(CHILD CARE) SERVICES,350,UASC CARELEAVERS,OTHER PAYMENTS FOR CLIENTS,2103355182,1000070705
07.12.2021,CHILDREN AND FAMILIES,PURPLE PEBBLES(CHILD CARE) SERVICES,"1,821.43",UASC LAC 16-17,EXTERNAL AGENCIES AND BODIES,2103355204,1000070705
07.12.2021,CHILDREN AND FAMILIES,PURPLE PEBBLES(CHILD CARE) SERVICES,"2,142.85",UASC LAC 16-17,EXTERNAL AGENCIES AND BODIES,2103355196,1000070705
07.12.2021,CHILDREN AND FAMILIES,PURPLE PEBBLES(CHILD CARE) SERVICES,"3,428.57",UASC LAC 16-17,EXTERNAL AGENCIES AND BODIES,2103355190,1000070705
07.12.2021,CHILDREN AND FAMILIES,PURPLE PEBBLES(CHILD CARE) SERVICES,"3,428.57",UASC LAC 16-17,EXTERNAL AGENCIES AND BODIES,2103355191,1000070705
07.12.2021,CHILDREN AND FAMILIES,PURPLE PEBBLES(CHILD CARE) SERVICES,"3,428.57",UASC LAC 16-17,EXTERNAL AGENCIES AND BODIES,2103355198,1000070705
07.12.2021,CHILDREN AND FAMILIES,PURPLE PEBBLES(CHILD CARE) SERVICES,"3,428.57",UASC LAC 16-17,EXTERNAL AGENCIES AND BODIES,2103355200,1000070705
07.12.2021,CHILDREN AND FAMILIES,PURPLE PEBBLES(CHILD CARE) SERVICES,280,UASC LAC 16-17,OTHER PAYMENTS FOR CLIENTS,2103355197,1000070705
07.12.2021,CHILDREN AND FAMILIES,PURPLE PEBBLES(CHILD CARE) SERVICES,350,UASC LAC 16-17,OTHER PAYMENTS FOR CLIENTS,2103355189,1000070705
07.12.2021,CHILDREN AND FAMILIES,PURPLE PEBBLES(CHILD CARE) SERVICES,350,UASC LAC 16-17,OTHER PAYMENTS FOR CLIENTS,2103355199,1000070705
07.12.2021,COMMUNITIES HRA,SOUTHWARK GROUP OF TENANTS ORGANISATION,"51,459.50",RESIDENTS PARTICIPATION FUND,GRANTS,5902499662,1479419
07.12.2021,COMMUNITIES HRA,GLOUCESTER GROVE ESTATE TMO,"1,000.00",RESIDENTS PARTICIPATION FUND,GRANTS,5902499630,1000073072
07.12.2021,EDUCATION,KELLIE ANSELL,"3,879.90",MENTAL HEALTH AND RESILIENCE,CONSULTANTS SERVICES,5902499745,1000086701
07.12.2021,ENVIRONMENT AND LEISURE,PREMIER SURVEYS,"1,070.00",CAPITAL PS (LEISURE),CONSTRUCTION,5902499605,1000075479
07.12.2021,ENVIRONMENT AND LEISURE,RH WROUGHT IRON,"3,000.00",CAPITAL PS (LEISURE),CONSTRUCTION FEES,2103354110,3000000680
07.12.2021,ENVIRONMENT AND LEISURE,ENVIRO TECHNOLOGY SERVICES PLC,"4,050.00",CAPITAL PS (LEISURE),"PLANT, MACHINERY & EQUIPMENT ACQUISITION",5902499622,1000005024
07.12.2021,ENVIRONMENT AND LEISURE,AGENTIS WORKWEAR LTD,336,MANAGEMENT TEAM,"CLOTHING, UNIFORMS & LAUNDRY",5902499641,1000065561
07.12.2021,ENVIRONMENT DIRECTORATE,KENT COUNTY COUNCIL - LASER,592.42,BUSINESS CORE,GAS,5902499695,1000012926
07.12.2021,ENVIRONMENT DIRECTORATE,ARNOLD CLARK VEHICLE MANAGEMENT,285.07,CAR LEASING CTRL A/C,VEHICLE LEASING CHARGES,5902499724,1000079116
07.12.2021,ENVIRONMENT DIRECTORATE,ARNOLD CLARK VEHICLE MANAGEMENT,292.11,CAR LEASING CTRL A/C,VEHICLE LEASING CHARGES,5902499744,1000079116
07.12.2021,ENVIRONMENT DIRECTORATE,ARNOLD CLARK VEHICLE MANAGEMENT,408.46,CAR LEASING CTRL A/C,VEHICLE LEASING CHARGES,5902499717,1000079116
07.12.2021,ENVIRONMENT DIRECTORATE,ARNOLD CLARK VEHICLE MANAGEMENT,443.35,CAR LEASING CTRL A/C,VEHICLE LEASING CHARGES,5902499709,1000079116
07.12.2021,ENVIRONMENT DIRECTORATE,ARNOLD CLARK VEHICLE MANAGEMENT,508.93,CAR LEASING CTRL A/C,VEHICLE LEASING CHARGES,5902499682,1000079116
07.12.2021,ENVIRONMENT DIRECTORATE,ARNOLD CLARK VEHICLE MANAGEMENT,518.38,CAR LEASING CTRL A/C,VEHICLE LEASING CHARGES,5902499740,1000079116
07.12.2021,ENVIRONMENT DIRECTORATE,ARNOLD CLARK VEHICLE MANAGEMENT,639.93,CAR LEASING CTRL A/C,VEHICLE LEASING CHARGES,5902499684,1000079116
07.12.2021,ENVIRONMENT DIRECTORATE,ARNOLD CLARK VEHICLE MANAGEMENT,753.52,CAR LEASING CTRL A/C,VEHICLE LEASING CHARGES,5902499700,1000079116
07.12.2021,ENVIRONMENT DIRECTORATE,ARNOLD CLARK VEHICLE MANAGEMENT,770.13,CAR LEASING CTRL A/C,VEHICLE LEASING CHARGES,5902499734,1000079116
07.12.2021,ENVIRONMENT DIRECTORATE,ARNOLD CLARK VEHICLE MANAGEMENT,885.29,CAR LEASING CTRL A/C,VEHICLE LEASING CHARGES,5902499707,1000079116
07.12.2021,ENVIRONMENT DIRECTORATE,ARNOLD CLARK VEHICLE MANAGEMENT,"1,118.81",CAR LEASING CTRL A/C,VEHICLE LEASING CHARGES,5902499711,1000079116
07.12.2021,ENVIRONMENT DIRECTORATE,ARNOLD CLARK VEHICLE MANAGEMENT,"1,196.11",CAR LEASING CTRL A/C,VEHICLE LEASING CHARGES,5902499747,1000079116
07.12.2021,ENVIRONMENT DIRECTORATE,ARNOLD CLARK VEHICLE MANAGEMENT,"1,237.33",CAR LEASING CTRL A/C,VEHICLE LEASING CHARGES,5902499732,1000079116
07.12.2021,ENVIRONMENT DIRECTORATE,ARNOLD CLARK VEHICLE MANAGEMENT,"1,271.30",CAR LEASING CTRL A/C,VEHICLE LEASING CHARGES,5902499673,1000079116
07.12.2021,ENVIRONMENT DIRECTORATE,ARNOLD CLARK VEHICLE MANAGEMENT,"1,498.60",CAR LEASING CTRL A/C,VEHICLE LEASING CHARGES,5902499666,1000079116
07.12.2021,ENVIRONMENT DIRECTORATE,I.S & G STEEL STOCKHOLDER LTD,288,GRANGE DOORS,MATERIALS,5902499725,1028293
07.12.2021,ENVIRONMENT DIRECTORATE,I.S & G STEEL STOCKHOLDER LTD,530,GRANGE DOORS,MATERIALS,5902499725,1028293
07.12.2021,ENVIRONMENT DIRECTORATE,GLASDON UK LIMITED,322.8,PARKS TECH UNIT (PREMISES),MATERIALS,5902499722,1024073
07.12.2021,ENVIRONMENT DIRECTORATE,GLASDON UK LIMITED,"3,796.48",PARKS TECH UNIT (PREMISES),MATERIALS,5902499722,1024073
07.12.2021,ENVIRONMENT DIRECTORATE,GRAFTON MERCHANTING GB LTD,295.91,PARKS TECH UNIT (PREMISES),MATERIALS,5902499751,11296147
07.12.2021,ENVIRONMENT DIRECTORATE,FABRIKAT (NOTTINGHAM) LTD,"10,281.60",PUBLIC LIGHTING,MATERIALS,5902499729,1036223
07.12.2021,ENVIRONMENT DIRECTORATE,ALL PRINT SUPPLIES LTD,"2,133.00",PUBLIC LIGHTING,MATERIALS,5902499733,1927973
07.12.2021,ENVIRONMENT DIRECTORATE,CHARLES ENDIRECT LTD,961.8,PUBLIC LIGHTING,MATERIALS,5902499736,11284665
07.12.2021,ENVIRONMENT DIRECTORATE,CHARLES ENDIRECT LTD,"1,348.00",PUBLIC LIGHTING,MATERIALS,5902499736,11284665
07.12.2021,ENVIRONMENT DIRECTORATE,GRAFTON MERCHANTING GB LTD,459,PUBLIC LIGHTING,OP LEASE/HIRE CHARGES:PLANT/EQUIP/FURNIT,5902499752,11296147
07.12.2021,ENVIRONMENT DIRECTORATE,CABLE TEST LTD,547.47,PUBLIC LIGHTING,OTHER CONTRACTORS,5902499693,1000079183
07.12.2021,ENVIRONMENT DIRECTORATE,CABLE TEST LTD,"2,127.25",PUBLIC LIGHTING,OTHER CONTRACTORS,5902499690,1000079183
07.12.2021,ENVIRONMENT DIRECTORATE,CABLE TEST LTD,"2,294.21",PUBLIC LIGHTING,OTHER CONTRACTORS,5902499692,1000079183
07.12.2021,ENVIRONMENT DIRECTORATE,CABLE TEST LTD,"3,425.07",PUBLIC LIGHTING,OTHER CONTRACTORS,5902499688,1000079183
07.12.2021,ENVIRONMENT DIRECTORATE,CABLE TEST LTD,"3,688.73",PUBLIC LIGHTING,OTHER CONTRACTORS,5902499691,1000079183
07.12.2021,ENVIRONMENT DIRECTORATE,ALL PRINT SUPPLIES LTD,675.78,SIGN SHOP,MATERIALS,5902499733,1927973
07.12.2021,ENVIRONMENT DIRECTORATE,ALL PRINT SUPPLIES LTD,782.76,SIGN SHOP,MATERIALS,5902499733,1927973
07.12.2021,ENVIRONMENT DIRECTORATE,CROMWELL POLYTHENE LTD,"1,074.24",STREET CLEANING-GENERAL,MATERIALS,5902499650,1000021159
07.12.2021,ENVIRONMENT DIRECTORATE,ELLIOT ENVIRONMENTAL LTD,"1,200.00",STREET CLEANING-GENERAL,OTHER CONTRACTORS,5902499645,1000047392
07.12.2021,ENVIRONMENT DIRECTORATE,KENT COUNTY COUNCIL - LASER,478.45,STREET LIGHTING REACTIVE,ELECTRICITY,5902499694,1000012926
07.12.2021,ENVIRONMENT DIRECTORATE,BRITISH GAS,445.55,STREET TRADING A/C,ELECTRICITY,5902499256,1000054825
07.12.2021,F & C S EXCLUDING CORPORATE BUDGETS,REDACTED PERSONAL DATA,500,SESS,OTHER PAYMENTS FOR CLIENTS,REDACTED,REDACTED
07.12.2021,F & C S EXCLUDING CORPORATE BUDGETS,REDACTED PERSONAL DATA,500,SESS,OTHER PAYMENTS FOR CLIENTS,REDACTED,REDACTED
07.12.2021,F & C S EXCLUDING CORPORATE BUDGETS,REDACTED PERSONAL DATA,500,SESS,OTHER PAYMENTS FOR CLIENTS,REDACTED,REDACTED
07.12.2021,F & C S EXCLUDING CORPORATE BUDGETS,REDACTED PERSONAL DATA,500,SESS,OTHER PAYMENTS FOR CLIENTS,REDACTED,REDACTED
07.12.2021,F & C S EXCLUDING CORPORATE BUDGETS,REDACTED PERSONAL DATA,500,SESS,OTHER PAYMENTS FOR CLIENTS,REDACTED,REDACTED
07.12.2021,F & C S EXCLUDING CORPORATE BUDGETS,REDACTED PERSONAL DATA,500,SESS,OTHER PAYMENTS FOR CLIENTS,REDACTED,REDACTED
07.12.2021,HOUSING,PROPERTY FACILITIES GROUP PLC,"47,501.95",PROPERTY FACILITIES GROUP,I-WORLD CONTRACTORS HOLDING ACCOUNT,2103355106,3000001420
07.12.2021,HOUSING GENERAL FUND,UNIFIED CONSULTANCY LTD,"24,319.95",CAPITAL PS (HOUSING GF),ICT ACQUISITION,5902499618,1000081827
07.12.2021,HOUSING HRA,HARRADINES REMOVALS,"2,500.00",CAPITAL PS (HRA),CAPITAL GRANTS,5902499659,1006511
07.12.2021,HOUSING HRA,DISABILITY ADAPTIONS CONSULTANCY SERVICE T/A DACS,"6,487.42",CAPITAL PS (HRA),CONST'N MAIN CONTRACT - NON CERTIFICATED,2103355119,3000002000
07.12.2021,HOUSING HRA,AJMADAPTIONS LTD,"7,939.00",CAPITAL PS (HRA),CONST'N MAIN CONTRACT - NON CERTIFICATED,2103355114,3000002056
07.12.2021,HOUSING HRA,ENGIE REGENERATION LTD,"14,550.00",CAPITAL PS (HRA),CONSTRUCTION FEES,2103355115,3000002035
07.12.2021,HOUSING HRA,POTTER RAPER LTD,"6,030.00",CAPITAL PS (HRA),CONSTRUCTION FEES  - EXTERNAL,5902499625,1009369
07.12.2021,HOUSING HRA,POTTER RAPER LTD,"8,442.00",CAPITAL PS (HRA),CONSTRUCTION FEES  - EXTERNAL,5902499631,1009369
07.12.2021,HOUSING HRA,POTTER RAPER LTD,"11,457.00",CAPITAL PS (HRA),CONSTRUCTION FEES  - EXTERNAL,5902499627,1009369
07.12.2021,HOUSING HRA,POTTER RAPER LTD,"13,420.80",CAPITAL PS (HRA),CONSTRUCTION FEES  - EXTERNAL,5902499629,1009369
07.12.2021,HOUSING HRA,POTTER RAPER LTD,"13,840.20",CAPITAL PS (HRA),CONSTRUCTION FEES  - EXTERNAL,5902499632,1009369
07.12.2021,HOUSING HRA,POTTER RAPER LTD,"15,517.80",CAPITAL PS (HRA),CONSTRUCTION FEES  - EXTERNAL,5902499628,1009369
07.12.2021,HOUSING HRA,COTTRELL AND VERMEULEN ARCH LTD,"13,698.16",CAPITAL PS (HRA),CONSTRUCTION FEES  - EXTERNAL,5902499699,1000012119
07.12.2021,HOUSING HRA,ENGIE REGENERATION  LTD,"141,000.00",CAPITAL PS (HRA),CONSTRUCTION FEES  - EXTERNAL,5902499619,1000013358
07.12.2021,HOUSING HRA,VPS (UK) LTD,"5,066.25",CAPITAL PS (HRA),CONSTRUCTION FEES  - EXTERNAL,5902499671,1000040614
07.12.2021,HOUSING HRA,VPS (UK) LTD,"5,580.75",CAPITAL PS (HRA),CONSTRUCTION FEES  - EXTERNAL,5902499669,1000040614
07.12.2021,HOUSING HRA,VPS (UK) LTD,"13,037.50",CAPITAL PS (HRA),CONSTRUCTION FEES  - EXTERNAL,5902499665,1000040614
07.12.2021,HOUSING HRA,VPS (UK) LTD,"13,207.00",CAPITAL PS (HRA),CONSTRUCTION FEES  - EXTERNAL,5902499675,1000040614
07.12.2021,HOUSING HRA,RPS CONSULTING SERVICES LTD,"1,595.00",CAPITAL PS (HRA),CONSTRUCTION FEES  - EXTERNAL,5902499696,1000053170
07.12.2021,HOUSING HRA,ENGIE REGENERATION (APOLLO) LTD,"111,794.45",CAPITAL PS (HRA),CONSTRUCTION MAIN CONTRACT -CERTIFICATED,2103355110,4000449
07.12.2021,LEISURE DIRECTORATE,GLASDON UK LIMITED,"1,898.24",SOUTHWARK AREA TEAM,OTHER R&M,5902499722,1024073
07.12.2021,NEW BUILD,OCEAN MEDIA GROUP LIMITED,"1,275.00",DEVELOPMENT DELIVERY,MARKETING & PUBLICITY SERVICES,5902499687,1000003205
07.12.2021,NEW BUILD,POTTER RAPER LTD,"5,892.75",DEVELOPMENT DELIVERY,PROFESSIONAL FEES,5902499615,1009369
07.12.2021,PLANNING AND TRANSPORT,MONSON ENGINEERING LTD,450,CHARGEABLE BUILDING CONTROL,PROFESSIONAL FEES,5902499660,1000077622
07.12.2021,PLANNING AND TRANSPORT,MONSON ENGINEERING LTD,450,CHARGEABLE BUILDING CONTROL,PROFESSIONAL FEES,5902499661,1000077622
07.12.2021,PLANNING AND TRANSPORT,MONSON ENGINEERING LTD,"2,500.00",CHARGEABLE BUILDING CONTROL,PROFESSIONAL FEES,5902499663,1000077622
07.12.2021,PLANNING AND TRANSPORT,ORACLE CORPORATION UK LTD,"2,344.66",DEV MGT ADMIN & INCOME,COMPUTER MAINTENANCE,5902499381,1000005079
07.12.2021,PLANNING AND TRANSPORT,SOUTHWARK NEWSPAPER LTD,504,DEV MGT ADMIN & INCOME,MARKETING & PUBLICITY SERVICES,5902499735,1556957
07.12.2021,PLANNING AND TRANSPORT,SOUTHWARK NEWSPAPER LTD,504,DEV MGT ADMIN & INCOME,MARKETING & PUBLICITY SERVICES,5902499738,1556957
07.12.2021,PUBLIC HEALTH,REDACTED PERSONAL DATA,500,COVID-19 CONTROL OUTBREAK MGMNT.FUND,OTHER PAYMENTS FOR CLIENTS,REDACTED,REDACTED
07.12.2021,PUBLIC HEALTH,REDACTED PERSONAL DATA,500,COVID-19 CONTROL OUTBREAK MGMNT.FUND,OTHER PAYMENTS FOR CLIENTS,REDACTED,REDACTED
07.12.2021,PUBLIC HEALTH,REDACTED PERSONAL DATA,500,COVID-19 CONTROL OUTBREAK MGMNT.FUND,OTHER PAYMENTS FOR CLIENTS,REDACTED,REDACTED
07.12.2021,PUBLIC HEALTH,REDACTED PERSONAL DATA,500,COVID-19 CONTROL OUTBREAK MGMNT.FUND,OTHER PAYMENTS FOR CLIENTS,REDACTED,REDACTED
07.12.2021,PUBLIC HEALTH,BRANDON 2 T&RA,"11,520.00",PLACE & HEALTH IMPROVEMENT,EXTERNAL AGENCIES AND BODIES,5902499636,1000064165
07.12.2021,PUBLIC HEALTH,ANGELS BREAKFAST AND AFTERSCHOOL CLUB,"5,040.00",PLACE & HEALTH IMPROVEMENT,EXTERNAL AGENCIES AND BODIES,5902499620,1000087659
07.12.2021,RESIDENT SERVICES,NPOWER LTD,524.86,TA HOSTELS,ELECTRICITY,5902499683,1000064203
07.12.2021,RESIDENT SERVICES,GOLDSTONE ESTATES LTD,351,TA PLACEMENTS,EXTERNAL AGENCIES AND BODIES,5902499653,1000076548
07.12.2021,RESIDENT SERVICES HGF,REDACTED PERSONAL DATA,"4,500.00",HOMELESS PROJECTS,GRANTS,REDACTED,REDACTED
07.12.2021,RESIDENT SERVICES HGF,REDACTED PERSONAL DATA,"3,000.00",HOMELESS PROJECTS,GRANTS,REDACTED,REDACTED
07.12.2021,RESIDENT SERVICES HGF,ADCRIS CIC,"3,000.00",HOMELESS PROJECTS,GRANTS,5902499635,1000071937
08.12.2021,ADULT SOCIAL CARE,REDACTED PERSONAL DATA,395.2,APPOINTEESHIPS,OTHER PAYMENTS FOR CLIENTS,REDACTED,REDACTED
08.12.2021,ADULT SOCIAL CARE,SUPREME CARE SERVICES LTD,"2,537.88",DISCHARGE TO ACCESS,HOMECARE - C&V,2103355556,1000059416
08.12.2021,ADULT SOCIAL CARE,BEDE HOUSE ASSOCIATION,"1,680.00",DISCHARGE TO ACCESS,SUPPORTED LIVING,2103356348,1553877
08.12.2021,ADULT SOCIAL CARE,REDACTED PERSONAL DATA,320,FAMILY LINK,PAYMENTS TO CARERS,REDACTED,REDACTED
08.12.2021,ADULT SOCIAL CARE,BEDE HOUSE ASSOCIATION,260,LD LTS 18-64,DAYCARE,2103356364,1553877
08.12.2021,ADULT SOCIAL CARE,BEDE HOUSE ASSOCIATION,260,LD LTS 18-64,DAYCARE,2103356367,1553877
08.12.2021,ADULT SOCIAL CARE,BEDE HOUSE ASSOCIATION,260,LD LTS 18-64,DAYCARE,2103356378,1553877
08.12.2021,ADULT SOCIAL CARE,BEDE HOUSE ASSOCIATION,300,LD LTS 18-64,DAYCARE,2103356347,1553877
08.12.2021,ADULT SOCIAL CARE,BEDE HOUSE ASSOCIATION,344,LD LTS 18-64,DAYCARE,2103356384,1553877
08.12.2021,ADULT SOCIAL CARE,BEDE HOUSE ASSOCIATION,520,LD LTS 18-64,DAYCARE,2103356354,1553877
08.12.2021,ADULT SOCIAL CARE,BEDE HOUSE ASSOCIATION,520,LD LTS 18-64,DAYCARE,2103356358,1553877
08.12.2021,ADULT SOCIAL CARE,BEDE HOUSE ASSOCIATION,520,LD LTS 18-64,DAYCARE,2103356362,1553877
08.12.2021,ADULT SOCIAL CARE,BEDE HOUSE ASSOCIATION,520,LD LTS 18-64,DAYCARE,2103356363,1553877
08.12.2021,ADULT SOCIAL CARE,BEDE HOUSE ASSOCIATION,520,LD LTS 18-64,DAYCARE,2103356372,1553877
08.12.2021,ADULT SOCIAL CARE,BEDE HOUSE ASSOCIATION,520,LD LTS 18-64,DAYCARE,2103356375,1553877
08.12.2021,ADULT SOCIAL CARE,BEDE HOUSE ASSOCIATION,520,LD LTS 18-64,DAYCARE,2103356381,1553877
08.12.2021,ADULT SOCIAL CARE,BEDE HOUSE ASSOCIATION,520,LD LTS 18-64,DAYCARE,2103356383,1553877
08.12.2021,ADULT SOCIAL CARE,BEDE HOUSE ASSOCIATION,520,LD LTS 18-64,DAYCARE,2103356388,1553877
08.12.2021,ADULT SOCIAL CARE,BEDE HOUSE ASSOCIATION,580,LD LTS 18-64,DAYCARE,2103356377,1553877
08.12.2021,ADULT SOCIAL CARE,BEDE HOUSE ASSOCIATION,584,LD LTS 18-64,DAYCARE,2103356385,1553877
08.12.2021,ADULT SOCIAL CARE,BEDE HOUSE ASSOCIATION,651.28,LD LTS 18-64,DAYCARE,2103356382,1553877
08.12.2021,ADULT SOCIAL CARE,BEDE HOUSE ASSOCIATION,680,LD LTS 18-64,DAYCARE,2103356387,1553877
08.12.2021,ADULT SOCIAL CARE,BEDE HOUSE ASSOCIATION,728,LD LTS 18-64,DAYCARE,2103356357,1553877
08.12.2021,ADULT SOCIAL CARE,BEDE HOUSE ASSOCIATION,728,LD LTS 18-64,DAYCARE,2103356371,1553877
08.12.2021,ADULT SOCIAL CARE,BEDE HOUSE ASSOCIATION,760,LD LTS 18-64,DAYCARE,2103356369,1553877
08.12.2021,ADULT SOCIAL CARE,BEDE HOUSE ASSOCIATION,910,LD LTS 18-64,DAYCARE,2103356350,1553877
08.12.2021,ADULT SOCIAL CARE,BEDE HOUSE ASSOCIATION,972,LD LTS 18-64,DAYCARE,2103356353,1553877
08.12.2021,ADULT SOCIAL CARE,BEDE HOUSE ASSOCIATION,"1,020.00",LD LTS 18-64,DAYCARE,2103356368,1553877
08.12.2021,ADULT SOCIAL CARE,BEDE HOUSE ASSOCIATION,"1,040.00",LD LTS 18-64,DAYCARE,2103356351,1553877
08.12.2021,ADULT SOCIAL CARE,BEDE HOUSE ASSOCIATION,"1,040.00",LD LTS 18-64,DAYCARE,2103356355,1553877
08.12.2021,ADULT SOCIAL CARE,BEDE HOUSE ASSOCIATION,"1,040.00",LD LTS 18-64,DAYCARE,2103356359,1553877
08.12.2021,ADULT SOCIAL CARE,BEDE HOUSE ASSOCIATION,"1,040.00",LD LTS 18-64,DAYCARE,2103356365,1553877
08.12.2021,ADULT SOCIAL CARE,BEDE HOUSE ASSOCIATION,"1,040.00",LD LTS 18-64,DAYCARE,2103356379,1553877
08.12.2021,ADULT SOCIAL CARE,BEDE HOUSE ASSOCIATION,"1,040.00",LD LTS 18-64,DAYCARE,2103356380,1553877
08.12.2021,ADULT SOCIAL CARE,BEDE HOUSE ASSOCIATION,"1,222.00",LD LTS 18-64,DAYCARE,2103356349,1553877
08.12.2021,ADULT SOCIAL CARE,BEDE HOUSE ASSOCIATION,"1,500.00",LD LTS 18-64,DAYCARE,2103356373,1553877
08.12.2021,ADULT SOCIAL CARE,BEDE HOUSE ASSOCIATION,"1,752.00",LD LTS 18-64,DAYCARE,2103356386,1553877
08.12.2021,ADULT SOCIAL CARE,BEDE HOUSE ASSOCIATION,"2,920.00",LD LTS 18-64,DAYCARE,2103356346,1553877
08.12.2021,ADULT SOCIAL CARE,SHARE COMMUNITY LTD,780,LD LTS 18-64,DAYCARE,2103356344,1000062408
08.12.2021,ADULT SOCIAL CARE,SHARE COMMUNITY LTD,780,LD LTS 18-64,DAYCARE,2103356345,1000062408
08.12.2021,ADULT SOCIAL CARE,SUPREME CARE SERVICES LTD,323.64,LD LTS 18-64,HOMECARE - C&V,2103355470,1000059416
08.12.2021,ADULT SOCIAL CARE,SUPREME CARE SERVICES LTD,848.25,LD LTS 18-64,HOMECARE - C&V,2103355422,1000059416
08.12.2021,ADULT SOCIAL CARE,CHOICE SUPPORT,440.88,LD LTS 18-64,SUPPORTED LIVING,2103356395,1104183
08.12.2021,ADULT SOCIAL CARE,CHOICE SUPPORT,661.32,LD LTS 18-64,SUPPORTED LIVING,2103356401,1104183
08.12.2021,ADULT SOCIAL CARE,CHOICE SUPPORT,661.32,LD LTS 18-64,SUPPORTED LIVING,2103356404,1104183
08.12.2021,ADULT SOCIAL CARE,BEDE HOUSE ASSOCIATION,356,LD LTS 18-64,SUPPORTED LIVING,2103356356,1553877
08.12.2021,ADULT SOCIAL CARE,CONTACT PROFESSIONALS,465,LD LTS 18-64,SUPPORTED LIVING,2103356397,1000057263
08.12.2021,ADULT SOCIAL CARE,CONTACT PROFESSIONALS,684,LD LTS 18-64,SUPPORTED LIVING,2103356396,1000057263
08.12.2021,ADULT SOCIAL CARE,CONTACT PROFESSIONALS,912,LD LTS 18-64,SUPPORTED LIVING,2103356406,1000057263
08.12.2021,ADULT SOCIAL CARE,INSPIRE SUPPORT WORKERS LTD,432,LD LTS 18-64,SUPPORTED LIVING,2103356394,1000080725
08.12.2021,ADULT SOCIAL CARE,INSPIRE SUPPORT WORKERS LTD,"7,700.00",LD LTS 18-64,SUPPORTED LIVING,2103356405,1000080725
08.12.2021,ADULT SOCIAL CARE,ABBEYS CARE SUPPORT AND TRAINING LTD,"4,237.73",LD LTS 18-64,SUPPORTED LIVING,2103356392,1000086177
08.12.2021,ADULT SOCIAL CARE,ABBEYS CARE SUPPORT AND TRAINING LTD,"6,659.29",LD LTS 18-64,SUPPORTED LIVING,2103356398,1000086177
08.12.2021,ADULT SOCIAL CARE,BEDE HOUSE ASSOCIATION,478.4,LD LTS 65+,DAYCARE,2103356352,1553877
08.12.2021,ADULT SOCIAL CARE,SUPREME CARE SERVICES LTD,979.97,LD LTS 65+,HOMECARE - C&V,2103355794,1000059416
08.12.2021,ADULT SOCIAL CARE,SUPREME CARE SERVICES LTD,"1,020.37",LD LTS 65+,HOMECARE - C&V,2103355392,1000059416
08.12.2021,ADULT SOCIAL CARE,SUPREME CARE SERVICES LTD,404.66,MEM LTS 18-64,HOMECARE - C&V,2103355622,1000059416
08.12.2021,ADULT SOCIAL CARE,SUPREME CARE SERVICES LTD,458.38,MEM LTS 18-64,HOMECARE - C&V,2103355504,1000059416
08.12.2021,ADULT SOCIAL CARE,SUPREME CARE SERVICES LTD,328.15,MEM LTS 65+,HOMECARE - C&V,2103355714,1000059416
08.12.2021,ADULT SOCIAL CARE,SUPREME CARE SERVICES LTD,377.68,MEM LTS 65+,HOMECARE - C&V,2103355741,1000059416
08.12.2021,ADULT SOCIAL CARE,SUPREME CARE SERVICES LTD,458.37,MEM LTS 65+,HOMECARE - C&V,2103355506,1000059416
08.12.2021,ADULT SOCIAL CARE,SUPREME CARE SERVICES LTD,507.47,MEM LTS 65+,HOMECARE - C&V,2103355804,1000059416
08.12.2021,ADULT SOCIAL CARE,SUPREME CARE SERVICES LTD,548.71,MEM LTS 65+,HOMECARE - C&V,2103355568,1000059416
08.12.2021,ADULT SOCIAL CARE,SUPREME CARE SERVICES LTD,836.19,MEM LTS 65+,HOMECARE - C&V,2103355781,1000059416
08.12.2021,ADULT SOCIAL CARE,SUPREME CARE SERVICES LTD,870.61,MEM LTS 65+,HOMECARE - C&V,2103355694,1000059416
08.12.2021,ADULT SOCIAL CARE,SUPREME CARE SERVICES LTD,"1,087.18",MEM LTS 65+,HOMECARE - C&V,2103355856,1000059416
08.12.2021,ADULT SOCIAL CARE,SUPREME CARE SERVICES LTD,"1,321.42",MEM LTS 65+,HOMECARE - C&V,2103355805,1000059416
08.12.2021,ADULT SOCIAL CARE,SUPREME CARE SERVICES LTD,"2,359.93",MEM LTS 65+,HOMECARE - C&V,2103355604,1000059416
08.12.2021,ADULT SOCIAL CARE,SUPREME CARE SERVICES LTD,"2,373.68",MEM LTS 65+,HOMECARE - C&V,2103355544,1000059416
08.12.2021,ADULT SOCIAL CARE,SUPREME CARE SERVICES LTD,"3,335.51",MEM LTS 65+,HOMECARE - C&V,2103355862,1000059416
08.12.2021,ADULT SOCIAL CARE,BEDE HOUSE ASSOCIATION,280,MH LTS 18-64,DAYCARE,2103356370,1553877
08.12.2021,ADULT SOCIAL CARE,SUPREME CARE SERVICES LTD,251.72,MH LTS 18-64,HOMECARE - C&V,2103355716,1000059416
08.12.2021,ADULT SOCIAL CARE,SUPREME CARE SERVICES LTD,251.72,MH LTS 18-64,HOMECARE - C&V,2103355813,1000059416
08.12.2021,ADULT SOCIAL CARE,SUPREME CARE SERVICES LTD,431.52,MH LTS 18-64,HOMECARE - C&V,2103355482,1000059416
08.12.2021,ADULT SOCIAL CARE,SUPREME CARE SERVICES LTD,485.5,MH LTS 18-64,HOMECARE - C&V,2103355793,1000059416
08.12.2021,ADULT SOCIAL CARE,SUPREME CARE SERVICES LTD,716.1,MH LTS 18-64,HOMECARE - C&V,2103355865,1000059416
08.12.2021,ADULT SOCIAL CARE,SUPREME CARE SERVICES LTD,773.15,MH LTS 18-64,HOMECARE - C&V,2103355644,1000059416
08.12.2021,ADULT SOCIAL CARE,LONDON CARE LTD,"1,654.99",MH LTS 65+,HOMECARE - C&V,2103356313,1000003398
08.12.2021,ADULT SOCIAL CARE,SUPREME CARE SERVICES LTD,377.64,MH LTS 65+,HOMECARE - C&V,2103355636,1000059416
08.12.2021,ADULT SOCIAL CARE,SUPREME CARE SERVICES LTD,460.35,MH LTS 65+,HOMECARE - C&V,2103355765,1000059416
08.12.2021,ADULT SOCIAL CARE,SUPREME CARE SERVICES LTD,532.26,MH LTS 65+,HOMECARE - C&V,2103355655,1000059416
08.12.2021,ADULT SOCIAL CARE,SUPREME CARE SERVICES LTD,545.6,MH LTS 65+,HOMECARE - C&V,2103355868,1000059416
08.12.2021,ADULT SOCIAL CARE,SUPREME CARE SERVICES LTD,795.76,MH LTS 65+,HOMECARE - C&V,2103355617,1000059416
08.12.2021,ADULT SOCIAL CARE,SUPREME CARE SERVICES LTD,"1,245.22",MH LTS 65+,HOMECARE - C&V,2103355807,1000059416
08.12.2021,ADULT SOCIAL CARE,INSPIRE SUPPORT WORKERS LTD,"1,960.00",MH LTS 65+,SUPPORTED LIVING,2103356400,1000080725
08.12.2021,ADULT SOCIAL CARE,LONDON CARE LTD,255.7,MH STS 18-64,HOMECARE - IC,2103356324,1000003398
08.12.2021,ADULT SOCIAL CARE,LONDON CARE LTD,387.24,PHY LTS 18-64,HOMECARE - C&V,2103356309,1000003398
08.12.2021,ADULT SOCIAL CARE,LONDON CARE LTD,686.89,PHY LTS 18-64,HOMECARE - C&V,2103356308,1000003398
08.12.2021,ADULT SOCIAL CARE,LONDON CARE LTD,"1,802.52",PHY LTS 18-64,HOMECARE - C&V,2103356302,1000003398
08.12.2021,ADULT SOCIAL CARE,SUPREME CARE SERVICES LTD,256.22,PHY LTS 18-64,HOMECARE - C&V,2103355684,1000059416
08.12.2021,ADULT SOCIAL CARE,SUPREME CARE SERVICES LTD,260.72,PHY LTS 18-64,HOMECARE - C&V,2103355572,1000059416
08.12.2021,ADULT SOCIAL CARE,SUPREME CARE SERVICES LTD,265.22,PHY LTS 18-64,HOMECARE - C&V,2103355701,1000059416
08.12.2021,ADULT SOCIAL CARE,SUPREME CARE SERVICES LTD,274.29,PHY LTS 18-64,HOMECARE - C&V,2103355867,1000059416
08.12.2021,ADULT SOCIAL CARE,SUPREME CARE SERVICES LTD,277.14,PHY LTS 18-64,HOMECARE - C&V,2103355803,1000059416
08.12.2021,ADULT SOCIAL CARE,SUPREME CARE SERVICES LTD,287.68,PHY LTS 18-64,HOMECARE - C&V,2103355777,1000059416
08.12.2021,ADULT SOCIAL CARE,SUPREME CARE SERVICES LTD,319.24,PHY LTS 18-64,HOMECARE - C&V,2103355408,1000059416
08.12.2021,ADULT SOCIAL CARE,SUPREME CARE SERVICES LTD,323.75,PHY LTS 18-64,HOMECARE - C&V,2103355695,1000059416
08.12.2021,ADULT SOCIAL CARE,SUPREME CARE SERVICES LTD,328.19,PHY LTS 18-64,HOMECARE - C&V,2103355677,1000059416
08.12.2021,ADULT SOCIAL CARE,SUPREME CARE SERVICES LTD,368.71,PHY LTS 18-64,HOMECARE - C&V,2103355650,1000059416
08.12.2021,ADULT SOCIAL CARE,SUPREME CARE SERVICES LTD,370.85,PHY LTS 18-64,HOMECARE - C&V,2103355776,1000059416
08.12.2021,ADULT SOCIAL CARE,SUPREME CARE SERVICES LTD,371.68,PHY LTS 18-64,HOMECARE - C&V,2103355800,1000059416
08.12.2021,ADULT SOCIAL CARE,SUPREME CARE SERVICES LTD,383.68,PHY LTS 18-64,HOMECARE - C&V,2103355502,1000059416
08.12.2021,ADULT SOCIAL CARE,SUPREME CARE SERVICES LTD,389.99,PHY LTS 18-64,HOMECARE - C&V,2103355448,1000059416
08.12.2021,ADULT SOCIAL CARE,SUPREME CARE SERVICES LTD,400.18,PHY LTS 18-64,HOMECARE - C&V,2103355566,1000059416
08.12.2021,ADULT SOCIAL CARE,SUPREME CARE SERVICES LTD,417.87,PHY LTS 18-64,HOMECARE - C&V,2103355480,1000059416
08.12.2021,ADULT SOCIAL CARE,SUPREME CARE SERVICES LTD,418.04,PHY LTS 18-64,HOMECARE - C&V,2103355668,1000059416
08.12.2021,ADULT SOCIAL CARE,SUPREME CARE SERVICES LTD,430.58,PHY LTS 18-64,HOMECARE - C&V,2103355364,1000059416
08.12.2021,ADULT SOCIAL CARE,SUPREME CARE SERVICES LTD,434.32,PHY LTS 18-64,HOMECARE - C&V,2103355759,1000059416
08.12.2021,ADULT SOCIAL CARE,SUPREME CARE SERVICES LTD,439.1,PHY LTS 18-64,HOMECARE - C&V,2103355378,1000059416
08.12.2021,ADULT SOCIAL CARE,SUPREME CARE SERVICES LTD,473.12,PHY LTS 18-64,HOMECARE - C&V,2103355799,1000059416
08.12.2021,ADULT SOCIAL CARE,SUPREME CARE SERVICES LTD,529.24,PHY LTS 18-64,HOMECARE - C&V,2103355747,1000059416
08.12.2021,ADULT SOCIAL CARE,SUPREME CARE SERVICES LTD,536.34,PHY LTS 18-64,HOMECARE - C&V,2103355833,1000059416
08.12.2021,ADULT SOCIAL CARE,SUPREME CARE SERVICES LTD,574.48,PHY LTS 18-64,HOMECARE - C&V,2103355689,1000059416
08.12.2021,ADULT SOCIAL CARE,SUPREME CARE SERVICES LTD,575.4,PHY LTS 18-64,HOMECARE - C&V,2103355801,1000059416
08.12.2021,ADULT SOCIAL CARE,SUPREME CARE SERVICES LTD,575.69,PHY LTS 18-64,HOMECARE - C&V,2103355785,1000059416
08.12.2021,ADULT SOCIAL CARE,SUPREME CARE SERVICES LTD,601.34,PHY LTS 18-64,HOMECARE - C&V,2103355798,1000059416
08.12.2021,ADULT SOCIAL CARE,SUPREME CARE SERVICES LTD,606.92,PHY LTS 18-64,HOMECARE - C&V,2103355500,1000059416
08.12.2021,ADULT SOCIAL CARE,SUPREME CARE SERVICES LTD,633.93,PHY LTS 18-64,HOMECARE - C&V,2103355536,1000059416
08.12.2021,ADULT SOCIAL CARE,SUPREME CARE SERVICES LTD,672.35,PHY LTS 18-64,HOMECARE - C&V,2103355860,1000059416
08.12.2021,ADULT SOCIAL CARE,SUPREME CARE SERVICES LTD,673.72,PHY LTS 18-64,HOMECARE - C&V,2103355850,1000059416
08.12.2021,ADULT SOCIAL CARE,SUPREME CARE SERVICES LTD,691.11,PHY LTS 18-64,HOMECARE - C&V,2103355613,1000059416
08.12.2021,ADULT SOCIAL CARE,SUPREME CARE SERVICES LTD,710.36,PHY LTS 18-64,HOMECARE - C&V,2103355563,1000059416
08.12.2021,ADULT SOCIAL CARE,SUPREME CARE SERVICES LTD,723.83,PHY LTS 18-64,HOMECARE - C&V,2103355673,1000059416
08.12.2021,ADULT SOCIAL CARE,SUPREME CARE SERVICES LTD,737.62,PHY LTS 18-64,HOMECARE - C&V,2103355374,1000059416
08.12.2021,ADULT SOCIAL CARE,SUPREME CARE SERVICES LTD,751,PHY LTS 18-64,HOMECARE - C&V,2103355665,1000059416
08.12.2021,ADULT SOCIAL CARE,SUPREME CARE SERVICES LTD,758.23,PHY LTS 18-64,HOMECARE - C&V,2103355562,1000059416
08.12.2021,ADULT SOCIAL CARE,SUPREME CARE SERVICES LTD,804.66,PHY LTS 18-64,HOMECARE - C&V,2103355696,1000059416
08.12.2021,ADULT SOCIAL CARE,SUPREME CARE SERVICES LTD,841.47,PHY LTS 18-64,HOMECARE - C&V,2103355629,1000059416
08.12.2021,ADULT SOCIAL CARE,SUPREME CARE SERVICES LTD,890.16,PHY LTS 18-64,HOMECARE - C&V,2103355855,1000059416
08.12.2021,ADULT SOCIAL CARE,SUPREME CARE SERVICES LTD,908.1,PHY LTS 18-64,HOMECARE - C&V,2103355690,1000059416
08.12.2021,ADULT SOCIAL CARE,SUPREME CARE SERVICES LTD,930.63,PHY LTS 18-64,HOMECARE - C&V,2103355518,1000059416
08.12.2021,ADULT SOCIAL CARE,SUPREME CARE SERVICES LTD,931.66,PHY LTS 18-64,HOMECARE - C&V,2103355584,1000059416
08.12.2021,ADULT SOCIAL CARE,SUPREME CARE SERVICES LTD,946.32,PHY LTS 18-64,HOMECARE - C&V,2103355778,1000059416
08.12.2021,ADULT SOCIAL CARE,SUPREME CARE SERVICES LTD,971.06,PHY LTS 18-64,HOMECARE - C&V,2103355661,1000059416
08.12.2021,ADULT SOCIAL CARE,SUPREME CARE SERVICES LTD,971.11,PHY LTS 18-64,HOMECARE - C&V,2103355468,1000059416
08.12.2021,ADULT SOCIAL CARE,SUPREME CARE SERVICES LTD,993.8,PHY LTS 18-64,HOMECARE - C&V,2103355854,1000059416
08.12.2021,ADULT SOCIAL CARE,SUPREME CARE SERVICES LTD,"1,002.55",PHY LTS 18-64,HOMECARE - C&V,2103355594,1000059416
08.12.2021,ADULT SOCIAL CARE,SUPREME CARE SERVICES LTD,"1,006.26",PHY LTS 18-64,HOMECARE - C&V,2103355756,1000059416
08.12.2021,ADULT SOCIAL CARE,SUPREME CARE SERVICES LTD,"1,020.50",PHY LTS 18-64,HOMECARE - C&V,2103355848,1000059416
08.12.2021,ADULT SOCIAL CARE,SUPREME CARE SERVICES LTD,"1,029.41",PHY LTS 18-64,HOMECARE - C&V,2103355870,1000059416
08.12.2021,ADULT SOCIAL CARE,SUPREME CARE SERVICES LTD,"1,036.02",PHY LTS 18-64,HOMECARE - C&V,2103355787,1000059416
08.12.2021,ADULT SOCIAL CARE,SUPREME CARE SERVICES LTD,"1,052.02",PHY LTS 18-64,HOMECARE - C&V,2103355456,1000059416
08.12.2021,ADULT SOCIAL CARE,SUPREME CARE SERVICES LTD,"1,060.84",PHY LTS 18-64,HOMECARE - C&V,2103355836,1000059416
08.12.2021,ADULT SOCIAL CARE,SUPREME CARE SERVICES LTD,"1,123.79",PHY LTS 18-64,HOMECARE - C&V,2103355528,1000059416
08.12.2021,ADULT SOCIAL CARE,SUPREME CARE SERVICES LTD,"1,126.74",PHY LTS 18-64,HOMECARE - C&V,2103355639,1000059416
08.12.2021,ADULT SOCIAL CARE,SUPREME CARE SERVICES LTD,"1,168.84",PHY LTS 18-64,HOMECARE - C&V,2103355693,1000059416
08.12.2021,ADULT SOCIAL CARE,SUPREME CARE SERVICES LTD,"1,245.03",PHY LTS 18-64,HOMECARE - C&V,2103355859,1000059416
08.12.2021,ADULT SOCIAL CARE,SUPREME CARE SERVICES LTD,"1,361.19",PHY LTS 18-64,HOMECARE - C&V,2103355797,1000059416
08.12.2021,ADULT SOCIAL CARE,SUPREME CARE SERVICES LTD,"1,419.65",PHY LTS 18-64,HOMECARE - C&V,2103355780,1000059416
08.12.2021,ADULT SOCIAL CARE,SUPREME CARE SERVICES LTD,"1,458.09",PHY LTS 18-64,HOMECARE - C&V,2103355838,1000059416
08.12.2021,ADULT SOCIAL CARE,SUPREME CARE SERVICES LTD,"1,584.71",PHY LTS 18-64,HOMECARE - C&V,2103355706,1000059416
08.12.2021,ADULT SOCIAL CARE,SUPREME CARE SERVICES LTD,"1,688.04",PHY LTS 18-64,HOMECARE - C&V,2103355784,1000059416
08.12.2021,ADULT SOCIAL CARE,SUPREME CARE SERVICES LTD,"2,018.27",PHY LTS 18-64,HOMECARE - C&V,2103355645,1000059416
08.12.2021,ADULT SOCIAL CARE,SUPREME CARE SERVICES LTD,"2,064.40",PHY LTS 18-64,HOMECARE - C&V,2103355656,1000059416
08.12.2021,ADULT SOCIAL CARE,SUPREME CARE SERVICES LTD,"2,225.28",PHY LTS 18-64,HOMECARE - C&V,2103355464,1000059416
08.12.2021,ADULT SOCIAL CARE,SUPREME CARE SERVICES LTD,"2,313.39",PHY LTS 18-64,HOMECARE - C&V,2103355624,1000059416
08.12.2021,ADULT SOCIAL CARE,SUPREME CARE SERVICES LTD,"2,800.83",PHY LTS 18-64,HOMECARE - C&V,2103355434,1000059416
08.12.2021,ADULT SOCIAL CARE,SUPREME CARE SERVICES LTD,"3,219.50",PHY LTS 18-64,HOMECARE - C&V,2103355820,1000059416
08.12.2021,ADULT SOCIAL CARE,SUPREME CARE SERVICES LTD,"3,623.26",PHY LTS 18-64,HOMECARE - C&V,2103355460,1000059416
08.12.2021,ADULT SOCIAL CARE,LONDON CARE LTD,253.55,PHY LTS 65+,HOMECARE - C&V,2103356298,1000003398
08.12.2021,ADULT SOCIAL CARE,LONDON CARE LTD,253.55,PHY LTS 65+,HOMECARE - C&V,2103356330,1000003398
08.12.2021,ADULT SOCIAL CARE,LONDON CARE LTD,258.16,PHY LTS 65+,HOMECARE - C&V,2103356290,1000003398
08.12.2021,ADULT SOCIAL CARE,LONDON CARE LTD,258.16,PHY LTS 65+,HOMECARE - C&V,2103356328,1000003398
08.12.2021,ADULT SOCIAL CARE,LONDON CARE LTD,258.16,PHY LTS 65+,HOMECARE - C&V,2103356342,1000003398
08.12.2021,ADULT SOCIAL CARE,LONDON CARE LTD,297.02,PHY LTS 65+,HOMECARE - C&V,2103356316,1000003398
08.12.2021,ADULT SOCIAL CARE,LONDON CARE LTD,378.02,PHY LTS 65+,HOMECARE - C&V,2103356273,1000003398
08.12.2021,ADULT SOCIAL CARE,LONDON CARE LTD,382.63,PHY LTS 65+,HOMECARE - C&V,2103356287,1000003398
08.12.2021,ADULT SOCIAL CARE,LONDON CARE LTD,507.1,PHY LTS 65+,HOMECARE - C&V,2103356333,1000003398
08.12.2021,ADULT SOCIAL CARE,LONDON CARE LTD,516.32,PHY LTS 65+,HOMECARE - C&V,2103356271,1000003398
08.12.2021,ADULT SOCIAL CARE,LONDON CARE LTD,516.32,PHY LTS 65+,HOMECARE - C&V,2103356341,1000003398
08.12.2021,ADULT SOCIAL CARE,LONDON CARE LTD,719.16,PHY LTS 65+,HOMECARE - C&V,2103356305,1000003398
08.12.2021,ADULT SOCIAL CARE,LONDON CARE LTD,769.87,PHY LTS 65+,HOMECARE - C&V,2103356314,1000003398
08.12.2021,ADULT SOCIAL CARE,LONDON CARE LTD,774.48,PHY LTS 65+,HOMECARE - C&V,2103356276,1000003398
08.12.2021,ADULT SOCIAL CARE,LONDON CARE LTD,889.73,PHY LTS 65+,HOMECARE - C&V,2103356337,1000003398
08.12.2021,ADULT SOCIAL CARE,LONDON CARE LTD,898.95,PHY LTS 65+,HOMECARE - C&V,2103356304,1000003398
08.12.2021,ADULT SOCIAL CARE,LONDON CARE LTD,903.56,PHY LTS 65+,HOMECARE - C&V,2103356319,1000003398
08.12.2021,ADULT SOCIAL CARE,LONDON CARE LTD,"1,092.57",PHY LTS 65+,HOMECARE - C&V,2103356335,1000003398
08.12.2021,ADULT SOCIAL CARE,LONDON CARE LTD,"1,143.28",PHY LTS 65+,HOMECARE - C&V,2103356296,1000003398
08.12.2021,ADULT SOCIAL CARE,LONDON CARE LTD,"1,157.11",PHY LTS 65+,HOMECARE - C&V,2103356322,1000003398
08.12.2021,ADULT SOCIAL CARE,LONDON CARE LTD,"1,207.82",PHY LTS 65+,HOMECARE - C&V,2103356291,1000003398
08.12.2021,ADULT SOCIAL CARE,LONDON CARE LTD,"1,226.26",PHY LTS 65+,HOMECARE - C&V,2103356282,1000003398
08.12.2021,ADULT SOCIAL CARE,LONDON CARE LTD,"1,253.92",PHY LTS 65+,HOMECARE - C&V,2103356268,1000003398
08.12.2021,ADULT SOCIAL CARE,LONDON CARE LTD,"1,336.59",PHY LTS 65+,HOMECARE - C&V,2103356278,1000003398
08.12.2021,ADULT SOCIAL CARE,LONDON CARE LTD,"1,950.03",PHY LTS 65+,HOMECARE - C&V,2103356293,1000003398
08.12.2021,ADULT SOCIAL CARE,LONDON CARE LTD,"1,991.52",PHY LTS 65+,HOMECARE - C&V,2103356340,1000003398
08.12.2021,ADULT SOCIAL CARE,LONDON CARE LTD,"2,544.72",PHY LTS 65+,HOMECARE - C&V,2103356297,1000003398
08.12.2021,ADULT SOCIAL CARE,SUPREME CARE SERVICES LTD,256.22,PHY LTS 65+,HOMECARE - C&V,2103355603,1000059416
08.12.2021,ADULT SOCIAL CARE,SUPREME CARE SERVICES LTD,256.22,PHY LTS 65+,HOMECARE - C&V,2103355686,1000059416
08.12.2021,ADULT SOCIAL CARE,SUPREME CARE SERVICES LTD,256.23,PHY LTS 65+,HOMECARE - C&V,2103355658,1000059416
08.12.2021,ADULT SOCIAL CARE,SUPREME CARE SERVICES LTD,269.73,PHY LTS 65+,HOMECARE - C&V,2103355718,1000059416
08.12.2021,ADULT SOCIAL CARE,SUPREME CARE SERVICES LTD,284.09,PHY LTS 65+,HOMECARE - C&V,2103355619,1000059416
08.12.2021,ADULT SOCIAL CARE,SUPREME CARE SERVICES LTD,287.68,PHY LTS 65+,HOMECARE - C&V,2103355811,1000059416
08.12.2021,ADULT SOCIAL CARE,SUPREME CARE SERVICES LTD,293.88,PHY LTS 65+,HOMECARE - C&V,2103355842,1000059416
08.12.2021,ADULT SOCIAL CARE,SUPREME CARE SERVICES LTD,296.68,PHY LTS 65+,HOMECARE - C&V,2103355724,1000059416
08.12.2021,ADULT SOCIAL CARE,SUPREME CARE SERVICES LTD,305.74,PHY LTS 65+,HOMECARE - C&V,2103355711,1000059416
08.12.2021,ADULT SOCIAL CARE,SUPREME CARE SERVICES LTD,307.04,PHY LTS 65+,HOMECARE - C&V,2103355420,1000059416
08.12.2021,ADULT SOCIAL CARE,SUPREME CARE SERVICES LTD,307.17,PHY LTS 65+,HOMECARE - C&V,2103355540,1000059416
08.12.2021,ADULT SOCIAL CARE,SUPREME CARE SERVICES LTD,310.19,PHY LTS 65+,HOMECARE - C&V,2103355581,1000059416
08.12.2021,ADULT SOCIAL CARE,SUPREME CARE SERVICES LTD,311.18,PHY LTS 65+,HOMECARE - C&V,2103355442,1000059416
08.12.2021,ADULT SOCIAL CARE,SUPREME CARE SERVICES LTD,311.3,PHY LTS 65+,HOMECARE - C&V,2103355825,1000059416
08.12.2021,ADULT SOCIAL CARE,SUPREME CARE SERVICES LTD,332.53,PHY LTS 65+,HOMECARE - C&V,2103355808,1000059416
08.12.2021,ADULT SOCIAL CARE,SUPREME CARE SERVICES LTD,336.85,PHY LTS 65+,HOMECARE - C&V,2103355821,1000059416
08.12.2021,ADULT SOCIAL CARE,SUPREME CARE SERVICES LTD,341.68,PHY LTS 65+,HOMECARE - C&V,2103355670,1000059416
08.12.2021,ADULT SOCIAL CARE,SUPREME CARE SERVICES LTD,353.37,PHY LTS 65+,HOMECARE - C&V,2103355742,1000059416
08.12.2021,ADULT SOCIAL CARE,SUPREME CARE SERVICES LTD,355.13,PHY LTS 65+,HOMECARE - C&V,2103355616,1000059416
08.12.2021,ADULT SOCIAL CARE,SUPREME CARE SERVICES LTD,359.6,PHY LTS 65+,HOMECARE - C&V,2103355659,1000059416
08.12.2021,ADULT SOCIAL CARE,SUPREME CARE SERVICES LTD,364.21,PHY LTS 65+,HOMECARE - C&V,2103355432,1000059416
08.12.2021,ADULT SOCIAL CARE,SUPREME CARE SERVICES LTD,366.64,PHY LTS 65+,HOMECARE - C&V,2103355792,1000059416
08.12.2021,ADULT SOCIAL CARE,SUPREME CARE SERVICES LTD,368.72,PHY LTS 65+,HOMECARE - C&V,2103355725,1000059416
08.12.2021,ADULT SOCIAL CARE,SUPREME CARE SERVICES LTD,386.6,PHY LTS 65+,HOMECARE - C&V,2103355681,1000059416
08.12.2021,ADULT SOCIAL CARE,SUPREME CARE SERVICES LTD,386.7,PHY LTS 65+,HOMECARE - C&V,2103355643,1000059416
08.12.2021,ADULT SOCIAL CARE,SUPREME CARE SERVICES LTD,400.17,PHY LTS 65+,HOMECARE - C&V,2103355552,1000059416
08.12.2021,ADULT SOCIAL CARE,SUPREME CARE SERVICES LTD,400.17,PHY LTS 65+,HOMECARE - C&V,2103355576,1000059416
08.12.2021,ADULT SOCIAL CARE,SUPREME CARE SERVICES LTD,404.56,PHY LTS 65+,HOMECARE - C&V,2103355534,1000059416
08.12.2021,ADULT SOCIAL CARE,SUPREME CARE SERVICES LTD,409.25,PHY LTS 65+,HOMECARE - C&V,2103355767,1000059416
08.12.2021,ADULT SOCIAL CARE,SUPREME CARE SERVICES LTD,409.96,PHY LTS 65+,HOMECARE - C&V,2103355692,1000059416
08.12.2021,ADULT SOCIAL CARE,SUPREME CARE SERVICES LTD,413.58,PHY LTS 65+,HOMECARE - C&V,2103355494,1000059416
08.12.2021,ADULT SOCIAL CARE,SUPREME CARE SERVICES LTD,417.8,PHY LTS 65+,HOMECARE - C&V,2103355412,1000059416
08.12.2021,ADULT SOCIAL CARE,SUPREME CARE SERVICES LTD,419.25,PHY LTS 65+,HOMECARE - C&V,2103355450,1000059416
08.12.2021,ADULT SOCIAL CARE,SUPREME CARE SERVICES LTD,422.54,PHY LTS 65+,HOMECARE - C&V,2103355614,1000059416
08.12.2021,ADULT SOCIAL CARE,SUPREME CARE SERVICES LTD,427.05,PHY LTS 65+,HOMECARE - C&V,2103355745,1000059416
08.12.2021,ADULT SOCIAL CARE,SUPREME CARE SERVICES LTD,431.56,PHY LTS 65+,HOMECARE - C&V,2103355606,1000059416
08.12.2021,ADULT SOCIAL CARE,SUPREME CARE SERVICES LTD,434.92,PHY LTS 65+,HOMECARE - C&V,2103355863,1000059416
08.12.2021,ADULT SOCIAL CARE,SUPREME CARE SERVICES LTD,439.16,PHY LTS 65+,HOMECARE - C&V,2103355764,1000059416
08.12.2021,ADULT SOCIAL CARE,SUPREME CARE SERVICES LTD,448.09,PHY LTS 65+,HOMECARE - C&V,2103355635,1000059416
08.12.2021,ADULT SOCIAL CARE,SUPREME CARE SERVICES LTD,454.13,PHY LTS 65+,HOMECARE - C&V,2103355663,1000059416
08.12.2021,ADULT SOCIAL CARE,SUPREME CARE SERVICES LTD,456.45,PHY LTS 65+,HOMECARE - C&V,2103355648,1000059416
08.12.2021,ADULT SOCIAL CARE,SUPREME CARE SERVICES LTD,456.69,PHY LTS 65+,HOMECARE - C&V,2103355626,1000059416
08.12.2021,ADULT SOCIAL CARE,SUPREME CARE SERVICES LTD,463.11,PHY LTS 65+,HOMECARE - C&V,2103355641,1000059416
08.12.2021,ADULT SOCIAL CARE,SUPREME CARE SERVICES LTD,470.01,PHY LTS 65+,HOMECARE - C&V,2103355638,1000059416
08.12.2021,ADULT SOCIAL CARE,SUPREME CARE SERVICES LTD,472.1,PHY LTS 65+,HOMECARE - C&V,2103355476,1000059416
08.12.2021,ADULT SOCIAL CARE,SUPREME CARE SERVICES LTD,480.16,PHY LTS 65+,HOMECARE - C&V,2103355831,1000059416
08.12.2021,ADULT SOCIAL CARE,SUPREME CARE SERVICES LTD,490.08,PHY LTS 65+,HOMECARE - C&V,2103355727,1000059416
08.12.2021,ADULT SOCIAL CARE,SUPREME CARE SERVICES LTD,495.44,PHY LTS 65+,HOMECARE - C&V,2103355851,1000059416
08.12.2021,ADULT SOCIAL CARE,SUPREME CARE SERVICES LTD,503.44,PHY LTS 65+,HOMECARE - C&V,2103355770,1000059416
08.12.2021,ADULT SOCIAL CARE,SUPREME CARE SERVICES LTD,503.47,PHY LTS 65+,HOMECARE - C&V,2103355669,1000059416
08.12.2021,ADULT SOCIAL CARE,SUPREME CARE SERVICES LTD,507.94,PHY LTS 65+,HOMECARE - C&V,2103355598,1000059416
08.12.2021,ADULT SOCIAL CARE,SUPREME CARE SERVICES LTD,509.36,PHY LTS 65+,HOMECARE - C&V,2103355771,1000059416
08.12.2021,ADULT SOCIAL CARE,SUPREME CARE SERVICES LTD,514.91,PHY LTS 65+,HOMECARE - C&V,2103355600,1000059416
08.12.2021,ADULT SOCIAL CARE,SUPREME CARE SERVICES LTD,521.55,PHY LTS 65+,HOMECARE - C&V,2103355746,1000059416
08.12.2021,ADULT SOCIAL CARE,SUPREME CARE SERVICES LTD,551.18,PHY LTS 65+,HOMECARE - C&V,2103355710,1000059416
08.12.2021,ADULT SOCIAL CARE,SUPREME CARE SERVICES LTD,552.91,PHY LTS 65+,HOMECARE - C&V,2103355458,1000059416
08.12.2021,ADULT SOCIAL CARE,SUPREME CARE SERVICES LTD,552.96,PHY LTS 65+,HOMECARE - C&V,2103355573,1000059416
08.12.2021,ADULT SOCIAL CARE,SUPREME CARE SERVICES LTD,553,PHY LTS 65+,HOMECARE - C&V,2103355516,1000059416
08.12.2021,ADULT SOCIAL CARE,SUPREME CARE SERVICES LTD,553.02,PHY LTS 65+,HOMECARE - C&V,2103355674,1000059416
08.12.2021,ADULT SOCIAL CARE,SUPREME CARE SERVICES LTD,557.42,PHY LTS 65+,HOMECARE - C&V,2103355754,1000059416
08.12.2021,ADULT SOCIAL CARE,SUPREME CARE SERVICES LTD,563.65,PHY LTS 65+,HOMECARE - C&V,2103355789,1000059416
08.12.2021,ADULT SOCIAL CARE,SUPREME CARE SERVICES LTD,567.58,PHY LTS 65+,HOMECARE - C&V,2103355662,1000059416
08.12.2021,ADULT SOCIAL CARE,SUPREME CARE SERVICES LTD,575.36,PHY LTS 65+,HOMECARE - C&V,2103355621,1000059416
08.12.2021,ADULT SOCIAL CARE,SUPREME CARE SERVICES LTD,584.35,PHY LTS 65+,HOMECARE - C&V,2103355735,1000059416
08.12.2021,ADULT SOCIAL CARE,SUPREME CARE SERVICES LTD,593.48,PHY LTS 65+,HOMECARE - C&V,2103355688,1000059416
08.12.2021,ADULT SOCIAL CARE,SUPREME CARE SERVICES LTD,596.96,PHY LTS 65+,HOMECARE - C&V,2103355796,1000059416
08.12.2021,ADULT SOCIAL CARE,SUPREME CARE SERVICES LTD,597.04,PHY LTS 65+,HOMECARE - C&V,2103355738,1000059416
08.12.2021,ADULT SOCIAL CARE,SUPREME CARE SERVICES LTD,605.28,PHY LTS 65+,HOMECARE - C&V,2103355840,1000059416
08.12.2021,ADULT SOCIAL CARE,SUPREME CARE SERVICES LTD,606.52,PHY LTS 65+,HOMECARE - C&V,2103355633,1000059416
08.12.2021,ADULT SOCIAL CARE,SUPREME CARE SERVICES LTD,611.4,PHY LTS 65+,HOMECARE - C&V,2103355548,1000059416
08.12.2021,ADULT SOCIAL CARE,SUPREME CARE SERVICES LTD,616.49,PHY LTS 65+,HOMECARE - C&V,2103355651,1000059416
08.12.2021,ADULT SOCIAL CARE,SUPREME CARE SERVICES LTD,619.32,PHY LTS 65+,HOMECARE - C&V,2103355657,1000059416
08.12.2021,ADULT SOCIAL CARE,SUPREME CARE SERVICES LTD,620.33,PHY LTS 65+,HOMECARE - C&V,2103355702,1000059416
08.12.2021,ADULT SOCIAL CARE,SUPREME CARE SERVICES LTD,620.46,PHY LTS 65+,HOMECARE - C&V,2103355703,1000059416
08.12.2021,ADULT SOCIAL CARE,SUPREME CARE SERVICES LTD,624.94,PHY LTS 65+,HOMECARE - C&V,2103355871,1000059416
08.12.2021,ADULT SOCIAL CARE,SUPREME CARE SERVICES LTD,628.1,PHY LTS 65+,HOMECARE - C&V,2103355542,1000059416
08.12.2021,ADULT SOCIAL CARE,SUPREME CARE SERVICES LTD,633.02,PHY LTS 65+,HOMECARE - C&V,2103355743,1000059416
08.12.2021,ADULT SOCIAL CARE,SUPREME CARE SERVICES LTD,635.3,PHY LTS 65+,HOMECARE - C&V,2103355532,1000059416
08.12.2021,ADULT SOCIAL CARE,SUPREME CARE SERVICES LTD,642.79,PHY LTS 65+,HOMECARE - C&V,2103355580,1000059416
08.12.2021,ADULT SOCIAL CARE,SUPREME CARE SERVICES LTD,642.81,PHY LTS 65+,HOMECARE - C&V,2103355574,1000059416
08.12.2021,ADULT SOCIAL CARE,SUPREME CARE SERVICES LTD,642.92,PHY LTS 65+,HOMECARE - C&V,2103355554,1000059416
08.12.2021,ADULT SOCIAL CARE,SUPREME CARE SERVICES LTD,642.94,PHY LTS 65+,HOMECARE - C&V,2103355864,1000059416
08.12.2021,ADULT SOCIAL CARE,SUPREME CARE SERVICES LTD,648.09,PHY LTS 65+,HOMECARE - C&V,2103355849,1000059416
08.12.2021,ADULT SOCIAL CARE,SUPREME CARE SERVICES LTD,648.1,PHY LTS 65+,HOMECARE - C&V,2103355394,1000059416
08.12.2021,ADULT SOCIAL CARE,SUPREME CARE SERVICES LTD,650.58,PHY LTS 65+,HOMECARE - C&V,2103355728,1000059416
08.12.2021,ADULT SOCIAL CARE,SUPREME CARE SERVICES LTD,651.3,PHY LTS 65+,HOMECARE - C&V,2103355564,1000059416
08.12.2021,ADULT SOCIAL CARE,SUPREME CARE SERVICES LTD,660.92,PHY LTS 65+,HOMECARE - C&V,2103355698,1000059416
08.12.2021,ADULT SOCIAL CARE,SUPREME CARE SERVICES LTD,669.37,PHY LTS 65+,HOMECARE - C&V,2103355526,1000059416
08.12.2021,ADULT SOCIAL CARE,SUPREME CARE SERVICES LTD,673.56,PHY LTS 65+,HOMECARE - C&V,2103355802,1000059416
08.12.2021,ADULT SOCIAL CARE,SUPREME CARE SERVICES LTD,673.68,PHY LTS 65+,HOMECARE - C&V,2103355814,1000059416
08.12.2021,ADULT SOCIAL CARE,SUPREME CARE SERVICES LTD,674.37,PHY LTS 65+,HOMECARE - C&V,2103355524,1000059416
08.12.2021,ADULT SOCIAL CARE,SUPREME CARE SERVICES LTD,686.93,PHY LTS 65+,HOMECARE - C&V,2103355565,1000059416
08.12.2021,ADULT SOCIAL CARE,SUPREME CARE SERVICES LTD,687.88,PHY LTS 65+,HOMECARE - C&V,2103355390,1000059416
08.12.2021,ADULT SOCIAL CARE,SUPREME CARE SERVICES LTD,692.3,PHY LTS 65+,HOMECARE - C&V,2103355591,1000059416
08.12.2021,ADULT SOCIAL CARE,SUPREME CARE SERVICES LTD,699.23,PHY LTS 65+,HOMECARE - C&V,2103355858,1000059416
08.12.2021,ADULT SOCIAL CARE,SUPREME CARE SERVICES LTD,699.26,PHY LTS 65+,HOMECARE - C&V,2103355762,1000059416
08.12.2021,ADULT SOCIAL CARE,SUPREME CARE SERVICES LTD,700.89,PHY LTS 65+,HOMECARE - C&V,2103355398,1000059416
08.12.2021,ADULT SOCIAL CARE,SUPREME CARE SERVICES LTD,704.22,PHY LTS 65+,HOMECARE - C&V,2103355611,1000059416
08.12.2021,ADULT SOCIAL CARE,SUPREME CARE SERVICES LTD,710.25,PHY LTS 65+,HOMECARE - C&V,2103355486,1000059416
08.12.2021,ADULT SOCIAL CARE,SUPREME CARE SERVICES LTD,710.38,PHY LTS 65+,HOMECARE - C&V,2103355697,1000059416
08.12.2021,ADULT SOCIAL CARE,SUPREME CARE SERVICES LTD,719.36,PHY LTS 65+,HOMECARE - C&V,2103355652,1000059416
08.12.2021,ADULT SOCIAL CARE,SUPREME CARE SERVICES LTD,720.54,PHY LTS 65+,HOMECARE - C&V,2103355376,1000059416
08.12.2021,ADULT SOCIAL CARE,SUPREME CARE SERVICES LTD,723.75,PHY LTS 65+,HOMECARE - C&V,2103355386,1000059416
08.12.2021,ADULT SOCIAL CARE,SUPREME CARE SERVICES LTD,723.76,PHY LTS 65+,HOMECARE - C&V,2103355593,1000059416
08.12.2021,ADULT SOCIAL CARE,SUPREME CARE SERVICES LTD,728.31,PHY LTS 65+,HOMECARE - C&V,2103355640,1000059416
08.12.2021,ADULT SOCIAL CARE,SUPREME CARE SERVICES LTD,741.68,PHY LTS 65+,HOMECARE - C&V,2103355737,1000059416
08.12.2021,ADULT SOCIAL CARE,SUPREME CARE SERVICES LTD,741.82,PHY LTS 65+,HOMECARE - C&V,2103355828,1000059416
08.12.2021,ADULT SOCIAL CARE,SUPREME CARE SERVICES LTD,750.33,PHY LTS 65+,HOMECARE - C&V,2103355782,1000059416
08.12.2021,ADULT SOCIAL CARE,SUPREME CARE SERVICES LTD,759.78,PHY LTS 65+,HOMECARE - C&V,2103355585,1000059416
08.12.2021,ADULT SOCIAL CARE,SUPREME CARE SERVICES LTD,764.18,PHY LTS 65+,HOMECARE - C&V,2103355822,1000059416
08.12.2021,ADULT SOCIAL CARE,SUPREME CARE SERVICES LTD,767.21,PHY LTS 65+,HOMECARE - C&V,2103355774,1000059416
08.12.2021,ADULT SOCIAL CARE,SUPREME CARE SERVICES LTD,773.16,PHY LTS 65+,HOMECARE - C&V,2103355739,1000059416
08.12.2021,ADULT SOCIAL CARE,SUPREME CARE SERVICES LTD,777.78,PHY LTS 65+,HOMECARE - C&V,2103355560,1000059416
08.12.2021,ADULT SOCIAL CARE,SUPREME CARE SERVICES LTD,777.8,PHY LTS 65+,HOMECARE - C&V,2103355605,1000059416
08.12.2021,ADULT SOCIAL CARE,SUPREME CARE SERVICES LTD,778.12,PHY LTS 65+,HOMECARE - C&V,2103355631,1000059416
08.12.2021,ADULT SOCIAL CARE,SUPREME CARE SERVICES LTD,786.65,PHY LTS 65+,HOMECARE - C&V,2103355680,1000059416
08.12.2021,ADULT SOCIAL CARE,SUPREME CARE SERVICES LTD,786.78,PHY LTS 65+,HOMECARE - C&V,2103355370,1000059416
08.12.2021,ADULT SOCIAL CARE,SUPREME CARE SERVICES LTD,792.62,PHY LTS 65+,HOMECARE - C&V,2103355642,1000059416
08.12.2021,ADULT SOCIAL CARE,SUPREME CARE SERVICES LTD,813.72,PHY LTS 65+,HOMECARE - C&V,2103355406,1000059416
08.12.2021,ADULT SOCIAL CARE,SUPREME CARE SERVICES LTD,818.36,PHY LTS 65+,HOMECARE - C&V,2103355773,1000059416
08.12.2021,ADULT SOCIAL CARE,SUPREME CARE SERVICES LTD,831.58,PHY LTS 65+,HOMECARE - C&V,2103355579,1000059416
08.12.2021,ADULT SOCIAL CARE,SUPREME CARE SERVICES LTD,835.14,PHY LTS 65+,HOMECARE - C&V,2103355857,1000059416
08.12.2021,ADULT SOCIAL CARE,SUPREME CARE SERVICES LTD,835.79,PHY LTS 65+,HOMECARE - C&V,2103355514,1000059416
08.12.2021,ADULT SOCIAL CARE,SUPREME CARE SERVICES LTD,836.08,PHY LTS 65+,HOMECARE - C&V,2103355384,1000059416
08.12.2021,ADULT SOCIAL CARE,SUPREME CARE SERVICES LTD,839.32,PHY LTS 65+,HOMECARE - C&V,2103355790,1000059416
08.12.2021,ADULT SOCIAL CARE,SUPREME CARE SERVICES LTD,840.6,PHY LTS 65+,HOMECARE - C&V,2103355592,1000059416
08.12.2021,ADULT SOCIAL CARE,SUPREME CARE SERVICES LTD,845.06,PHY LTS 65+,HOMECARE - C&V,2103355530,1000059416
08.12.2021,ADULT SOCIAL CARE,SUPREME CARE SERVICES LTD,848.66,PHY LTS 65+,HOMECARE - C&V,2103355436,1000059416
08.12.2021,ADULT SOCIAL CARE,SUPREME CARE SERVICES LTD,848.68,PHY LTS 65+,HOMECARE - C&V,2103355538,1000059416
08.12.2021,ADULT SOCIAL CARE,SUPREME CARE SERVICES LTD,852.84,PHY LTS 65+,HOMECARE - C&V,2103355809,1000059416
08.12.2021,ADULT SOCIAL CARE,SUPREME CARE SERVICES LTD,857.08,PHY LTS 65+,HOMECARE - C&V,2103355699,1000059416
08.12.2021,ADULT SOCIAL CARE,SUPREME CARE SERVICES LTD,858.68,PHY LTS 65+,HOMECARE - C&V,2103355671,1000059416
08.12.2021,ADULT SOCIAL CARE,SUPREME CARE SERVICES LTD,867.56,PHY LTS 65+,HOMECARE - C&V,2103355667,1000059416
08.12.2021,ADULT SOCIAL CARE,SUPREME CARE SERVICES LTD,869.11,PHY LTS 65+,HOMECARE - C&V,2103355472,1000059416
08.12.2021,ADULT SOCIAL CARE,SUPREME CARE SERVICES LTD,869.96,PHY LTS 65+,HOMECARE - C&V,2103355496,1000059416
08.12.2021,ADULT SOCIAL CARE,SUPREME CARE SERVICES LTD,872.16,PHY LTS 65+,HOMECARE - C&V,2103355561,1000059416
08.12.2021,ADULT SOCIAL CARE,SUPREME CARE SERVICES LTD,876.66,PHY LTS 65+,HOMECARE - C&V,2103355569,1000059416
08.12.2021,ADULT SOCIAL CARE,SUPREME CARE SERVICES LTD,885.65,PHY LTS 65+,HOMECARE - C&V,2103355678,1000059416
08.12.2021,ADULT SOCIAL CARE,SUPREME CARE SERVICES LTD,893.1,PHY LTS 65+,HOMECARE - C&V,2103355609,1000059416
08.12.2021,ADULT SOCIAL CARE,SUPREME CARE SERVICES LTD,894.55,PHY LTS 65+,HOMECARE - C&V,2103355812,1000059416
08.12.2021,ADULT SOCIAL CARE,SUPREME CARE SERVICES LTD,894.57,PHY LTS 65+,HOMECARE - C&V,2103355559,1000059416
08.12.2021,ADULT SOCIAL CARE,SUPREME CARE SERVICES LTD,894.62,PHY LTS 65+,HOMECARE - C&V,2103355683,1000059416
08.12.2021,ADULT SOCIAL CARE,SUPREME CARE SERVICES LTD,901.98,PHY LTS 65+,HOMECARE - C&V,2103355791,1000059416
08.12.2021,ADULT SOCIAL CARE,SUPREME CARE SERVICES LTD,912.61,PHY LTS 65+,HOMECARE - C&V,2103355625,1000059416
08.12.2021,ADULT SOCIAL CARE,SUPREME CARE SERVICES LTD,912.64,PHY LTS 65+,HOMECARE - C&V,2103355700,1000059416
08.12.2021,ADULT SOCIAL CARE,SUPREME CARE SERVICES LTD,917.11,PHY LTS 65+,HOMECARE - C&V,2103355810,1000059416
08.12.2021,ADULT SOCIAL CARE,SUPREME CARE SERVICES LTD,921.5,PHY LTS 65+,HOMECARE - C&V,2103355571,1000059416
08.12.2021,ADULT SOCIAL CARE,SUPREME CARE SERVICES LTD,929.55,PHY LTS 65+,HOMECARE - C&V,2103355488,1000059416
08.12.2021,ADULT SOCIAL CARE,SUPREME CARE SERVICES LTD,938.08,PHY LTS 65+,HOMECARE - C&V,2103355843,1000059416
08.12.2021,ADULT SOCIAL CARE,SUPREME CARE SERVICES LTD,968.33,PHY LTS 65+,HOMECARE - C&V,2103355444,1000059416
08.12.2021,ADULT SOCIAL CARE,SUPREME CARE SERVICES LTD,968.57,PHY LTS 65+,HOMECARE - C&V,2103355705,1000059416
08.12.2021,ADULT SOCIAL CARE,SUPREME CARE SERVICES LTD,971.91,PHY LTS 65+,HOMECARE - C&V,2103355685,1000059416
08.12.2021,ADULT SOCIAL CARE,SUPREME CARE SERVICES LTD,972.76,PHY LTS 65+,HOMECARE - C&V,2103355550,1000059416
08.12.2021,ADULT SOCIAL CARE,SUPREME CARE SERVICES LTD,984.55,PHY LTS 65+,HOMECARE - C&V,2103355610,1000059416
08.12.2021,ADULT SOCIAL CARE,SUPREME CARE SERVICES LTD,989.91,PHY LTS 65+,HOMECARE - C&V,2103355577,1000059416
08.12.2021,ADULT SOCIAL CARE,SUPREME CARE SERVICES LTD,991.9,PHY LTS 65+,HOMECARE - C&V,2103355623,1000059416
08.12.2021,ADULT SOCIAL CARE,SUPREME CARE SERVICES LTD,993.43,PHY LTS 65+,HOMECARE - C&V,2103355844,1000059416
08.12.2021,ADULT SOCIAL CARE,SUPREME CARE SERVICES LTD,993.5,PHY LTS 65+,HOMECARE - C&V,2103355404,1000059416
08.12.2021,ADULT SOCIAL CARE,SUPREME CARE SERVICES LTD,997.85,PHY LTS 65+,HOMECARE - C&V,2103355775,1000059416
08.12.2021,ADULT SOCIAL CARE,SUPREME CARE SERVICES LTD,"1,011.39",PHY LTS 65+,HOMECARE - C&V,2103355715,1000059416
08.12.2021,ADULT SOCIAL CARE,SUPREME CARE SERVICES LTD,"1,013.24",PHY LTS 65+,HOMECARE - C&V,2103355575,1000059416
08.12.2021,ADULT SOCIAL CARE,SUPREME CARE SERVICES LTD,"1,020.38",PHY LTS 65+,HOMECARE - C&V,2103355760,1000059416
08.12.2021,ADULT SOCIAL CARE,SUPREME CARE SERVICES LTD,"1,020.49",PHY LTS 65+,HOMECARE - C&V,2103355729,1000059416
08.12.2021,ADULT SOCIAL CARE,SUPREME CARE SERVICES LTD,"1,020.52",PHY LTS 65+,HOMECARE - C&V,2103355428,1000059416
08.12.2021,ADULT SOCIAL CARE,SUPREME CARE SERVICES LTD,"1,022.16",PHY LTS 65+,HOMECARE - C&V,2103355582,1000059416
08.12.2021,ADULT SOCIAL CARE,SUPREME CARE SERVICES LTD,"1,034.82",PHY LTS 65+,HOMECARE - C&V,2103355734,1000059416
08.12.2021,ADULT SOCIAL CARE,SUPREME CARE SERVICES LTD,"1,056.35",PHY LTS 65+,HOMECARE - C&V,2103355588,1000059416
08.12.2021,ADULT SOCIAL CARE,SUPREME CARE SERVICES LTD,"1,056.47",PHY LTS 65+,HOMECARE - C&V,2103355632,1000059416
08.12.2021,ADULT SOCIAL CARE,SUPREME CARE SERVICES LTD,"1,064.66",PHY LTS 65+,HOMECARE - C&V,2103355758,1000059416
08.12.2021,ADULT SOCIAL CARE,SUPREME CARE SERVICES LTD,"1,066.10",PHY LTS 65+,HOMECARE - C&V,2103355866,1000059416
08.12.2021,ADULT SOCIAL CARE,SUPREME CARE SERVICES LTD,"1,075.20",PHY LTS 65+,HOMECARE - C&V,2103355595,1000059416
08.12.2021,ADULT SOCIAL CARE,SUPREME CARE SERVICES LTD,"1,095.91",PHY LTS 65+,HOMECARE - C&V,2103355691,1000059416
08.12.2021,ADULT SOCIAL CARE,SUPREME CARE SERVICES LTD,"1,096.80",PHY LTS 65+,HOMECARE - C&V,2103355824,1000059416
08.12.2021,ADULT SOCIAL CARE,SUPREME CARE SERVICES LTD,"1,101.42",PHY LTS 65+,HOMECARE - C&V,2103355779,1000059416
08.12.2021,ADULT SOCIAL CARE,SUPREME CARE SERVICES LTD,"1,102.39",PHY LTS 65+,HOMECARE - C&V,2103355816,1000059416
08.12.2021,ADULT SOCIAL CARE,SUPREME CARE SERVICES LTD,"1,105.90",PHY LTS 65+,HOMECARE - C&V,2103355666,1000059416
08.12.2021,ADULT SOCIAL CARE,SUPREME CARE SERVICES LTD,"1,119.64",PHY LTS 65+,HOMECARE - C&V,2103355654,1000059416
08.12.2021,ADULT SOCIAL CARE,SUPREME CARE SERVICES LTD,"1,137.37",PHY LTS 65+,HOMECARE - C&V,2103355676,1000059416
08.12.2021,ADULT SOCIAL CARE,SUPREME CARE SERVICES LTD,"1,139.33",PHY LTS 65+,HOMECARE - C&V,2103355608,1000059416
08.12.2021,ADULT SOCIAL CARE,SUPREME CARE SERVICES LTD,"1,164.10",PHY LTS 65+,HOMECARE - C&V,2103355490,1000059416
08.12.2021,ADULT SOCIAL CARE,SUPREME CARE SERVICES LTD,"1,164.27",PHY LTS 65+,HOMECARE - C&V,2103355478,1000059416
08.12.2021,ADULT SOCIAL CARE,SUPREME CARE SERVICES LTD,"1,177.70",PHY LTS 65+,HOMECARE - C&V,2103355597,1000059416
08.12.2021,ADULT SOCIAL CARE,SUPREME CARE SERVICES LTD,"1,177.72",PHY LTS 65+,HOMECARE - C&V,2103355682,1000059416
08.12.2021,ADULT SOCIAL CARE,SUPREME CARE SERVICES LTD,"1,181.78",PHY LTS 65+,HOMECARE - C&V,2103355795,1000059416
08.12.2021,ADULT SOCIAL CARE,SUPREME CARE SERVICES LTD,"1,193.80",PHY LTS 65+,HOMECARE - C&V,2103355839,1000059416
08.12.2021,ADULT SOCIAL CARE,SUPREME CARE SERVICES LTD,"1,199.08",PHY LTS 65+,HOMECARE - C&V,2103355719,1000059416
08.12.2021,ADULT SOCIAL CARE,SUPREME CARE SERVICES LTD,"1,200.22",PHY LTS 65+,HOMECARE - C&V,2103355512,1000059416
08.12.2021,ADULT SOCIAL CARE,SUPREME CARE SERVICES LTD,"1,200.34",PHY LTS 65+,HOMECARE - C&V,2103355410,1000059416
08.12.2021,ADULT SOCIAL CARE,SUPREME CARE SERVICES LTD,"1,213.80",PHY LTS 65+,HOMECARE - C&V,2103355414,1000059416
08.12.2021,ADULT SOCIAL CARE,SUPREME CARE SERVICES LTD,"1,215.02",PHY LTS 65+,HOMECARE - C&V,2103355853,1000059416
08.12.2021,ADULT SOCIAL CARE,SUPREME CARE SERVICES LTD,"1,227.99",PHY LTS 65+,HOMECARE - C&V,2103355474,1000059416
08.12.2021,ADULT SOCIAL CARE,SUPREME CARE SERVICES LTD,"1,236.17",PHY LTS 65+,HOMECARE - C&V,2103355761,1000059416
08.12.2021,ADULT SOCIAL CARE,SUPREME CARE SERVICES LTD,"1,236.30",PHY LTS 65+,HOMECARE - C&V,2103355647,1000059416
08.12.2021,ADULT SOCIAL CARE,SUPREME CARE SERVICES LTD,"1,240.50",PHY LTS 65+,HOMECARE - C&V,2103355852,1000059416
08.12.2021,ADULT SOCIAL CARE,SUPREME CARE SERVICES LTD,"1,245.07",PHY LTS 65+,HOMECARE - C&V,2103355372,1000059416
08.12.2021,ADULT SOCIAL CARE,SUPREME CARE SERVICES LTD,"1,276.76",PHY LTS 65+,HOMECARE - C&V,2103355720,1000059416
08.12.2021,ADULT SOCIAL CARE,SUPREME CARE SERVICES LTD,"1,285.79",PHY LTS 65+,HOMECARE - C&V,2103355815,1000059416
08.12.2021,ADULT SOCIAL CARE,SUPREME CARE SERVICES LTD,"1,317.07",PHY LTS 65+,HOMECARE - C&V,2103355416,1000059416
08.12.2021,ADULT SOCIAL CARE,SUPREME CARE SERVICES LTD,"1,326.03",PHY LTS 65+,HOMECARE - C&V,2103355426,1000059416
08.12.2021,ADULT SOCIAL CARE,SUPREME CARE SERVICES LTD,"1,348.63",PHY LTS 65+,HOMECARE - C&V,2103355484,1000059416
08.12.2021,ADULT SOCIAL CARE,SUPREME CARE SERVICES LTD,"1,371.41",PHY LTS 65+,HOMECARE - C&V,2103355872,1000059416
08.12.2021,ADULT SOCIAL CARE,SUPREME CARE SERVICES LTD,"1,381.50",PHY LTS 65+,HOMECARE - C&V,2103355829,1000059416
08.12.2021,ADULT SOCIAL CARE,SUPREME CARE SERVICES LTD,"1,382.10",PHY LTS 65+,HOMECARE - C&V,2103355819,1000059416
08.12.2021,ADULT SOCIAL CARE,SUPREME CARE SERVICES LTD,"1,389.01",PHY LTS 65+,HOMECARE - C&V,2103355596,1000059416
08.12.2021,ADULT SOCIAL CARE,SUPREME CARE SERVICES LTD,"1,511.62",PHY LTS 65+,HOMECARE - C&V,2103355806,1000059416
08.12.2021,ADULT SOCIAL CARE,SUPREME CARE SERVICES LTD,"1,522.21",PHY LTS 65+,HOMECARE - C&V,2103355368,1000059416
08.12.2021,ADULT SOCIAL CARE,SUPREME CARE SERVICES LTD,"1,539.06",PHY LTS 65+,HOMECARE - C&V,2103355388,1000059416
08.12.2021,ADULT SOCIAL CARE,SUPREME CARE SERVICES LTD,"1,551.17",PHY LTS 65+,HOMECARE - C&V,2103355492,1000059416
08.12.2021,ADULT SOCIAL CARE,SUPREME CARE SERVICES LTD,"1,582.41",PHY LTS 65+,HOMECARE - C&V,2103355826,1000059416
08.12.2021,ADULT SOCIAL CARE,SUPREME CARE SERVICES LTD,"1,672.29",PHY LTS 65+,HOMECARE - C&V,2103355653,1000059416
08.12.2021,ADULT SOCIAL CARE,SUPREME CARE SERVICES LTD,"1,690.39",PHY LTS 65+,HOMECARE - C&V,2103355818,1000059416
08.12.2021,ADULT SOCIAL CARE,SUPREME CARE SERVICES LTD,"1,717.43",PHY LTS 65+,HOMECARE - C&V,2103355446,1000059416
08.12.2021,ADULT SOCIAL CARE,SUPREME CARE SERVICES LTD,"1,892.84",PHY LTS 65+,HOMECARE - C&V,2103355466,1000059416
08.12.2021,ADULT SOCIAL CARE,SUPREME CARE SERVICES LTD,"1,927.31",PHY LTS 65+,HOMECARE - C&V,2103355438,1000059416
08.12.2021,ADULT SOCIAL CARE,SUPREME CARE SERVICES LTD,"1,996.93",PHY LTS 65+,HOMECARE - C&V,2103355627,1000059416
08.12.2021,ADULT SOCIAL CARE,SUPREME CARE SERVICES LTD,"2,072.23",PHY LTS 65+,HOMECARE - C&V,2103355672,1000059416
08.12.2021,ADULT SOCIAL CARE,SUPREME CARE SERVICES LTD,"2,107.85",PHY LTS 65+,HOMECARE - C&V,2103355586,1000059416
08.12.2021,ADULT SOCIAL CARE,SUPREME CARE SERVICES LTD,"2,144.13",PHY LTS 65+,HOMECARE - C&V,2103355590,1000059416
08.12.2021,ADULT SOCIAL CARE,SUPREME CARE SERVICES LTD,"2,213.07",PHY LTS 65+,HOMECARE - C&V,2103355755,1000059416
08.12.2021,ADULT SOCIAL CARE,SUPREME CARE SERVICES LTD,"2,261.28",PHY LTS 65+,HOMECARE - C&V,2103355589,1000059416
08.12.2021,ADULT SOCIAL CARE,SUPREME CARE SERVICES LTD,"2,302.60",PHY LTS 65+,HOMECARE - C&V,2103355418,1000059416
08.12.2021,ADULT SOCIAL CARE,SUPREME CARE SERVICES LTD,"2,323.55",PHY LTS 65+,HOMECARE - C&V,2103355366,1000059416
08.12.2021,ADULT SOCIAL CARE,SUPREME CARE SERVICES LTD,"2,334.14",PHY LTS 65+,HOMECARE - C&V,2103355832,1000059416
08.12.2021,ADULT SOCIAL CARE,SUPREME CARE SERVICES LTD,"2,366.54",PHY LTS 65+,HOMECARE - C&V,2103355520,1000059416
08.12.2021,ADULT SOCIAL CARE,SUPREME CARE SERVICES LTD,"2,373.63",PHY LTS 65+,HOMECARE - C&V,2103355664,1000059416
08.12.2021,ADULT SOCIAL CARE,SUPREME CARE SERVICES LTD,"2,417.32",PHY LTS 65+,HOMECARE - C&V,2103355757,1000059416
08.12.2021,ADULT SOCIAL CARE,SUPREME CARE SERVICES LTD,"2,429.04",PHY LTS 65+,HOMECARE - C&V,2103355772,1000059416
08.12.2021,ADULT SOCIAL CARE,SUPREME CARE SERVICES LTD,"2,438.25",PHY LTS 65+,HOMECARE - C&V,2103355846,1000059416
08.12.2021,ADULT SOCIAL CARE,SUPREME CARE SERVICES LTD,"2,447.46",PHY LTS 65+,HOMECARE - C&V,2103355454,1000059416
08.12.2021,ADULT SOCIAL CARE,SUPREME CARE SERVICES LTD,"2,450.25",PHY LTS 65+,HOMECARE - C&V,2103355634,1000059416
08.12.2021,ADULT SOCIAL CARE,SUPREME CARE SERVICES LTD,"2,454.98",PHY LTS 65+,HOMECARE - C&V,2103355615,1000059416
08.12.2021,ADULT SOCIAL CARE,SUPREME CARE SERVICES LTD,"2,527.53",PHY LTS 65+,HOMECARE - C&V,2103355558,1000059416
08.12.2021,ADULT SOCIAL CARE,SUPREME CARE SERVICES LTD,"2,584.87",PHY LTS 65+,HOMECARE - C&V,2103355567,1000059416
08.12.2021,ADULT SOCIAL CARE,SUPREME CARE SERVICES LTD,"2,711.60",PHY LTS 65+,HOMECARE - C&V,2103355578,1000059416
08.12.2021,ADULT SOCIAL CARE,SUPREME CARE SERVICES LTD,"2,742.02",PHY LTS 65+,HOMECARE - C&V,2103355424,1000059416
08.12.2021,ADULT SOCIAL CARE,SUPREME CARE SERVICES LTD,"2,775.62",PHY LTS 65+,HOMECARE - C&V,2103355462,1000059416
08.12.2021,ADULT SOCIAL CARE,SUPREME CARE SERVICES LTD,"2,856.46",PHY LTS 65+,HOMECARE - C&V,2103355835,1000059416
08.12.2021,ADULT SOCIAL CARE,SUPREME CARE SERVICES LTD,"2,913.11",PHY LTS 65+,HOMECARE - C&V,2103355845,1000059416
08.12.2021,ADULT SOCIAL CARE,SUPREME CARE SERVICES LTD,"2,980.02",PHY LTS 65+,HOMECARE - C&V,2103355766,1000059416
08.12.2021,ADULT SOCIAL CARE,SUPREME CARE SERVICES LTD,"3,219.49",PHY LTS 65+,HOMECARE - C&V,2103355587,1000059416
08.12.2021,ADULT SOCIAL CARE,SUPREME CARE SERVICES LTD,"3,907.10",PHY LTS 65+,HOMECARE - C&V,2103355649,1000059416
08.12.2021,ADULT SOCIAL CARE,LONDON CARE LTD,654.62,PHY STS 18-64,HOMECARE - IC,2103356317,1000003398
08.12.2021,ADULT SOCIAL CARE,LONDON CARE LTD,253.55,PHY STS 65+,HOMECARE - IC,2103356318,1000003398
08.12.2021,ADULT SOCIAL CARE,LONDON CARE LTD,258.16,PHY STS 65+,HOMECARE - IC,2103356332,1000003398
08.12.2021,ADULT SOCIAL CARE,LONDON CARE LTD,299.65,PHY STS 65+,HOMECARE - IC,2103356301,1000003398
08.12.2021,ADULT SOCIAL CARE,LONDON CARE LTD,322.7,PHY STS 65+,HOMECARE - IC,2103356306,1000003398
08.12.2021,ADULT SOCIAL CARE,LONDON CARE LTD,331.92,PHY STS 65+,HOMECARE - IC,2103356323,1000003398
08.12.2021,ADULT SOCIAL CARE,LONDON CARE LTD,387.24,PHY STS 65+,HOMECARE - IC,2103356343,1000003398
08.12.2021,ADULT SOCIAL CARE,LONDON CARE LTD,428.73,PHY STS 65+,HOMECARE - IC,2103356321,1000003398
08.12.2021,ADULT SOCIAL CARE,LONDON CARE LTD,433.34,PHY STS 65+,HOMECARE - IC,2103356331,1000003398
08.12.2021,ADULT SOCIAL CARE,LONDON CARE LTD,456.39,PHY STS 65+,HOMECARE - IC,2103356329,1000003398
08.12.2021,ADULT SOCIAL CARE,LONDON CARE LTD,459.02,PHY STS 65+,HOMECARE - IC,2103356315,1000003398
08.12.2021,ADULT SOCIAL CARE,LONDON CARE LTD,461,PHY STS 65+,HOMECARE - IC,2103356295,1000003398
08.12.2021,ADULT SOCIAL CARE,LONDON CARE LTD,530.15,PHY STS 65+,HOMECARE - IC,2103356334,1000003398
08.12.2021,ADULT SOCIAL CARE,LONDON CARE LTD,571.64,PHY STS 65+,HOMECARE - IC,2103356338,1000003398
08.12.2021,ADULT SOCIAL CARE,LONDON CARE LTD,580.86,PHY STS 65+,HOMECARE - IC,2103356274,1000003398
08.12.2021,ADULT SOCIAL CARE,LONDON CARE LTD,737.6,PHY STS 65+,HOMECARE - IC,2103356272,1000003398
08.12.2021,ADULT SOCIAL CARE,LONDON CARE LTD,"1,074.13",PHY STS 65+,HOMECARE - IC,2103356336,1000003398
08.12.2021,ADULT SOCIAL CARE,LONDON CARE LTD,"1,106.40",PHY STS 65+,HOMECARE - IC,2103356292,1000003398
08.12.2021,ADULT SOCIAL CARE,LONDON CARE LTD,"1,124.84",PHY STS 65+,HOMECARE - IC,2103356286,1000003398
08.12.2021,ADULT SOCIAL CARE,LONDON CARE LTD,"1,341.51",PHY STS 65+,HOMECARE - IC,2103356303,1000003398
08.12.2021,ADULT SOCIAL CARE,LONDON CARE LTD,"1,404.82",PHY STS 65+,HOMECARE - IC,2103356300,1000003398
08.12.2021,ADULT SOCIAL CARE,LONDON CARE LTD,"1,562.79",PHY STS 65+,HOMECARE - IC,2103356311,1000003398
08.12.2021,ADULT SOCIAL CARE,LONDON CARE LTD,"2,978.06",PHY STS 65+,HOMECARE - IC,2103356320,1000003398
08.12.2021,ADULT SOCIAL CARE,SUPREME CARE SERVICES LTD,269.74,PHY STS 65+,HOMECARE - IC,2103355522,1000059416
08.12.2021,ADULT SOCIAL CARE,SUPREME CARE SERVICES LTD,331.78,PHY STS 65+,HOMECARE - IC,2103355722,1000059416
08.12.2021,ADULT SOCIAL CARE,SUPREME CARE SERVICES LTD,343.88,PHY STS 65+,HOMECARE - IC,2103355637,1000059416
08.12.2021,ADULT SOCIAL CARE,SUPREME CARE SERVICES LTD,346.37,PHY STS 65+,HOMECARE - IC,2103355823,1000059416
08.12.2021,ADULT SOCIAL CARE,SUPREME CARE SERVICES LTD,383.81,PHY STS 65+,HOMECARE - IC,2103355440,1000059416
08.12.2021,ADULT SOCIAL CARE,SUPREME CARE SERVICES LTD,"1,224.66",SEN LTS 65+,HOMECARE - C&V,2103355721,1000059416
08.12.2021,ADULT SOCIAL CARE,BEDE HOUSE ASSOCIATION,"1,168.00",SOCIAL ISOLATION,DAYCARE,2103356376,1553877
08.12.2021,ADULT SOCIAL CARE,SUPREME CARE SERVICES LTD,417.63,SOCIAL ISOLATION,HOMECARE - C&V,2103355768,1000059416
08.12.2021,ADULT SOCIAL CARE,SUPREME CARE SERVICES LTD,566.38,SOCIAL ISOLATION,HOMECARE - C&V,2103355607,1000059416
08.12.2021,ADULT SOCIAL CARE,SUPREME CARE SERVICES LTD,612.9,SOCIAL ISOLATION,HOMECARE - C&V,2103355628,1000059416
08.12.2021,ADULT SOCIAL CARE,SUPREME CARE SERVICES LTD,"2,096.13",SOCIAL ISOLATION,HOMECARE - C&V,2103355834,1000059416
08.12.2021,ADULT SOCIAL CARE,SUPREME CARE SERVICES LTD,"2,468.77",SOCIAL ISOLATION,HOMECARE - C&V,2103355817,1000059416
08.12.2021,ADULT SOCIAL CARE,LONDON CARE LTD,"1,014.20",SOCIAL ISOLATION,HOMECARE - IC,2103356299,1000003398
08.12.2021,ADULT SOCIAL CARE,SUPREME CARE SERVICES LTD,349.68,SUB LTS 18-64,HOMECARE - C&V,2103355498,1000059416
08.12.2021,ASSET MANAGEMENT,RELIANCE HIGH-TECH LTD,743,REPAIRS OPERATIONS,OFFICE EXPENSES,5902499846,1000079374
08.12.2021,CHIEF EXECUTIVE,HAYATSU ARCHITECTS LTD,"3,250.00",CAPITAL PS (REGEN),CONSTRUCTION FEES,5902499715,1000082843
08.12.2021,CHILDREN AND FAMILIES,REDACTED PERSONAL DATA,"1,750.00",CARELEAVER UNIV SUPP,OTHER PAYMENTS FOR CLIENTS,REDACTED,REDACTED
08.12.2021,CHILDREN AND FAMILIES,REDACTED PERSONAL DATA,"1,750.00",CARELEAVER UNIV SUPP,OTHER PAYMENTS FOR CLIENTS,REDACTED,REDACTED
08.12.2021,CHILDREN AND FAMILIES,REDACTED PERSONAL DATA,"1,750.00",CARELEAVER UNIV SUPP,OTHER PAYMENTS FOR CLIENTS,REDACTED,REDACTED
08.12.2021,CHILDREN AND FAMILIES,REDACTED PERSONAL DATA,"1,750.00",CARELEAVER UNIV SUPP,OTHER PAYMENTS FOR CLIENTS,REDACTED,REDACTED
08.12.2021,CHILDREN AND FAMILIES,REDACTED PERSONAL DATA,"1,750.00",CARELEAVER UNIV SUPP,OTHER PAYMENTS FOR CLIENTS,REDACTED,REDACTED
08.12.2021,CHILDREN AND FAMILIES,REDACTED PERSONAL DATA,"1,750.00",CARELEAVER UNIV SUPP,OTHER PAYMENTS FOR CLIENTS,REDACTED,REDACTED
08.12.2021,CHILDREN AND FAMILIES,REDACTED PERSONAL DATA,"1,750.00",CARELEAVER UNIV SUPP,OTHER PAYMENTS FOR CLIENTS,REDACTED,REDACTED
08.12.2021,CHILDREN AND FAMILIES,REDACTED PERSONAL DATA,"1,750.00",CARELEAVER UNIV SUPP,OTHER PAYMENTS FOR CLIENTS,REDACTED,REDACTED
08.12.2021,CHILDREN AND FAMILIES,REDACTED PERSONAL DATA,"1,750.00",CARELEAVER UNIV SUPP,OTHER PAYMENTS FOR CLIENTS,REDACTED,REDACTED
08.12.2021,CHILDREN AND FAMILIES,REDACTED PERSONAL DATA,"1,750.00",CARELEAVER UNIV SUPP,OTHER PAYMENTS FOR CLIENTS,REDACTED,REDACTED
08.12.2021,CHILDREN AND FAMILIES,REDACTED PERSONAL DATA,"1,750.00",CARELEAVER UNIV SUPP,OTHER PAYMENTS FOR CLIENTS,REDACTED,REDACTED
08.12.2021,CHILDREN AND FAMILIES,REDACTED PERSONAL DATA,"1,750.00",CARELEAVER UNIV SUPP,OTHER PAYMENTS FOR CLIENTS,REDACTED,REDACTED
08.12.2021,CHILDREN AND FAMILIES,REDACTED PERSONAL DATA,"1,750.00",CARELEAVER UNIV SUPP,OTHER PAYMENTS FOR CLIENTS,REDACTED,REDACTED
08.12.2021,CHILDREN AND FAMILIES,REDACTED PERSONAL DATA,"1,750.00",CARELEAVER UNIV SUPP,OTHER PAYMENTS FOR CLIENTS,REDACTED,REDACTED
08.12.2021,CHILDREN AND FAMILIES,UNIQUE CONTACT AND COMMUNITY SERVICES LTD,350,CONTACT SERVICE,OTHER PAYMENTS FOR CLIENTS,5902499859,1000075550
08.12.2021,CHILDREN AND FAMILIES,NEGOTIATORS FAMILY CENTRE LIMITED,325,CONTACT SERVICE,OTHER PAYMENTS FOR CLIENTS,5902499907,1000075672
08.12.2021,CHILDREN AND FAMILIES,NEGOTIATORS FAMILY CENTRE LIMITED,640,CONTACT SERVICE,OTHER PAYMENTS FOR CLIENTS,5902499908,1000075672
08.12.2021,CHILDREN AND FAMILIES,NEGOTIATORS FAMILY CENTRE LIMITED,"2,670.00",CONTACT SERVICE,OTHER PAYMENTS FOR CLIENTS,5902499902,1000075672
08.12.2021,CHILDREN AND FAMILIES,REDACTED PERSONAL DATA,300,FOSTERING ALLOWANCES,ADDITIONAL PAYMENTS TO AGENCIES/CARERS,REDACTED,REDACTED
08.12.2021,CHILDREN AND FAMILIES,REDACTED PERSONAL DATA,300,FOSTERING ALLOWANCES,ADDITIONAL PAYMENTS TO AGENCIES/CARERS,REDACTED,REDACTED
08.12.2021,CHILDREN AND FAMILIES,REDACTED PERSONAL DATA,896,FOSTERING ALLOWANCES,PAYMENTS TO CARERS,REDACTED,REDACTED
08.12.2021,CHILDREN AND FAMILIES,BETA DISTRIBUTION (SOUTH) LTD,720,FOSTERING TEAM,EXTERNAL AGENCIES AND BODIES,5902499770,1000044844
08.12.2021,CHILDREN AND FAMILIES,REDACTED PERSONAL DATA,600,FRIENDS &FAMILY FOST,OTHER PAYMENTS FOR CLIENTS,REDACTED,REDACTED
08.12.2021,CHILDREN AND FAMILIES,REDACTED PERSONAL DATA,"-7,985.72",FRIENDS &FAMILY FOST,PAYMENTS TO CARERS,REDACTED,REDACTED
08.12.2021,CHILDREN AND FAMILIES,REDACTED PERSONAL DATA,713.14,FRIENDS &FAMILY FOST,PAYMENTS TO CARERS,REDACTED,REDACTED
08.12.2021,CHILDREN AND FAMILIES,REDACTED PERSONAL DATA,"10,221.71",FRIENDS &FAMILY FOST,PAYMENTS TO CARERS,REDACTED,REDACTED
08.12.2021,CHILDREN AND FAMILIES,REDACTED PERSONAL DATA,"11,450.57",FRIENDS &FAMILY FOST,PAYMENTS TO CARERS,REDACTED,REDACTED
08.12.2021,CHILDREN AND FAMILIES,REDACTED PERSONAL DATA,-268.71,FRIENDS &FAMILY FOST,PAYMENTS TO CARERS,REDACTED,REDACTED
08.12.2021,CHILDREN AND FAMILIES,REDACTED PERSONAL DATA,435.84,RESIDENCE ORDERS,PAYMENTS TO CARERS,REDACTED,REDACTED
08.12.2021,CHILDREN AND FAMILIES,REDACTED PERSONAL DATA,401.24,RESIDENCE ORDERS,PAYMENTS TO CARERS,REDACTED,REDACTED
08.12.2021,CHILDREN AND FAMILIES,REDACTED PERSONAL DATA,340.3,RESIDENCE ORDERS,PAYMENTS TO CARERS,REDACTED,REDACTED
08.12.2021,CHILDREN AND FAMILIES,REDACTED PERSONAL DATA,342.44,RESIDENCE ORDERS,PAYMENTS TO CARERS,REDACTED,REDACTED
08.12.2021,CHILDREN AND FAMILIES,REDACTED PERSONAL DATA,354.8,RESIDENCE ORDERS,PAYMENTS TO CARERS,REDACTED,REDACTED
08.12.2021,CHILDREN AND FAMILIES,REDACTED PERSONAL DATA,348.94,RESIDENCE ORDERS,PAYMENTS TO CARERS,REDACTED,REDACTED
08.12.2021,CHILDREN AND FAMILIES,REDACTED PERSONAL DATA,367.08,RESIDENCE ORDERS,PAYMENTS TO CARERS,REDACTED,REDACTED
08.12.2021,CHILDREN AND FAMILIES,FRESHVIEW ESTATES LTD,"1,323.30",SEMI-IND CARELEAVERS,EXTERNAL AGENCIES AND BODIES,5902499949,1000081189
08.12.2021,CHILDREN AND FAMILIES,REDACTED PERSONAL DATA,667.98,SPECIAL GUARDIANSHIP,EXTERNAL AGENCIES AND BODIES,REDACTED,REDACTED
08.12.2021,CHILDREN AND FAMILIES,REDACTED PERSONAL DATA,355.86,SPECIAL GUARDIANSHIP,PAYMENTS TO CARERS,REDACTED,REDACTED
08.12.2021,CHILDREN AND FAMILIES,REDACTED PERSONAL DATA,341.82,SPECIAL GUARDIANSHIP,PAYMENTS TO CARERS,REDACTED,REDACTED
08.12.2021,CHILDREN AND FAMILIES,REDACTED PERSONAL DATA,355.86,SPECIAL GUARDIANSHIP,PAYMENTS TO CARERS,REDACTED,REDACTED
08.12.2021,CHILDREN AND FAMILIES,REDACTED PERSONAL DATA,341.82,SPECIAL GUARDIANSHIP,PAYMENTS TO CARERS,REDACTED,REDACTED
08.12.2021,CHILDREN AND FAMILIES,REDACTED PERSONAL DATA,315.44,SPECIAL GUARDIANSHIP,PAYMENTS TO CARERS,REDACTED,REDACTED
08.12.2021,CHILDREN AND FAMILIES,REDACTED PERSONAL DATA,341.82,SPECIAL GUARDIANSHIP,PAYMENTS TO CARERS,REDACTED,REDACTED
08.12.2021,CHILDREN AND FAMILIES,REDACTED PERSONAL DATA,335.44,SPECIAL GUARDIANSHIP,PAYMENTS TO CARERS,REDACTED,REDACTED
08.12.2021,CHILDREN AND FAMILIES,REDACTED PERSONAL DATA,285.72,SPECIAL GUARDIANSHIP,PAYMENTS TO CARERS,REDACTED,REDACTED
08.12.2021,CHILDREN AND FAMILIES,REDACTED PERSONAL DATA,454.18,SPECIAL GUARDIANSHIP,PAYMENTS TO CARERS,REDACTED,REDACTED
08.12.2021,CHILDREN AND FAMILIES,REDACTED PERSONAL DATA,308.76,SPECIAL GUARDIANSHIP,PAYMENTS TO CARERS,REDACTED,REDACTED
08.12.2021,CHILDREN AND FAMILIES,REDACTED PERSONAL DATA,355.86,SPECIAL GUARDIANSHIP,PAYMENTS TO CARERS,REDACTED,REDACTED
08.12.2021,CHILDREN AND FAMILIES,REDACTED PERSONAL DATA,435.84,SPECIAL GUARDIANSHIP,PAYMENTS TO CARERS,REDACTED,REDACTED
08.12.2021,CHILDREN AND FAMILIES,REDACTED PERSONAL DATA,355.86,SPECIAL GUARDIANSHIP,PAYMENTS TO CARERS,REDACTED,REDACTED
08.12.2021,CHILDREN AND FAMILIES,REDACTED PERSONAL DATA,435.84,SPECIAL GUARDIANSHIP,PAYMENTS TO CARERS,REDACTED,REDACTED
08.12.2021,CHILDREN AND FAMILIES,REDACTED PERSONAL DATA,449.88,SPECIAL GUARDIANSHIP,PAYMENTS TO CARERS,REDACTED,REDACTED
08.12.2021,CHILDREN AND FAMILIES,REDACTED PERSONAL DATA,360.96,SPECIAL GUARDIANSHIP,PAYMENTS TO CARERS,REDACTED,REDACTED
08.12.2021,CHILDREN AND FAMILIES,REDACTED PERSONAL DATA,435.84,SPECIAL GUARDIANSHIP,PAYMENTS TO CARERS,REDACTED,REDACTED
08.12.2021,CHILDREN AND FAMILIES,REDACTED PERSONAL DATA,435.84,SPECIAL GUARDIANSHIP,PAYMENTS TO CARERS,REDACTED,REDACTED
08.12.2021,CHILDREN AND FAMILIES,REDACTED PERSONAL DATA,449.88,SPECIAL GUARDIANSHIP,PAYMENTS TO CARERS,REDACTED,REDACTED
08.12.2021,CHILDREN AND FAMILIES,REDACTED PERSONAL DATA,281.66,SPECIAL GUARDIANSHIP,PAYMENTS TO CARERS,REDACTED,REDACTED
08.12.2021,CHILDREN AND FAMILIES,REDACTED PERSONAL DATA,435.84,SPECIAL GUARDIANSHIP,PAYMENTS TO CARERS,REDACTED,REDACTED
08.12.2021,CHILDREN AND FAMILIES,REDACTED PERSONAL DATA,468.92,SPECIAL GUARDIANSHIP,PAYMENTS TO CARERS,REDACTED,REDACTED
08.12.2021,CHILDREN AND FAMILIES,REDACTED PERSONAL DATA,477.36,SPECIAL GUARDIANSHIP,PAYMENTS TO CARERS,REDACTED,REDACTED
08.12.2021,CHILDREN AND FAMILIES,REDACTED PERSONAL DATA,435.84,SPECIAL GUARDIANSHIP,PAYMENTS TO CARERS,REDACTED,REDACTED
08.12.2021,CHILDREN AND FAMILIES,REDACTED PERSONAL DATA,776.08,SPECIAL GUARDIANSHIP,PAYMENTS TO CARERS,REDACTED,REDACTED
08.12.2021,CHILDREN AND FAMILIES,REDACTED PERSONAL DATA,449.88,SPECIAL GUARDIANSHIP,PAYMENTS TO CARERS,REDACTED,REDACTED
08.12.2021,CHILDREN AND FAMILIES,REDACTED PERSONAL DATA,435.84,SPECIAL GUARDIANSHIP,PAYMENTS TO CARERS,REDACTED,REDACTED
08.12.2021,CHILDREN AND FAMILIES,REDACTED PERSONAL DATA,449.9,SPECIAL GUARDIANSHIP,PAYMENTS TO CARERS,REDACTED,REDACTED
08.12.2021,CHILDREN AND FAMILIES,REDACTED PERSONAL DATA,355.86,SPECIAL GUARDIANSHIP,PAYMENTS TO CARERS,REDACTED,REDACTED
08.12.2021,CHILDREN AND FAMILIES,REDACTED PERSONAL DATA,435.84,SPECIAL GUARDIANSHIP,PAYMENTS TO CARERS,REDACTED,REDACTED
08.12.2021,CHILDREN AND FAMILIES,REDACTED PERSONAL DATA,437.24,SPECIAL GUARDIANSHIP,PAYMENTS TO CARERS,REDACTED,REDACTED
08.12.2021,CHILDREN AND FAMILIES,REDACTED PERSONAL DATA,341.82,SPECIAL GUARDIANSHIP,PAYMENTS TO CARERS,REDACTED,REDACTED
08.12.2021,CHILDREN AND FAMILIES,REDACTED PERSONAL DATA,364.24,SPECIAL GUARDIANSHIP,PAYMENTS TO CARERS,REDACTED,REDACTED
08.12.2021,CHILDREN AND FAMILIES,REDACTED PERSONAL DATA,684.9,SPECIAL GUARDIANSHIP,PAYMENTS TO CARERS,REDACTED,REDACTED
08.12.2021,CHILDREN AND FAMILIES,REDACTED PERSONAL DATA,778.68,SPECIAL GUARDIANSHIP,PAYMENTS TO CARERS,REDACTED,REDACTED
08.12.2021,CHILDREN AND FAMILIES,REDACTED PERSONAL DATA,449.88,SPECIAL GUARDIANSHIP,PAYMENTS TO CARERS,REDACTED,REDACTED
08.12.2021,CHILDREN AND FAMILIES,REDACTED PERSONAL DATA,326.46,SPECIAL GUARDIANSHIP,PAYMENTS TO CARERS,REDACTED,REDACTED
08.12.2021,CHILDREN AND FAMILIES,REDACTED PERSONAL DATA,435.84,SPECIAL GUARDIANSHIP,PAYMENTS TO CARERS,REDACTED,REDACTED
08.12.2021,CHILDREN AND FAMILIES,REDACTED PERSONAL DATA,326.5,SPECIAL GUARDIANSHIP,PAYMENTS TO CARERS,REDACTED,REDACTED
08.12.2021,CHILDREN AND FAMILIES,REDACTED PERSONAL DATA,341.82,SPECIAL GUARDIANSHIP,PAYMENTS TO CARERS,REDACTED,REDACTED
08.12.2021,CHILDREN AND FAMILIES,REDACTED PERSONAL DATA,382.3,SPECIAL GUARDIANSHIP,PAYMENTS TO CARERS,REDACTED,REDACTED
08.12.2021,CHILDREN AND FAMILIES,REDACTED PERSONAL DATA,448.48,SPECIAL GUARDIANSHIP,PAYMENTS TO CARERS,REDACTED,REDACTED
08.12.2021,CHILDREN AND FAMILIES,REDACTED PERSONAL DATA,341.82,SPECIAL GUARDIANSHIP,PAYMENTS TO CARERS,REDACTED,REDACTED
08.12.2021,CHILDREN AND FAMILIES,REDACTED PERSONAL DATA,360.66,SPECIAL GUARDIANSHIP,PAYMENTS TO CARERS,REDACTED,REDACTED
08.12.2021,CHILDREN AND FAMILIES,REDACTED PERSONAL DATA,341.82,SPECIAL GUARDIANSHIP,PAYMENTS TO CARERS,REDACTED,REDACTED
08.12.2021,CHILDREN AND FAMILIES,REDACTED PERSONAL DATA,375,SPECIAL GUARDIANSHIP,PAYMENTS TO CARERS,REDACTED,REDACTED
08.12.2021,CHILDREN AND FAMILIES,REDACTED PERSONAL DATA,295.4,SPECIAL GUARDIANSHIP,PAYMENTS TO CARERS,REDACTED,REDACTED
08.12.2021,CHILDREN AND FAMILIES,REDACTED PERSONAL DATA,434.76,SPECIAL GUARDIANSHIP,PAYMENTS TO CARERS,REDACTED,REDACTED
08.12.2021,CHILDREN AND FAMILIES,REDACTED PERSONAL DATA,341.82,SPECIAL GUARDIANSHIP,PAYMENTS TO CARERS,REDACTED,REDACTED
08.12.2021,CHILDREN AND FAMILIES,REDACTED PERSONAL DATA,435.84,SPECIAL GUARDIANSHIP,PAYMENTS TO CARERS,REDACTED,REDACTED
08.12.2021,CHILDREN AND FAMILIES,REDACTED PERSONAL DATA,355.86,SPECIAL GUARDIANSHIP,PAYMENTS TO CARERS,REDACTED,REDACTED
08.12.2021,CHILDREN AND FAMILIES,REDACTED PERSONAL DATA,348.18,SPECIAL GUARDIANSHIP,PAYMENTS TO CARERS,REDACTED,REDACTED
08.12.2021,CHILDREN AND FAMILIES,REDACTED PERSONAL DATA,293.1,SPECIAL GUARDIANSHIP,PAYMENTS TO CARERS,REDACTED,REDACTED
08.12.2021,CHILDREN AND FAMILIES,REDACTED PERSONAL DATA,355.86,SPECIAL GUARDIANSHIP,PAYMENTS TO CARERS,REDACTED,REDACTED
08.12.2021,CHILDREN AND FAMILIES,REDACTED PERSONAL DATA,435.84,SPECIAL GUARDIANSHIP,PAYMENTS TO CARERS,REDACTED,REDACTED
08.12.2021,CHILDREN AND FAMILIES,REDACTED PERSONAL DATA,449.88,SPECIAL GUARDIANSHIP,PAYMENTS TO CARERS,REDACTED,REDACTED
08.12.2021,CHILDREN AND FAMILIES,REDACTED PERSONAL DATA,400.82,SPECIAL GUARDIANSHIP,PAYMENTS TO CARERS,REDACTED,REDACTED
08.12.2021,CHILDREN AND FAMILIES,REDACTED PERSONAL DATA,435.84,SPECIAL GUARDIANSHIP,PAYMENTS TO CARERS,REDACTED,REDACTED
08.12.2021,CHILDREN AND FAMILIES,REDACTED PERSONAL DATA,712.3,SPECIAL GUARDIANSHIP,PAYMENTS TO CARERS,REDACTED,REDACTED
08.12.2021,CHILDREN AND FAMILIES,REDACTED PERSONAL DATA,806.08,SPECIAL GUARDIANSHIP,PAYMENTS TO CARERS,REDACTED,REDACTED
08.12.2021,CHILDREN AND FAMILIES,REDACTED PERSONAL DATA,295.22,SPECIAL GUARDIANSHIP,PAYMENTS TO CARERS,REDACTED,REDACTED
08.12.2021,CHILDREN AND FAMILIES,REDACTED PERSONAL DATA,355.86,SPECIAL GUARDIANSHIP,PAYMENTS TO CARERS,REDACTED,REDACTED
08.12.2021,CHILDREN AND FAMILIES,REDACTED PERSONAL DATA,432.72,SPECIAL GUARDIANSHIP,PAYMENTS TO CARERS,REDACTED,REDACTED
08.12.2021,CHILDREN AND FAMILIES,REDACTED PERSONAL DATA,298.86,SPECIAL GUARDIANSHIP,PAYMENTS TO CARERS,REDACTED,REDACTED
08.12.2021,CHILDREN AND FAMILIES,REDACTED PERSONAL DATA,355.86,SPECIAL GUARDIANSHIP,PAYMENTS TO CARERS,REDACTED,REDACTED
08.12.2021,CHILDREN AND FAMILIES,REDACTED PERSONAL DATA,435.84,SPECIAL GUARDIANSHIP,PAYMENTS TO CARERS,REDACTED,REDACTED
08.12.2021,CHILDREN AND FAMILIES,REDACTED PERSONAL DATA,355.86,SPECIAL GUARDIANSHIP,PAYMENTS TO CARERS,REDACTED,REDACTED
08.12.2021,CHILDREN AND FAMILIES,REDACTED PERSONAL DATA,450.18,SPECIAL GUARDIANSHIP,PAYMENTS TO CARERS,REDACTED,REDACTED
08.12.2021,CHILDREN AND FAMILIES,REDACTED PERSONAL DATA,395.66,SPECIAL GUARDIANSHIP,PAYMENTS TO CARERS,REDACTED,REDACTED
08.12.2021,CHILDREN AND FAMILIES,REDACTED PERSONAL DATA,341.82,SPECIAL GUARDIANSHIP,PAYMENTS TO CARERS,REDACTED,REDACTED
08.12.2021,CHILDREN AND FAMILIES,REDACTED PERSONAL DATA,341.82,SPECIAL GUARDIANSHIP,PAYMENTS TO CARERS,REDACTED,REDACTED
08.12.2021,CHILDREN AND FAMILIES,REDACTED PERSONAL DATA,355.86,SPECIAL GUARDIANSHIP,PAYMENTS TO CARERS,REDACTED,REDACTED
08.12.2021,CHILDREN AND FAMILIES,REDACTED PERSONAL DATA,341.82,SPECIAL GUARDIANSHIP,PAYMENTS TO CARERS,REDACTED,REDACTED
08.12.2021,CHILDREN AND FAMILIES,REDACTED PERSONAL DATA,355.86,SPECIAL GUARDIANSHIP,PAYMENTS TO CARERS,REDACTED,REDACTED
08.12.2021,CHILDREN AND FAMILIES,REDACTED PERSONAL DATA,281.42,SPECIAL GUARDIANSHIP,PAYMENTS TO CARERS,REDACTED,REDACTED
08.12.2021,CHILDREN AND FAMILIES,REDACTED PERSONAL DATA,375,SPECIAL GUARDIANSHIP,PAYMENTS TO CARERS,REDACTED,REDACTED
08.12.2021,CHILDREN AND FAMILIES,REDACTED PERSONAL DATA,448.07,SPECIAL GUARDIANSHIP,PAYMENTS TO CARERS,REDACTED,REDACTED
08.12.2021,CHILDREN AND FAMILIES,REDACTED PERSONAL DATA,435.84,SPECIAL GUARDIANSHIP,PAYMENTS TO CARERS,REDACTED,REDACTED
08.12.2021,CHILDREN AND FAMILIES,REDACTED PERSONAL DATA,359.56,SPECIAL GUARDIANSHIP,PAYMENTS TO CARERS,REDACTED,REDACTED
08.12.2021,CHILDREN AND FAMILIES,REDACTED PERSONAL DATA,441.74,SPECIAL GUARDIANSHIP,PAYMENTS TO CARERS,REDACTED,REDACTED
08.12.2021,CHILDREN AND FAMILIES,REDACTED PERSONAL DATA,435.84,SPECIAL GUARDIANSHIP,PAYMENTS TO CARERS,REDACTED,REDACTED
08.12.2021,CHILDREN AND FAMILIES,REDACTED PERSONAL DATA,449.88,SPECIAL GUARDIANSHIP,PAYMENTS TO CARERS,REDACTED,REDACTED
08.12.2021,CHILDREN AND FAMILIES,REDACTED PERSONAL DATA,334.94,SPECIAL GUARDIANSHIP,PAYMENTS TO CARERS,REDACTED,REDACTED
08.12.2021,CHILDREN AND FAMILIES,REDACTED PERSONAL DATA,341.82,SPECIAL GUARDIANSHIP,PAYMENTS TO CARERS,REDACTED,REDACTED
08.12.2021,CHILDREN AND FAMILIES,REDACTED PERSONAL DATA,355.86,SPECIAL GUARDIANSHIP,PAYMENTS TO CARERS,REDACTED,REDACTED
08.12.2021,CHILDREN AND FAMILIES,REDACTED PERSONAL DATA,281.42,SPECIAL GUARDIANSHIP,PAYMENTS TO CARERS,REDACTED,REDACTED
08.12.2021,CHILDREN AND FAMILIES,REDACTED PERSONAL DATA,355.86,SPECIAL GUARDIANSHIP,PAYMENTS TO CARERS,REDACTED,REDACTED
08.12.2021,CHILDREN AND FAMILIES,REDACTED PERSONAL DATA,355.86,SPECIAL GUARDIANSHIP,PAYMENTS TO CARERS,REDACTED,REDACTED
08.12.2021,CHILDREN AND FAMILIES,REDACTED PERSONAL DATA,308.78,SPECIAL GUARDIANSHIP,PAYMENTS TO CARERS,REDACTED,REDACTED
08.12.2021,CHILDREN AND FAMILIES,REDACTED PERSONAL DATA,449.88,SPECIAL GUARDIANSHIP,PAYMENTS TO CARERS,REDACTED,REDACTED
08.12.2021,CHILDREN AND FAMILIES,REDACTED PERSONAL DATA,355.86,SPECIAL GUARDIANSHIP,PAYMENTS TO CARERS,REDACTED,REDACTED
08.12.2021,CHILDREN AND FAMILIES,REDACTED PERSONAL DATA,264.22,SPECIAL GUARDIANSHIP,PAYMENTS TO CARERS,REDACTED,REDACTED
08.12.2021,CHILDREN AND FAMILIES,REDACTED PERSONAL DATA,355.86,SPECIAL GUARDIANSHIP,PAYMENTS TO CARERS,REDACTED,REDACTED
08.12.2021,CHILDREN AND FAMILIES,REDACTED PERSONAL DATA,355.84,SPECIAL GUARDIANSHIP,PAYMENTS TO CARERS,REDACTED,REDACTED
08.12.2021,CHILDREN AND FAMILIES,REDACTED PERSONAL DATA,333.94,SPECIAL GUARDIANSHIP,PAYMENTS TO CARERS,REDACTED,REDACTED
08.12.2021,CHILDREN AND FAMILIES,REDACTED PERSONAL DATA,341.86,SPECIAL GUARDIANSHIP,PAYMENTS TO CARERS,REDACTED,REDACTED
08.12.2021,CHILDREN AND FAMILIES,REDACTED PERSONAL DATA,298.86,SPECIAL GUARDIANSHIP,PAYMENTS TO CARERS,REDACTED,REDACTED
08.12.2021,CHILDREN AND FAMILIES,REDACTED PERSONAL DATA,335.44,SPECIAL GUARDIANSHIP,PAYMENTS TO CARERS,REDACTED,REDACTED
08.12.2021,CHILDREN AND FAMILIES,REDACTED PERSONAL DATA,325.9,SPECIAL GUARDIANSHIP,PAYMENTS TO CARERS,REDACTED,REDACTED
08.12.2021,CHILDREN AND FAMILIES,REDACTED PERSONAL DATA,340.04,SPECIAL GUARDIANSHIP,PAYMENTS TO CARERS,REDACTED,REDACTED
08.12.2021,CHILDREN AND FAMILIES,REDACTED PERSONAL DATA,355.86,SPECIAL GUARDIANSHIP,PAYMENTS TO CARERS,REDACTED,REDACTED
08.12.2021,CHILDREN AND FAMILIES,REDACTED PERSONAL DATA,355.86,SPECIAL GUARDIANSHIP,PAYMENTS TO CARERS,REDACTED,REDACTED
08.12.2021,CHILDREN AND FAMILIES,REDACTED PERSONAL DATA,449.92,SPECIAL GUARDIANSHIP,PAYMENTS TO CARERS,REDACTED,REDACTED
08.12.2021,CHILDREN AND FAMILIES,REDACTED PERSONAL DATA,341.82,SPECIAL GUARDIANSHIP,PAYMENTS TO CARERS,REDACTED,REDACTED
08.12.2021,CHILDREN AND FAMILIES,REDACTED PERSONAL DATA,308.76,SPECIAL GUARDIANSHIP,PAYMENTS TO CARERS,REDACTED,REDACTED
08.12.2021,CHILDREN AND FAMILIES,REDACTED PERSONAL DATA,355.86,SPECIAL GUARDIANSHIP,PAYMENTS TO CARERS,REDACTED,REDACTED
08.12.2021,CHILDREN AND FAMILIES,REDACTED PERSONAL DATA,257.3,SPECIAL GUARDIANSHIP,PAYMENTS TO CARERS,REDACTED,REDACTED
08.12.2021,CHILDREN AND FAMILIES,REDACTED PERSONAL DATA,449.88,SPECIAL GUARDIANSHIP,PAYMENTS TO CARERS,REDACTED,REDACTED
08.12.2021,CHILDREN AND FAMILIES,REDACTED PERSONAL DATA,449.88,SPECIAL GUARDIANSHIP,PAYMENTS TO CARERS,REDACTED,REDACTED
08.12.2021,CHILDREN AND FAMILIES,REDACTED PERSONAL DATA,355.86,SPECIAL GUARDIANSHIP,PAYMENTS TO CARERS,REDACTED,REDACTED
08.12.2021,CHILDREN AND FAMILIES,REDACTED PERSONAL DATA,477.36,SPECIAL GUARDIANSHIP,PAYMENTS TO CARERS,REDACTED,REDACTED
08.12.2021,CHILDREN AND FAMILIES,REDACTED PERSONAL DATA,302.74,SPECIAL GUARDIANSHIP,PAYMENTS TO CARERS,REDACTED,REDACTED
08.12.2021,CHILDREN AND FAMILIES,REDACTED PERSONAL DATA,375.54,SPECIAL GUARDIANSHIP,PAYMENTS TO CARERS,REDACTED,REDACTED
08.12.2021,CHILDREN AND FAMILIES,REDACTED PERSONAL DATA,281.42,SPECIAL GUARDIANSHIP,PAYMENTS TO CARERS,REDACTED,REDACTED
08.12.2021,CHILDREN AND FAMILIES,REDACTED PERSONAL DATA,341.82,SPECIAL GUARDIANSHIP,PAYMENTS TO CARERS,REDACTED,REDACTED
08.12.2021,CHILDREN AND FAMILIES,REDACTED PERSONAL DATA,290.16,SPECIAL GUARDIANSHIP,PAYMENTS TO CARERS,REDACTED,REDACTED
08.12.2021,CHILDREN AND FAMILIES,REDACTED PERSONAL DATA,341.82,SPECIAL GUARDIANSHIP,PAYMENTS TO CARERS,REDACTED,REDACTED
08.12.2021,CHILDREN AND FAMILIES,REDACTED PERSONAL DATA,355.86,SPECIAL GUARDIANSHIP,PAYMENTS TO CARERS,REDACTED,REDACTED
08.12.2021,CHILDREN AND FAMILIES,REDACTED PERSONAL DATA,355.86,SPECIAL GUARDIANSHIP,PAYMENTS TO CARERS,REDACTED,REDACTED
08.12.2021,CHILDREN AND FAMILIES,REDACTED PERSONAL DATA,294.74,SPECIAL GUARDIANSHIP,PAYMENTS TO CARERS,REDACTED,REDACTED
08.12.2021,CHILDREN AND FAMILIES,REDACTED PERSONAL DATA,359.56,SPECIAL GUARDIANSHIP,PAYMENTS TO CARERS,REDACTED,REDACTED
08.12.2021,CHILDREN AND FAMILIES,REDACTED PERSONAL DATA,355.86,SPECIAL GUARDIANSHIP,PAYMENTS TO CARERS,REDACTED,REDACTED
08.12.2021,CHILDREN AND FAMILIES,REDACTED PERSONAL DATA,355.86,SPECIAL GUARDIANSHIP,PAYMENTS TO CARERS,REDACTED,REDACTED
08.12.2021,CHILDREN AND FAMILIES,REDACTED PERSONAL DATA,355.86,SPECIAL GUARDIANSHIP,PAYMENTS TO CARERS,REDACTED,REDACTED
08.12.2021,CHILDREN AND FAMILIES,REDACTED PERSONAL DATA,341.82,SPECIAL GUARDIANSHIP,PAYMENTS TO CARERS,REDACTED,REDACTED
08.12.2021,CHILDREN AND FAMILIES,REDACTED PERSONAL DATA,341.82,SPECIAL GUARDIANSHIP,PAYMENTS TO CARERS,REDACTED,REDACTED
08.12.2021,CHILDREN AND FAMILIES,REDACTED PERSONAL DATA,295.42,SPECIAL GUARDIANSHIP,PAYMENTS TO CARERS,REDACTED,REDACTED
08.12.2021,CHILDREN AND FAMILIES,REDACTED PERSONAL DATA,309.44,SPECIAL GUARDIANSHIP,PAYMENTS TO CARERS,REDACTED,REDACTED
08.12.2021,CHILDREN AND FAMILIES,REDACTED PERSONAL DATA,355.86,SPECIAL GUARDIANSHIP,PAYMENTS TO CARERS,REDACTED,REDACTED
08.12.2021,CHILDREN AND FAMILIES,REDACTED PERSONAL DATA,309.18,SPECIAL GUARDIANSHIP,PAYMENTS TO CARERS,REDACTED,REDACTED
08.12.2021,CHILDREN AND FAMILIES,REDACTED PERSONAL DATA,355.86,SPECIAL GUARDIANSHIP,PAYMENTS TO CARERS,REDACTED,REDACTED
08.12.2021,CHILDREN AND FAMILIES,REDACTED PERSONAL DATA,335.04,SPECIAL GUARDIANSHIP,PAYMENTS TO CARERS,REDACTED,REDACTED
08.12.2021,CHILDREN AND FAMILIES,REDACTED PERSONAL DATA,312.84,SPECIAL GUARDIANSHIP,PAYMENTS TO CARERS,REDACTED,REDACTED
08.12.2021,CHILDREN AND FAMILIES,REDACTED PERSONAL DATA,435.84,SPECIAL GUARDIANSHIP,PAYMENTS TO CARERS,REDACTED,REDACTED
08.12.2021,CHILDREN AND FAMILIES,REDACTED PERSONAL DATA,449.88,SPECIAL GUARDIANSHIP,PAYMENTS TO CARERS,REDACTED,REDACTED
08.12.2021,CHILDREN AND FAMILIES,REDACTED PERSONAL DATA,477.36,SPECIAL GUARDIANSHIP,PAYMENTS TO CARERS,REDACTED,REDACTED
08.12.2021,CHILDREN AND FAMILIES,REDACTED PERSONAL DATA,477.36,SPECIAL GUARDIANSHIP,PAYMENTS TO CARERS,REDACTED,REDACTED
08.12.2021,CHILDREN AND FAMILIES,REDACTED PERSONAL DATA,435.84,SPECIAL GUARDIANSHIP,PAYMENTS TO CARERS,REDACTED,REDACTED
08.12.2021,CHILDREN AND FAMILIES,REDACTED PERSONAL DATA,308.76,SPECIAL GUARDIANSHIP,PAYMENTS TO CARERS,REDACTED,REDACTED
08.12.2021,CHILDREN AND FAMILIES,REDACTED PERSONAL DATA,355.86,SPECIAL GUARDIANSHIP,PAYMENTS TO CARERS,REDACTED,REDACTED
08.12.2021,CHILDREN AND FAMILIES,REDACTED PERSONAL DATA,435.84,SPECIAL GUARDIANSHIP,PAYMENTS TO CARERS,REDACTED,REDACTED
08.12.2021,CHILDREN AND FAMILIES,REDACTED PERSONAL DATA,436.44,SPECIAL GUARDIANSHIP,PAYMENTS TO CARERS,REDACTED,REDACTED
08.12.2021,CHILDREN AND FAMILIES,REDACTED PERSONAL DATA,382.3,SPECIAL GUARDIANSHIP,PAYMENTS TO CARERS,REDACTED,REDACTED
08.12.2021,CHILDREN AND FAMILIES,REDACTED PERSONAL DATA,341.82,SPECIAL GUARDIANSHIP,PAYMENTS TO CARERS,REDACTED,REDACTED
08.12.2021,CHILDREN AND FAMILIES,REDACTED PERSONAL DATA,355.86,SPECIAL GUARDIANSHIP,PAYMENTS TO CARERS,REDACTED,REDACTED
08.12.2021,CHILDREN AND FAMILIES,REDACTED PERSONAL DATA,355.86,SPECIAL GUARDIANSHIP,PAYMENTS TO CARERS,REDACTED,REDACTED
08.12.2021,CHILDREN AND FAMILIES,REDACTED PERSONAL DATA,286.1,SPECIAL GUARDIANSHIP,PAYMENTS TO CARERS,REDACTED,REDACTED
08.12.2021,CHILDREN AND FAMILIES,REDACTED PERSONAL DATA,308.78,SPECIAL GUARDIANSHIP,PAYMENTS TO CARERS,REDACTED,REDACTED
08.12.2021,CHILDREN AND FAMILIES,REDACTED PERSONAL DATA,356.06,SPECIAL GUARDIANSHIP,PAYMENTS TO CARERS,REDACTED,REDACTED
08.12.2021,CHILDREN AND FAMILIES,REDACTED PERSONAL DATA,430,SPECIAL GUARDIANSHIP,PAYMENTS TO CARERS,REDACTED,REDACTED
08.12.2021,CHILDREN AND FAMILIES,REDACTED PERSONAL DATA,341.82,SPECIAL GUARDIANSHIP,PAYMENTS TO CARERS,REDACTED,REDACTED
08.12.2021,CHILDREN AND FAMILIES,REDACTED PERSONAL DATA,355.86,SPECIAL GUARDIANSHIP,PAYMENTS TO CARERS,REDACTED,REDACTED
08.12.2021,CHILDREN AND FAMILIES,REDACTED PERSONAL DATA,500,SPECIAL GUARDIANSHIP,PAYMENTS TO CARERS,REDACTED,REDACTED
08.12.2021,CHILDREN AND FAMILIES,REDACTED PERSONAL DATA,"1,050.00",SPECIAL GUARDIANSHIP,PAYMENTS TO CARERS,REDACTED,REDACTED
08.12.2021,CHILDREN AND FAMILIES,REDACTED PERSONAL DATA,294.74,SPECIAL GUARDIANSHIP,PAYMENTS TO CARERS,REDACTED,REDACTED
08.12.2021,CHILDREN AND FAMILIES,REDACTED PERSONAL DATA,341.82,SPECIAL GUARDIANSHIP,PAYMENTS TO CARERS,REDACTED,REDACTED
08.12.2021,CHILDREN AND FAMILIES,REDACTED PERSONAL DATA,355.56,SPECIAL GUARDIANSHIP,PAYMENTS TO CARERS,REDACTED,REDACTED
08.12.2021,CHILDREN AND FAMILIES,REDACTED PERSONAL DATA,308.76,SPECIAL GUARDIANSHIP,PAYMENTS TO CARERS,REDACTED,REDACTED
08.12.2021,CHILDREN AND FAMILIES,REDACTED PERSONAL DATA,267.28,SPECIAL GUARDIANSHIP,PAYMENTS TO CARERS,REDACTED,REDACTED
08.12.2021,CHILDREN AND FAMILIES,REDACTED PERSONAL DATA,361.32,SPECIAL GUARDIANSHIP,PAYMENTS TO CARERS,REDACTED,REDACTED
08.12.2021,CHILDREN AND FAMILIES,REDACTED PERSONAL DATA,359.06,SPECIAL GUARDIANSHIP,PAYMENTS TO CARERS,REDACTED,REDACTED
08.12.2021,CHILDREN AND FAMILIES,REDACTED PERSONAL DATA,308.76,SPECIAL GUARDIANSHIP,PAYMENTS TO CARERS,REDACTED,REDACTED
08.12.2021,CHILDREN AND FAMILIES,REDACTED PERSONAL DATA,308.78,SPECIAL GUARDIANSHIP,PAYMENTS TO CARERS,REDACTED,REDACTED
08.12.2021,CHILDREN AND FAMILIES,REDACTED PERSONAL DATA,341.82,SPECIAL GUARDIANSHIP,PAYMENTS TO CARERS,REDACTED,REDACTED
08.12.2021,CHILDREN AND FAMILIES,REDACTED PERSONAL DATA,341.82,SPECIAL GUARDIANSHIP,PAYMENTS TO CARERS,REDACTED,REDACTED
08.12.2021,CHILDREN AND FAMILIES,REDACTED PERSONAL DATA,308.76,SPECIAL GUARDIANSHIP,PAYMENTS TO CARERS,REDACTED,REDACTED
08.12.2021,CHILDREN AND FAMILIES,REDACTED PERSONAL DATA,355.86,SPECIAL GUARDIANSHIP,PAYMENTS TO CARERS,REDACTED,REDACTED
08.12.2021,CHILDREN AND FAMILIES,REDACTED PERSONAL DATA,355.86,SPECIAL GUARDIANSHIP,PAYMENTS TO CARERS,REDACTED,REDACTED
08.12.2021,CHILDREN AND FAMILIES,REDACTED PERSONAL DATA,355.86,SPECIAL GUARDIANSHIP,PAYMENTS TO CARERS,REDACTED,REDACTED
08.12.2021,CHILDREN AND FAMILIES,REDACTED PERSONAL DATA,310.84,SPECIAL GUARDIANSHIP,PAYMENTS TO CARERS,REDACTED,REDACTED
08.12.2021,CHILDREN AND FAMILIES,REDACTED PERSONAL DATA,355.86,SPECIAL GUARDIANSHIP,PAYMENTS TO CARERS,REDACTED,REDACTED
08.12.2021,CHILDREN AND FAMILIES,REDACTED PERSONAL DATA,355.86,SPECIAL GUARDIANSHIP,PAYMENTS TO CARERS,REDACTED,REDACTED
08.12.2021,CHILDREN AND FAMILIES,REDACTED PERSONAL DATA,355.86,SPECIAL GUARDIANSHIP,PAYMENTS TO CARERS,REDACTED,REDACTED
08.12.2021,CHILDREN AND FAMILIES,REDACTED PERSONAL DATA,308.76,SPECIAL GUARDIANSHIP,PAYMENTS TO CARERS,REDACTED,REDACTED
08.12.2021,CHILDREN AND FAMILIES,REDACTED PERSONAL DATA,382.48,SPECIAL GUARDIANSHIP,PAYMENTS TO CARERS,REDACTED,REDACTED
08.12.2021,CHILDREN AND FAMILIES,REDACTED PERSONAL DATA,294.74,SPECIAL GUARDIANSHIP,PAYMENTS TO CARERS,REDACTED,REDACTED
08.12.2021,CHILDREN AND FAMILIES,REDACTED PERSONAL DATA,341.82,SPECIAL GUARDIANSHIP,PAYMENTS TO CARERS,REDACTED,REDACTED
08.12.2021,CHILDREN AND FAMILIES,REDACTED PERSONAL DATA,355.86,SPECIAL GUARDIANSHIP,PAYMENTS TO CARERS,REDACTED,REDACTED
08.12.2021,CHILDREN AND FAMILIES,REDACTED PERSONAL DATA,294.74,SPECIAL GUARDIANSHIP,PAYMENTS TO CARERS,REDACTED,REDACTED
08.12.2021,CHILDREN AND FAMILIES,REDACTED PERSONAL DATA,435.84,SPECIAL GUARDIANSHIP,PAYMENTS TO CARERS,REDACTED,REDACTED
08.12.2021,CHILDREN AND FAMILIES,REDACTED PERSONAL DATA,309.06,SPECIAL GUARDIANSHIP,PAYMENTS TO CARERS,REDACTED,REDACTED
08.12.2021,CHILDREN AND FAMILIES,REDACTED PERSONAL DATA,345.54,SPECIAL GUARDIANSHIP,PAYMENTS TO CARERS,REDACTED,REDACTED
08.12.2021,CHILDREN AND FAMILIES,REDACTED PERSONAL DATA,355.86,SPECIAL GUARDIANSHIP,PAYMENTS TO CARERS,REDACTED,REDACTED
08.12.2021,CHILDREN AND FAMILIES,REDACTED PERSONAL DATA,308.76,SPECIAL GUARDIANSHIP,PAYMENTS TO CARERS,REDACTED,REDACTED
08.12.2021,CHILDREN AND FAMILIES,REDACTED PERSONAL DATA,288.86,SPECIAL GUARDIANSHIP,PAYMENTS TO CARERS,REDACTED,REDACTED
08.12.2021,CHILDREN AND FAMILIES,REDACTED PERSONAL DATA,308.76,SPECIAL GUARDIANSHIP,PAYMENTS TO CARERS,REDACTED,REDACTED
08.12.2021,CHILDREN AND FAMILIES,REDACTED PERSONAL DATA,435.84,SPECIAL GUARDIANSHIP,PAYMENTS TO CARERS,REDACTED,REDACTED
08.12.2021,CHILDREN AND FAMILIES,REDACTED PERSONAL DATA,294.74,SPECIAL GUARDIANSHIP,PAYMENTS TO CARERS,REDACTED,REDACTED
08.12.2021,CHILDREN AND FAMILIES,REDACTED PERSONAL DATA,435.84,SPECIAL GUARDIANSHIP,PAYMENTS TO CARERS,REDACTED,REDACTED
08.12.2021,CHILDREN AND FAMILIES,REDACTED PERSONAL DATA,435.84,SPECIAL GUARDIANSHIP,PAYMENTS TO CARERS,REDACTED,REDACTED
08.12.2021,CHILDREN AND FAMILIES,REDACTED PERSONAL DATA,449.88,SPECIAL GUARDIANSHIP,PAYMENTS TO CARERS,REDACTED,REDACTED
08.12.2021,CHILDREN AND FAMILIES,REDACTED PERSONAL DATA,449.88,SPECIAL GUARDIANSHIP,PAYMENTS TO CARERS,REDACTED,REDACTED
08.12.2021,CHILDREN AND FAMILIES,REDACTED PERSONAL DATA,308.76,SPECIAL GUARDIANSHIP,PAYMENTS TO CARERS,REDACTED,REDACTED
08.12.2021,CHILDREN AND FAMILIES,REDACTED PERSONAL DATA,355.86,SPECIAL GUARDIANSHIP,PAYMENTS TO CARERS,REDACTED,REDACTED
08.12.2021,CHILDREN AND FAMILIES,REDACTED PERSONAL DATA,271.14,SPECIAL GUARDIANSHIP,PAYMENTS TO CARERS,REDACTED,REDACTED
08.12.2021,CHILDREN AND FAMILIES,REDACTED PERSONAL DATA,341.15,SPECIAL GUARDIANSHIP,PAYMENTS TO CARERS,REDACTED,REDACTED
08.12.2021,CHILDREN AND FAMILIES,REDACTED PERSONAL DATA,682.3,SPECIAL GUARDIANSHIP,PAYMENTS TO CARERS,REDACTED,REDACTED
08.12.2021,CHILDREN AND FAMILIES,REDACTED PERSONAL DATA,341.82,SPECIAL GUARDIANSHIP,PAYMENTS TO CARERS,REDACTED,REDACTED
08.12.2021,CHILDREN AND FAMILIES,REDACTED PERSONAL DATA,298.3,SPECIAL GUARDIANSHIP,PAYMENTS TO CARERS,REDACTED,REDACTED
08.12.2021,CHILDREN AND FAMILIES,REDACTED PERSONAL DATA,294.74,SPECIAL GUARDIANSHIP,PAYMENTS TO CARERS,REDACTED,REDACTED
08.12.2021,CHILDREN AND FAMILIES,REDACTED PERSONAL DATA,355.86,SPECIAL GUARDIANSHIP,PAYMENTS TO CARERS,REDACTED,REDACTED
08.12.2021,CHILDREN AND FAMILIES,REDACTED PERSONAL DATA,348.76,SPECIAL GUARDIANSHIP,PAYMENTS TO CARERS,REDACTED,REDACTED
08.12.2021,CHILDREN AND FAMILIES,REDACTED PERSONAL DATA,355.86,SPECIAL GUARDIANSHIP,PAYMENTS TO CARERS,REDACTED,REDACTED
08.12.2021,CHILDREN AND FAMILIES,REDACTED PERSONAL DATA,308.76,SPECIAL GUARDIANSHIP,PAYMENTS TO CARERS,REDACTED,REDACTED
08.12.2021,CHILDREN AND FAMILIES,REDACTED PERSONAL DATA,341.82,SPECIAL GUARDIANSHIP,PAYMENTS TO CARERS,REDACTED,REDACTED
08.12.2021,CHILDREN AND FAMILIES,REDACTED PERSONAL DATA,411,SPECIAL GUARDIANSHIP,PAYMENTS TO CARERS,REDACTED,REDACTED
08.12.2021,CHILDREN AND FAMILIES,REDACTED PERSONAL DATA,425.24,SPECIAL GUARDIANSHIP,PAYMENTS TO CARERS,REDACTED,REDACTED
08.12.2021,CHILDREN AND FAMILIES,REDACTED PERSONAL DATA,308.76,SPECIAL GUARDIANSHIP,PAYMENTS TO CARERS,REDACTED,REDACTED
08.12.2021,CHILDREN AND FAMILIES,REDACTED PERSONAL DATA,435.84,SPECIAL GUARDIANSHIP,PAYMENTS TO CARERS,REDACTED,REDACTED
08.12.2021,CHILDREN AND FAMILIES,REDACTED PERSONAL DATA,449.88,SPECIAL GUARDIANSHIP,PAYMENTS TO CARERS,REDACTED,REDACTED
08.12.2021,CHILDREN AND FAMILIES,REDACTED PERSONAL DATA,449.88,SPECIAL GUARDIANSHIP,PAYMENTS TO CARERS,REDACTED,REDACTED
08.12.2021,CHILDREN AND FAMILIES,REDACTED PERSONAL DATA,355.86,SPECIAL GUARDIANSHIP,PAYMENTS TO CARERS,REDACTED,REDACTED
08.12.2021,CHILDREN AND FAMILIES,REDACTED PERSONAL DATA,294.74,SPECIAL GUARDIANSHIP,PAYMENTS TO CARERS,REDACTED,REDACTED
08.12.2021,CHILDREN AND FAMILIES,REDACTED PERSONAL DATA,294.74,SPECIAL GUARDIANSHIP,PAYMENTS TO CARERS,REDACTED,REDACTED
08.12.2021,CHILDREN AND FAMILIES,REDACTED PERSONAL DATA,341.82,SPECIAL GUARDIANSHIP,PAYMENTS TO CARERS,REDACTED,REDACTED
08.12.2021,CHILDREN AND FAMILIES,REDACTED PERSONAL DATA,355.86,SPECIAL GUARDIANSHIP,PAYMENTS TO CARERS,REDACTED,REDACTED
08.12.2021,CHILDREN AND FAMILIES,REDACTED PERSONAL DATA,345.54,SPECIAL GUARDIANSHIP,PAYMENTS TO CARERS,REDACTED,REDACTED
